{"text_format":"1","workbook":"xlsx","n_sheets":5,"sheets":["Потребность для загрузки","Форма ТКП","Легенда","Курсы валют","ЭТП ГПБ"],"not_rendered":{"charts":0,"images":3,"macros":1,"external_links":2,"defined_names":12,"comments":1,"pivot_tables":0},"unopened":[],"bounds":{"document_bytes":16777216,"sheet_cells":100000,"rows_first":2000,"rows_last":500,"rows_between":2000,"halvings":0,"cell_chars":16384,"cell_head_chars":4096},"cells_cut":0,"cells_raw":0,"read":"whole","date_system":"1900"}

{"sheet":"Потребность для загрузки","index":0,"n_rows":122,"n_cols":36,"rows_kept":122,"cut":false,"hidden":false,"merged":[[3,1,102,1],[3,2,102,2],[108,0,108,1],[109,0,109,1],[107,0,107,1],[106,0,106,1],[1,32,2,32],[1,26,2,26],[1,27,2,27],[1,28,2,28],[1,29,2,29],[1,30,2,30],[1,17,2,17],[1,18,2,18],[1,20,1,22],[1,23,2,23],[1,24,2,24],[1,5,2,5],[103,34,103,35],[108,34,108,35],[108,13,109,13],[1,6,2,6],[1,7,2,7],[1,8,2,8],[1,9,2,9],[1,10,2,10],[1,11,2,11],[1,12,2,12],[1,13,2,13],[1,25,2,25],[1,14,2,14],[1,15,2,15],[1,16,2,16],[1,0,2,0],[1,1,2,1],[1,2,2,2],[1,3,2,3],[1,4,2,4]]}
[{"$f":"IF(COUNTIF(A4:A103,\"x\")=100,\"x\",\"\")","v":"x"},{"$f":"IF(COUNTIF(B4:B103,\"x\")=1,\"x\",\"\")","v":""},{"$f":"IF(COUNTIF(C4:C103,\"x\")=1,\"x\",\"\")","v":""},{"$f":"IF(COUNTIF(D4:D103,\"x\")=100,\"x\",\"\")","v":"x"},{"$f":"IF(COUNTIF(E4:E103,\"x\")=100,\"x\",\"\")","v":"x"},"x","x","x","x","x","x","x","x","x","x","x","x","x","x","x","x","x","x","x","x","x","","x","x","x"]
["№ п/п","№ предложения/\nзакупки","Наименование\nзакупки","Код","Наименование позиции в закупке","Описание запроса/\nкомментарий заказчика","Тип, марка, артикул","Производитель","Страна","Кол-во","ЕИ","Цена\nбез НДС, руб","Цена с НДС, руб","Стоимость\nбез НДС, руб","Наименование аналога","Тип, марка, артикул","Производитель","Страна","Цена с НДС, руб\n(расчетная)","Доставка ТК \nцена с НДС, руб (расчетная)","Логистика",null,null,"Дата отправления\n из начального/\nтранзитного пункта","Дата прибытия\n в конечный пункт","В пути, к. д.","Цена без НДС, руб","Стоимость\nбез НДС, руб","Срок поставки/\nналичие","Примечания","Наименование \nООО Август","Цена ООО Август \nбез НДС, руб","Стоимость ООО Август\nбез НДС, руб"]
[null,null,null,null,null,null,null,null,null,null,null,null,null,null,null,null,null,null,null,"Деловые линии","Начальный пункт","Транзитный пункт","Конечный пункт",null,null,null,null,null,null,null,null,0.8]
[{"$f":"IF(E4<>\"x\",1,\"x\")","v":"x"},{"$f":"IFERROR(Легенда!M16,\"x\")","v":""},{"$f":"IFERROR(Легенда!M17,\"x\")","v":""},"x","x","x","x","x","x","x","x","x",{"$f":"IFERROR(L4*1.2,\"x\")","v":"x"},{"$f":"IFERROR(L4*J4,\"x\")","v":"x"},"x",{"$f":"IF(O4<>\"x\",\"\",\"x\")","v":"x"},{"$f":"IF(O4<>\"x\",\"\",\"x\")","v":"x"},"x","x","x","x","x","x",{"$f":"IFERROR(IF(AND(E4<>\"x\",$AC$108<>\"x\"),$AC$108+1,\"x\"),\"x\")","v":"x"},"x",{"$f":"IFERROR(IF(AND(X4<>\"x\",Y4<>\"x\"),_xlfn.DAYS(Y4,X4),\"x\"),\"x\")","v":"x"},{"$f":"SUM(S4,T4)/1.2","v":0},{"$f":"IFERROR(AA4*J4,\"x\")","v":"x"},{"$f":"IF(O4<>\"x\",\"\",\"x\")","v":"x"},{"$f":"IF(O4<>\"x\",\"\",\"x\")","v":"x"},{"$f":"IF(O4<>\"x\",CONCATENATE(O4,\" \",P4,\" \",Q4,\" \",R4),CONCATENATE(E4,\" \",G4,\" \",H4,\" \",I4))","v":"x x x x"},{"$f":"ROUND(AA4/$AF$3,0)","v":0},{"$f":"IFERROR(AF4*J4,0)","v":0}]
[{"$f":"IFERROR(IF(E5<>\"x\",A4+1,\"x\"),\"x\")","v":"x"},null,null,"x","x","x","x","x","x","x","x","x",{"$f":"IFERROR(L5*1.2,\"x\")","v":"x"},{"$f":"IFERROR(L5*J5,\"x\")","v":"x"},"x",{"$f":"IF(O5<>\"x\",\"\",\"x\")","v":"x"},{"$f":"IF(O5<>\"x\",\"\",\"x\")","v":"x"},"x",{"$f":"IF(O5<>\"x\",\"\",\"x\")","v":"x"},"x","x","x","x",{"$f":"IFERROR(IF(AND(E5<>\"x\",$AC$108<>\"x\"),$AC$108+1,\"x\"),\"x\")","v":"x"},"x",{"$f":"IFERROR(IF(AND(X5<>\"x\",Y5<>\"x\"),_xlfn.DAYS(Y5,X5),\"x\"),\"x\")","v":"x"},{"$f":"SUM(S5,T5)/1.2","v":0},{"$f":"IFERROR(AA5*J5,\"x\")","v":"x"},{"$f":"IF(O5<>\"x\",\"\",\"x\")","v":"x"},{"$f":"IF(O5<>\"x\",\"\",\"x\")","v":"x"},{"$f":"IF(O5<>\"x\",CONCATENATE(O5,\" \",P5,\" \",Q5,\" \",R5),CONCATENATE(E5,\" \",G5,\" \",H5,\" \",I5))","v":"x x x x"},{"$f":"ROUND(AA5/$AF$3,0)","v":0},{"$f":"IFERROR(AF5*J5,0)","v":0}]
[{"$f":"IFERROR(IF(E6<>\"x\",A5+1,\"x\"),\"x\")","v":"x"},null,null,"x","x","x","x","x","x","x","x","x","x","x","x",{"$f":"IF(O6<>\"x\",\"\",\"x\")","v":"x"},"x","x","x","x","x","x","x","x","x","x",0,"x","x","x","x x x x",0,0]
["x",null,null,"x","x","x","x","x","x","x","x","x","x","x","x",{"$f":"IF(O7<>\"x\",\"\",\"x\")","v":"x"},"x","x","x","x","x","x","x","x","x","x",0,"x","x","x","x x x x",0,0]
["x",null,null,"x","x","x","x","x","x","x","x","x","x","x","x",{"$f":"IF(O8<>\"x\",\"\",\"x\")","v":"x"},"x","x","x","x","x","x","x","x","x","x",0,"x","x","x","x x x x",0,0]
["x",null,null,"x","x","x","x","x","x","x","x","x","x","x","x",{"$f":"IF(O9<>\"x\",\"\",\"x\")","v":"x"},"x","x","x","x","x","x","x","x","x","x",0,"x","x","x","x x x x",0,0]
["x",null,null,"x","x","x","x","x","x","x","x","x","x","x","x",{"$f":"IF(O10<>\"x\",\"\",\"x\")","v":"x"},"x","x","x","x","x","x","x","x","x","x",0,"x","x","x","x x x x",0,0]
["x",null,null,"x","x","x","x","x","x","x","x","x","x","x","x",{"$f":"IF(O11<>\"x\",\"\",\"x\")","v":"x"},"x","x","x","x","x","x","x","x","x","x",0,"x","x","x","x x x x",0,0]
["x",null,null,"x","x","x","x","x","x","x","x","x","x","x","x",{"$f":"IF(O12<>\"x\",\"\",\"x\")","v":"x"},"x","x","x","x","x","x","x","x","x","x",0,"x","x","x","x x x x",0,0]
["x",null,null,"x","x","x","x","x","x","x","x","x","x","x","x",{"$f":"IF(O13<>\"x\",\"\",\"x\")","v":"x"},"x","x","x","x","x","x","x","x","x","x",{"$f":"SUM(S13,T13)/1.2","v":0},"x","x","x","x x x x",0,0]
["x",null,null,"x","x","x","x","x","x","x","x","x","x","x","x",{"$f":"IF(O14<>\"x\",\"\",\"x\")","v":"x"},"x","x","x","x","x","x","x","x","x","x",0,"x","x","x","x x x x",0,0]
["x",null,null,"x","x","x","x","x","x","x","x","x","x","x","x",{"$f":"IF(O15<>\"x\",\"\",\"x\")","v":"x"},"x","x","x","x","x","x","x","x","x","x",0,"x","x","x","x x x x",0,0]
["x",null,null,"x","x","x","x","x","x","x","x","x","x","x","x",{"$f":"IF(O16<>\"x\",\"\",\"x\")","v":"x"},"x","x","x","x","x","x","x","x","x","x",0,"x","x","x","x x x x",0,0]
["x",null,null,"x","x","x","x","x","x","x","x","x","x","x","x",{"$f":"IF(O17<>\"x\",\"\",\"x\")","v":"x"},"x","x","x","x","x","x","x","x","x","x",0,"x","x","x",{"$f":"IF(O17<>\"x\",CONCATENATE(O17,\" \",P17,\" \",Q17,\" \",R17),CONCATENATE(E17,\" \",G17,\" \",H17,\" \",I17))","v":"x x x x"},0,0]
["x",null,null,"x","x","x","x","x","x","x","x","x","x","x","x",{"$f":"IF(O18<>\"x\",\"\",\"x\")","v":"x"},"x","x","x","x","x","x","x","x","x","x",0,"x","x","x","x x x x",0,0]
["x",null,null,"x","x","x","x","x","x","x","x","x","x","x","x",{"$f":"IF(O19<>\"x\",\"\",\"x\")","v":"x"},"x","x","x","x","x","x","x","x","x","x",0,"x","x","x","x x x x",0,0]
["x",null,null,"x","x","x","x","x","x","x","x","x","x","x","x",{"$f":"IF(O20<>\"x\",\"\",\"x\")","v":"x"},"x","x","x","x","x","x","x","x","x","x",0,"x","x","x","x x x x",0,0]
["x",null,null,"x","x","x","x","x","x","x","x","x","x","x","x",{"$f":"IF(O21<>\"x\",\"\",\"x\")","v":"x"},"x","x","x","x","x","x","x","x","x","x",0,"x","x","x","x x x x",0,0]
["x",null,null,"x","x","x","x","x","x","x","x","x","x","x","x",{"$f":"IF(O22<>\"x\",\"\",\"x\")","v":"x"},"x","x","x","x","x","x","x","x","x","x",0,"x","x","x","x x x x",0,0]
["x",null,null,"x","x","x","x","x","x","x","x","x","x","x","x",{"$f":"IF(O23<>\"x\",\"\",\"x\")","v":"x"},"x","x","x","x","x","x","x","x","x","x",0,"x","x","x","x x x x",0,0]
["x",null,null,"x","x","x","x","x","x","x","x","x","x","x","x",{"$f":"IF(O24<>\"x\",\"\",\"x\")","v":"x"},"x","x","x","x","x","x","x","x","x","x",0,"x","x","x","x x x x",0,0]
["x",null,null,"x","x","x","x","x","x","x","x","x","x","x","x",{"$f":"IF(O25<>\"x\",\"\",\"x\")","v":"x"},"x","x","x","x","x","x","x","x","x","x",0,"x","x","x","x x x x",0,0]
["x",null,null,"x","x","x","x","x","x","x","x","x","x","x","x",{"$f":"IF(O26<>\"x\",\"\",\"x\")","v":"x"},"x","x","x","x","x","x","x","x","x","x",0,"x","x","x","x x x x",0,0]
["x",null,null,"x","x","x","x","x","x","x","x","x","x","x","x",{"$f":"IF(O27<>\"x\",\"\",\"x\")","v":"x"},"x","x","x","x","x","x","x","x","x","x",0,"x","x","x","x x x x",0,0]
["x",null,null,"x","x","x","x","x","x","x","x","x","x","x","x",{"$f":"IF(O28<>\"x\",\"\",\"x\")","v":"x"},"x","x","x","x","x","x","x","x","x","x",0,"x","x","x","x x x x",0,0]
["x",null,null,"x","x","x","x","x","x","x","x","x","x","x","x",{"$f":"IF(O29<>\"x\",\"\",\"x\")","v":"x"},"x","x","x","x","x","x","x","x","x","x",0,"x","x","x","x x x x",0,0]
["x",null,null,"x","x","x","x","x","x","x","x","x","x","x","x",{"$f":"IF(O30<>\"x\",\"\",\"x\")","v":"x"},"x","x","x","x","x","x","x","x","x","x",0,"x","x","x","x x x x",0,0]
["x",null,null,"x","x","x","x","x","x","x","x","x","x","x","x",{"$f":"IF(O31<>\"x\",\"\",\"x\")","v":"x"},"x","x","x","x","x","x","x","x","x","x",0,"x","x","x","x x x x",0,0]
["x",null,null,"x","x","x","x","x","x","x","x","x","x","x","x",{"$f":"IF(O32<>\"x\",\"\",\"x\")","v":"x"},"x","x","x","x","x","x","x","x","x","x",0,"x","x","x","x x x x",0,0]
["x",null,null,"x","x","x","x","x","x","x","x","x","x","x","x",{"$f":"IF(O33<>\"x\",\"\",\"x\")","v":"x"},"x","x","x","x","x","x","x","x","x","x",0,"x","x","x","x x x x",0,0]
["x",null,null,"x","x","x","x","x","x","x","x","x","x","x","x",{"$f":"IF(O34<>\"x\",\"\",\"x\")","v":"x"},"x","x","x","x","x","x","x","x","x","x",0,"x","x","x","x x x x",0,0]
["x",null,null,"x","x","x","x","x","x","x","x","x","x","x","x",{"$f":"IF(O35<>\"x\",\"\",\"x\")","v":"x"},"x","x","x","x","x","x","x","x","x","x",0,"x","x","x","x x x x",0,0]
["x",null,null,"x","x","x","x","x","x","x","x","x","x","x","x",{"$f":"IF(O36<>\"x\",\"\",\"x\")","v":"x"},"x","x","x","x","x","x","x","x","x","x",0,"x","x","x","x x x x",0,0]
["x",null,null,"x","x","x","x","x","x","x","x","x","x","x","x",{"$f":"IF(O37<>\"x\",\"\",\"x\")","v":"x"},"x","x","x","x","x","x","x","x","x","x",0,"x","x","x","x x x x",0,0]
["x",null,null,"x","x","x","x","x","x","x","x","x","x","x","x",{"$f":"IF(O38<>\"x\",\"\",\"x\")","v":"x"},"x","x","x","x","x","x","x","x","x","x",0,"x","x","x","x x x x",0,0]
["x",null,null,"x","x","x","x","x","x","x","x","x","x","x","x",{"$f":"IF(O39<>\"x\",\"\",\"x\")","v":"x"},"x","x","x","x","x","x","x","x","x","x",0,"x","x","x","x x x x",0,0]
["x",null,null,"x","x","x","x","x","x","x","x","x","x","x","x",{"$f":"IF(O40<>\"x\",\"\",\"x\")","v":"x"},"x","x","x","x","x","x","x","x","x","x",0,"x","x","x","x x x x",0,0]
["x",null,null,"x","x","x","x","x","x","x","x","x","x","x","x",{"$f":"IF(O41<>\"x\",\"\",\"x\")","v":"x"},"x","x","x","x","x","x","x","x","x","x",0,"x","x","x","x x x x",0,0]
["x",null,null,"x","x","x","x","x","x","x","x","x","x","x","x",{"$f":"IF(O42<>\"x\",\"\",\"x\")","v":"x"},"x","x","x","x","x","x","x","x","x","x",0,"x","x","x","x x x x",0,0]
["x",null,null,"x","x","x","x","x","x","x","x","x","x","x","x",{"$f":"IF(O43<>\"x\",\"\",\"x\")","v":"x"},"x","x","x","x","x","x","x","x","x","x",0,"x","x","x","x x x x",0,0]
["x",null,null,"x","x","x","x","x","x","x","x","x","x","x","x",{"$f":"IF(O44<>\"x\",\"\",\"x\")","v":"x"},"x","x","x","x","x","x","x","x","x","x",0,"x","x","x","x x x x",0,0]
["x",null,null,"x","x","x","x","x","x","x","x","x","x","x","x",{"$f":"IF(O45<>\"x\",\"\",\"x\")","v":"x"},"x","x","x","x","x","x","x","x","x","x",0,"x","x","x","x x x x",0,0]
["x",null,null,"x","x","x","x","x","x","x","x","x","x","x","x",{"$f":"IF(O46<>\"x\",\"\",\"x\")","v":"x"},"x","x","x","x","x","x","x","x","x","x",0,"x","x","x","x x x x",0,0]
["x",null,null,"x","x","x","x","x","x","x","x","x","x","x","x",{"$f":"IF(O47<>\"x\",\"\",\"x\")","v":"x"},"x","x","x","x","x","x","x","x","x","x",0,"x","x","x","x x x x",0,0]
["x",null,null,"x","x","x","x","x","x","x","x","x","x","x","x",{"$f":"IF(O48<>\"x\",\"\",\"x\")","v":"x"},"x","x","x","x","x","x","x","x","x","x",0,"x","x","x","x x x x",0,0]
["x",null,null,"x","x","x","x","x","x","x","x","x","x","x","x",{"$f":"IF(O49<>\"x\",\"\",\"x\")","v":"x"},"x","x","x","x","x","x","x","x","x","x",0,"x","x","x","x x x x",0,0]
["x",null,null,"x","x","x","x","x","x","x","x","x","x","x","x",{"$f":"IF(O50<>\"x\",\"\",\"x\")","v":"x"},"x","x","x","x","x","x","x","x","x","x",0,"x","x","x","x x x x",0,0]
["x",null,null,"x","x","x","x","x","x","x","x","x","x","x","x",{"$f":"IF(O51<>\"x\",\"\",\"x\")","v":"x"},"x","x","x","x","x","x","x","x","x","x",0,"x","x","x","x x x x",0,0]
["x",null,null,"x","x","x","x","x","x","x","x","x","x","x","x",{"$f":"IF(O52<>\"x\",\"\",\"x\")","v":"x"},"x","x","x","x","x","x","x","x","x","x",0,"x","x","x","x x x x",0,0]
["x",null,null,"x","x","x","x","x","x","x","x","x","x","x","x",{"$f":"IF(O53<>\"x\",\"\",\"x\")","v":"x"},"x","x","x","x","x","x","x","x","x","x",0,"x","x","x","x x x x",0,0]
["x",null,null,"x","x","x","x","x","x","x","x","x","x","x","x",{"$f":"IF(O54<>\"x\",\"\",\"x\")","v":"x"},"x","x","x","x","x","x","x","x","x","x",0,"x","x","x","x x x x",0,0]
["x",null,null,"x","x","x","x","x","x","x","x","x","x","x","x",{"$f":"IF(O55<>\"x\",\"\",\"x\")","v":"x"},"x","x","x","x","x","x","x","x","x","x",0,"x","x","x","x x x x",0,0]
["x",null,null,"x","x","x","x","x","x","x","x","x","x","x","x",{"$f":"IF(O56<>\"x\",\"\",\"x\")","v":"x"},"x","x","x","x","x","x","x","x","x","x",0,"x","x","x","x x x x",0,0]
["x",null,null,"x","x","x","x","x","x","x","x","x","x","x","x",{"$f":"IF(O57<>\"x\",\"\",\"x\")","v":"x"},"x","x","x","x","x","x","x","x","x","x",0,"x","x","x","x x x x",0,0]
["x",null,null,"x","x","x","x","x","x","x","x","x","x","x","x",{"$f":"IF(O58<>\"x\",\"\",\"x\")","v":"x"},"x","x","x","x","x","x","x","x","x","x",0,"x","x","x","x x x x",0,0]
["x",null,null,"x","x","x","x","x","x","x","x","x","x","x","x",{"$f":"IF(O59<>\"x\",\"\",\"x\")","v":"x"},"x","x","x","x","x","x","x","x","x","x",0,"x","x","x","x x x x",0,0]
["x",null,null,"x","x","x","x","x","x","x","x","x","x","x","x",{"$f":"IF(O60<>\"x\",\"\",\"x\")","v":"x"},"x","x","x","x","x","x","x","x","x","x",0,"x","x","x","x x x x",0,0]
["x",null,null,"x","x","x","x","x","x","x","x","x","x","x","x",{"$f":"IF(O61<>\"x\",\"\",\"x\")","v":"x"},"x","x","x","x","x","x","x","x","x","x",0,"x","x","x","x x x x",0,0]
["x",null,null,"x","x","x","x","x","x","x","x","x","x","x","x",{"$f":"IF(O62<>\"x\",\"\",\"x\")","v":"x"},"x","x","x","x","x","x","x","x","x","x",0,"x","x","x","x x x x",0,0]
["x",null,null,"x","x","x","x","x","x","x","x","x","x","x","x",{"$f":"IF(O63<>\"x\",\"\",\"x\")","v":"x"},"x","x","x","x","x","x","x","x","x","x",0,"x","x","x","x x x x",0,0]
["x",null,null,"x","x","x","x","x","x","x","x","x","x","x","x",{"$f":"IF(O64<>\"x\",\"\",\"x\")","v":"x"},"x","x","x","x","x","x","x","x","x","x",0,"x","x","x","x x x x",0,0]
["x",null,null,"x","x","x","x","x","x","x","x","x","x","x","x",{"$f":"IF(O65<>\"x\",\"\",\"x\")","v":"x"},"x","x","x","x","x","x","x","x","x","x",0,"x","x","x","x x x x",0,0]
["x",null,null,"x","x","x","x","x","x","x","x","x","x","x","x",{"$f":"IF(O66<>\"x\",\"\",\"x\")","v":"x"},"x","x","x","x","x","x","x","x","x","x",0,"x","x","x","x x x x",0,0]
["x",null,null,"x","x","x","x","x","x","x","x","x","x","x","x",{"$f":"IF(O67<>\"x\",\"\",\"x\")","v":"x"},"x","x","x","x","x","x","x","x","x","x",0,"x","x","x","x x x x",0,0]
["x",null,null,"x","x","x","x","x","x","x","x","x","x","x","x",{"$f":"IF(O68<>\"x\",\"\",\"x\")","v":"x"},"x","x","x","x","x","x","x","x","x","x",0,"x","x","x","x x x x",0,0]
["x",null,null,"x","x","x","x","x","x","x","x","x",{"$f":"IFERROR(L69*1.2,\"x\")","v":"x"},{"$f":"IFERROR(L69*J69,\"x\")","v":"x"},"x",{"$f":"IF(O69<>\"x\",\"\",\"x\")","v":"x"},{"$f":"IF(O69<>\"x\",\"\",\"x\")","v":"x"},"x",{"$f":"IF(O69<>\"x\",\"\",\"x\")","v":"x"},"x","x","x","x",{"$f":"IFERROR(IF(AND(E69<>\"x\",$AC$108<>\"x\"),$AC$108+1,\"x\"),\"x\")","v":"x"},"x",{"$f":"IFERROR(IF(AND(X69<>\"x\",Y69<>\"x\"),_xlfn.DAYS(Y69,X69),\"x\"),\"x\")","v":"x"},{"$f":"SUM(S69,T69)/1.2","v":0},{"$f":"IFERROR(AA69*J69,\"x\")","v":"x"},{"$f":"IF(O69<>\"x\",\"\",\"x\")","v":"x"},{"$f":"IF(O69<>\"x\",\"\",\"x\")","v":"x"},{"$f":"IF(O69<>\"x\",CONCATENATE(O69,\" \",P69,\" \",Q69,\" \",R69),CONCATENATE(E69,\" \",G69,\" \",H69,\" \",I69))","v":"x x x x"},{"$f":"ROUND(AA69/$AF$3,0)","v":0},{"$f":"IFERROR(AF69*J69,0)","v":0}]
[{"$f":"IFERROR(IF(E70<>\"x\",A69+1,\"x\"),\"x\")","v":"x"},null,null,"x","x","x","x","x","x","x","x","x","x","x","x",{"$f":"IF(O70<>\"x\",\"\",\"x\")","v":"x"},"x","x","x","x","x","x","x","x","x","x",0,"x","x","x","x x x x",0,0]
["x",null,null,"x","x","x","x","x","x","x","x","x","x","x","x",{"$f":"IF(O71<>\"x\",\"\",\"x\")","v":"x"},"x","x","x","x","x","x","x","x","x","x",0,"x","x","x","x x x x",0,0]
["x",null,null,"x","x","x","x","x","x","x","x","x","x","x","x",{"$f":"IF(O72<>\"x\",\"\",\"x\")","v":"x"},"x","x","x","x","x","x","x","x","x","x",0,"x","x","x","x x x x",0,0]
["x",null,null,"x","x","x","x","x","x","x","x","x","x","x","x",{"$f":"IF(O73<>\"x\",\"\",\"x\")","v":"x"},"x","x","x","x","x","x","x","x","x","x",0,"x","x","x","x x x x",0,0]
["x",null,null,"x","x","x","x","x","x","x","x","x","x","x","x",{"$f":"IF(O74<>\"x\",\"\",\"x\")","v":"x"},"x","x","x","x","x","x","x","x","x","x",0,"x","x","x","x x x x",0,0]
["x",null,null,"x","x","x","x","x","x","x","x","x","x","x","x",{"$f":"IF(O75<>\"x\",\"\",\"x\")","v":"x"},"x","x","x","x","x","x","x","x","x","x",0,"x","x","x","x x x x",0,0]
["x",null,null,"x","x","x","x","x","x","x","x","x","x","x","x",{"$f":"IF(O76<>\"x\",\"\",\"x\")","v":"x"},"x","x","x","x","x","x","x","x","x","x",0,"x","x","x","x x x x",0,0]
["x",null,null,"x","x","x","x","x","x","x","x","x","x","x","x",{"$f":"IF(O77<>\"x\",\"\",\"x\")","v":"x"},"x","x","x","x","x","x","x","x","x","x",0,"x","x","x","x x x x",0,0]
["x",null,null,"x","x","x","x","x","x","x","x","x","x","x","x",{"$f":"IF(O78<>\"x\",\"\",\"x\")","v":"x"},"x","x","x","x","x","x","x","x","x","x",0,"x","x","x","x x x x",0,0]
["x",null,null,"x","x","x","x","x","x","x","x","x","x","x","x",{"$f":"IF(O79<>\"x\",\"\",\"x\")","v":"x"},"x","x","x","x","x","x","x","x","x","x",0,"x","x","x","x x x x",0,0]
["x",null,null,"x","x","x","x","x","x","x","x","x","x","x","x",{"$f":"IF(O80<>\"x\",\"\",\"x\")","v":"x"},"x","x","x","x","x","x","x","x","x","x",0,"x","x","x","x x x x",0,0]
["x",null,null,"x","x","x","x","x","x","x","x","x","x","x","x",{"$f":"IF(O81<>\"x\",\"\",\"x\")","v":"x"},"x","x","x","x","x","x","x","x","x","x",0,"x","x","x","x x x x",0,0]
["x",null,null,"x","x","x","x","x","x","x","x","x","x","x","x",{"$f":"IF(O82<>\"x\",\"\",\"x\")","v":"x"},"x","x","x","x","x","x","x","x","x","x",0,"x","x","x","x x x x",0,0]
["x",null,null,"x","x","x","x","x","x","x","x","x","x","x","x",{"$f":"IF(O83<>\"x\",\"\",\"x\")","v":"x"},"x","x","x","x","x","x","x","x","x","x",0,"x","x","x","x x x x",0,0]
["x",null,null,"x","x","x","x","x","x","x","x","x","x","x","x",{"$f":"IF(O84<>\"x\",\"\",\"x\")","v":"x"},"x","x","x","x","x","x","x","x","x","x",0,"x","x","x","x x x x",0,0]
["x",null,null,"x","x","x","x","x","x","x","x","x","x","x","x",{"$f":"IF(O85<>\"x\",\"\",\"x\")","v":"x"},"x","x","x","x","x","x","x","x","x","x",0,"x","x","x","x x x x",0,0]
["x",null,null,"x","x","x","x","x","x","x","x","x","x","x","x",{"$f":"IF(O86<>\"x\",\"\",\"x\")","v":"x"},"x","x","x","x","x","x","x","x","x","x",0,"x","x","x","x x x x",0,0]
["x",null,null,"x","x","x","x","x","x","x","x","x","x","x","x",{"$f":"IF(O87<>\"x\",\"\",\"x\")","v":"x"},"x","x","x","x","x","x","x","x","x","x",0,"x","x","x","x x x x",0,0]
["x",null,null,"x","x","x","x","x","x","x","x","x","x","x","x",{"$f":"IF(O88<>\"x\",\"\",\"x\")","v":"x"},"x","x","x","x","x","x","x","x","x","x",0,"x","x","x","x x x x",0,0]
["x",null,null,"x","x","x","x","x","x","x","x","x","x","x","x",{"$f":"IF(O89<>\"x\",\"\",\"x\")","v":"x"},"x","x","x","x","x","x","x","x","x","x",0,"x","x","x","x x x x",0,0]
["x",null,null,"x","x","x","x","x","x","x","x","x","x","x","x",{"$f":"IF(O90<>\"x\",\"\",\"x\")","v":"x"},"x","x","x","x","x","x","x","x","x","x",0,"x","x","x","x x x x",0,0]
["x",null,null,"x","x","x","x","x","x","x","x","x","x","x","x",{"$f":"IF(O91<>\"x\",\"\",\"x\")","v":"x"},"x","x","x","x","x","x","x","x","x","x",0,"x","x","x","x x x x",0,0]
["x",null,null,"x","x","x","x","x","x","x","x","x","x","x","x",{"$f":"IF(O92<>\"x\",\"\",\"x\")","v":"x"},"x","x","x","x","x","x","x","x","x","x",0,"x","x","x","x x x x",0,0]
["x",null,null,"x","x","x","x","x","x","x","x","x","x","x","x",{"$f":"IF(O93<>\"x\",\"\",\"x\")","v":"x"},"x","x","x","x","x","x","x","x","x","x",0,"x","x","x","x x x x",0,0]
["x",null,null,"x","x","x","x","x","x","x","x","x","x","x","x",{"$f":"IF(O94<>\"x\",\"\",\"x\")","v":"x"},"x","x","x","x","x","x","x","x","x","x",0,"x","x","x","x x x x",0,0]
["x",null,null,"x","x","x","x","x","x","x","x","x","x","x","x",{"$f":"IF(O95<>\"x\",\"\",\"x\")","v":"x"},"x","x","x","x","x","x","x","x","x","x",0,"x","x","x","x x x x",0,0]
["x",null,null,"x","x","x","x","x","x","x","x","x","x","x","x",{"$f":"IF(O96<>\"x\",\"\",\"x\")","v":"x"},"x","x","x","x","x","x","x","x","x","x",0,"x","x","x","x x x x",0,0]
["x",null,null,"x","x","x","x","x","x","x","x","x","x","x","x",{"$f":"IF(O97<>\"x\",\"\",\"x\")","v":"x"},"x","x","x","x","x","x","x","x","x","x",0,"x","x","x","x x x x",0,0]
["x",null,null,"x","x","x","x","x","x","x","x","x","x","x","x",{"$f":"IF(O98<>\"x\",\"\",\"x\")","v":"x"},"x","x","x","x","x","x","x","x","x","x",0,"x","x","x","x x x x",0,0]
["x",null,null,"x","x","x","x","x","x","x","x","x","x","x","x",{"$f":"IF(O99<>\"x\",\"\",\"x\")","v":"x"},"x","x","x","x","x","x","x","x","x","x",0,"x","x","x","x x x x",0,0]
["x",null,null,"x","x","x","x","x","x","x","x","x","x","x","x",{"$f":"IF(O100<>\"x\",\"\",\"x\")","v":"x"},"x","x","x","x","x","x","x","x","x","x",0,"x","x","x","x x x x",0,0]
["x",null,null,"x","x","x","x","x","x","x","x","x","x","x","x",{"$f":"IF(O101<>\"x\",\"\",\"x\")","v":"x"},"x","x","x","x","x","x","x","x","x","x",0,"x","x","x","x x x x",0,0]
["x",null,null,"x","x","x","x","x","x","x","x","x","x","x","x",{"$f":"IF(O102<>\"x\",\"\",\"x\")","v":"x"},"x","x","x","x","x","x","x","x","x","x",0,"x","x","x","x x x x",0,0]
["x",null,null,"x","x","x","x","x","x","x","x","x","x","x","x",{"$f":"IF(O103<>\"x\",\"\",\"x\")","v":"x"},"x","x","x","x","x","x","x","x","x","x",0,"x","x","x","x x x x",0,0]
[null,null,null,null,null,null,null,null,null,null,null,null,"Итого без НДС, руб",{"$f":"SUM(N4:N103)","v":0},null,null,null,null,{"$f":"CEILING('Курсы валют'!E16+3,1)","v":106},"Курс EUR, руб",null,null,null,null,null,null,"Итого без НДС, руб",{"$f":"IFERROR(SUM(AB4:AB103),0)","v":0},{"$f":"IF(AC105<>\"\",TODAY(),\"\")","v":""},"Сегодняшняя дата ",null,"Итого без НДС, руб",{"$f":"SUM(AG4:AG103)","v":0},null,"Условия поставки"]
[null,null,null,null,null,null,null,null,null,null,null,null,"НДС, руб",{"$f":"N106-N104","v":0},null,null,null,null,{"$f":"CEILING('Курсы валют'!E15+3,1)","v":101},"Курс USD, руб",null,null,null,null,null,null,"НДС, руб",{"$f":"AB106-AB104","v":0},{"$f":"Легенда!M19","v":""},"Крайняя дата поставки по закупке",null,"НДС, руб",{"$f":"AG106-AG104","v":0},null,"Стоимость доставки с НДС, руб",{"$f":"Легенда!O24","v":0}]
[null,null,null,null,null,null,null,null,null,null,null,null,"Итого с НДС, руб",{"$f":"N104*1.2","v":0},null,null,null,null,{"$f":"CEILING('Курсы валют'!E24+3,1)","v":17},"Курс CNY, руб",null,null,null,null,null,null,"Итого с НДС, руб",{"$f":"AB104*1.2","v":0},{"$f":"Легенда!N19","v":""},"Осталось, к. д.",null,"Итого с НДС, руб",{"$f":"AG104*1.2","v":0},null,"Адрес доставки",{"$f":"Легенда!M20","v":""}]
[null,null,null,null,null,null,null,null,null,null,null,null,null,null,null,null,null,null,null,null,null,null,null,null,null,null,null,null,null,"Срок поставки самой \"длинной\" позиции, к. д.",null,null,null,null,"Оплата",{"$f":"Легенда!O22","v":""}]
[null,null,null,null,null,null,null,null,null,null,null,null,null,null,null,null,null,null,null,null,null,null,null,null,null,null,null,null,{"$f":"IFERROR(IF(AC107<>\"\",AC104+AC107,\"\"),\"\")","v":""},"Дата поставки самой \"длинной\" позиции",null,"Маржинальность",{"$f":"IF(AG106=0,0,(AG106-AB106)/AG106)","v":0},null,"Общий срок поставки, к. д.",{"$f":"Легенда!O25","v":""}]
[null,null,null,null,null,null,null,null,null,null,null,null,null,null,null,null,null,null,null,null,null,null,null,null,null,null,null,null,null,null,null,"Разница (продажа - закупка) с НДС, руб",{"$f":"AG106-AB106","v":0},null,"Калькулятор дней"]
[null,null,null,null,null,null,null,null,null,null,null,null,null,null,null,null,null,null,null,null,null,null,null,null,null,null,null,null,null,null,null,"Разница (НМЦ - продажа) с НДС, руб",{"$f":"N106-AG106","v":0}]
[]
[]
[]
[]
[]
[]
[]
[]
[]
[]
[]
[null,null,null,null,null,null,null,null,null,null,null,null,null,null,null,null,null,null,null,null,null,null,null,null,null,null,null,null,{"$f":"IF(VLOOKUP($B$121,'[1]ЭТП ГПБ'!$A$1:$N$400,12,FALSE)<>\"\",VLOOKUP($B$121,'[1]ЭТП ГПБ'!$A$1:$N$400,12,FALSE),\"\")","v":""}]

{"sheet":"Форма ТКП","index":1,"n_rows":130,"n_cols":9,"rows_kept":130,"cut":false,"hidden":true,"merged":[[0,2,8,9],[12,0,12,9],[14,0,15,9],[101,2,101,4],[102,2,102,4],[22,2,22,4],[23,2,23,4],[24,2,24,4],[25,2,25,4],[26,2,26,4],[99,2,99,4],[17,2,17,4],[18,2,18,4],[19,2,19,4],[20,2,20,4],[100,2,100,4],[21,2,21,4],[32,2,32,4],[33,2,33,4],[34,2,34,4],[35,2,35,4],[36,2,36,4],[37,2,37,4],[38,2,38,4],[113,2,113,4],[136,1,136,8],[118,1,118,7],[119,1,119,7],[120,1,120,7],[129,6,129,8],[129,1,129,3],[123,1,123,8],[122,1,122,7],[124,1,124,8],[125,1,127,8],[117,2,117,4],[111,2,111,4],[112,2,112,4],[27,2,27,4],[28,2,28,4],[29,2,29,4],[30,2,30,4],[31,2,31,4],[110,2,110,4],[116,2,116,4],[114,2,114,4],[115,2,115,4],[105,2,105,4],[106,2,106,4],[107,2,107,4],[108,2,108,4],[109,2,109,4],[103,2,103,4],[104,2,104,4],[98,2,98,4],[89,2,89,4],[90,2,90,4],[91,2,91,4],[92,2,92,4],[93,2,93,4],[39,2,39,4],[40,2,40,4],[41,2,41,4],[94,2,94,4],[95,2,95,4],[96,2,96,4],[97,2,97,4],[47,2,47,4],[48,2,48,4],[49,2,49,4],[50,2,50,4],[51,2,51,4],[42,2,42,4],[43,2,43,4],[44,2,44,4],[45,2,45,4],[46,2,46,4],[52,2,52,4],[88,2,88,4],[87,2,87,4],[86,2,86,4],[85,2,85,4],[84,2,84,4],[83,2,83,4],[82,2,82,4],[81,2,81,4],[80,2,80,4],[79,2,79,4],[78,2,78,4],[77,2,77,4],[76,2,76,4],[74,2,74,4],[73,2,73,4],[67,2,67,4],[68,2,68,4],[69,2,69,4],[70,2,70,4],[75,2,75,4],[72,2,72,4],[71,2,71,4],[53,2,53,4],[54,2,54,4],[55,2,55,4],[56,2,56,4],[57,2,57,4],[58,2,58,4],[59,2,59,4],[60,2,60,4],[61,2,61,4],[62,2,62,4],[63,2,63,4],[64,2,64,4],[65,2,65,4],[66,2,66,4]]}
[null,null,"КОМПЛЕКСНЫЕ ПОСТАВКИ КОНТРОЛЬНО-ИЗМЕРИТЕЛЬНЫХ ПРИБОРОВ И ЗАПОРНО-РЕГУЛИРУЮЩЕЙ АРМАТУРЫ\nООО «АВГУСТ»\nАдрес: 634029, Россия, г. Томск, ул. Сибирская 9а, помещ. 1002-1004, 1006, 1007\nИНН 7014063807 КПП 701701001 ОГРН 1187031056321\nРасчетный счет: 40702810503600001639\nНазвание Банка: ФИЛИАЛ СИБИРСКИЙ ПАО БАНК \"ФК ОТКРЫТИЕ\"\nКор.счет: 30101810250040000867 в Сибирское ГУ Банка России, БИК: 045004867\nТел.: +7 (3822) 94-52-61, 94-52-71, +7 (960) 969-90-41, +7 (923) 440-90-41\nE-mail: VRG@augustprom.ru  Сайт: www.augustprom.ru"]
[]
[]
[]
[]
[]
[]
[]
[]
[]
[{"$f":"CONCATENATE(\"Дата\",)","v":"Дата"},{"$f":"IF(F11<>\"\",TODAY(),\"\")","v":""},"г.",null,{"$f":"CONCATENATE(\"№ \",TEXT(B11,\"ДД\"),\"/\",TEXT(B11,\"ММ\"),\" -\")","v":"№ / -"}]
[]
["ТЕХНИКО-КОММЕРЧЕСКОЕ ПРЕДЛОЖЕНИЕ"]
[]
["Предлагаем Вам осуществить поставку МТР в ассортименте, количестве и по ценам, \nсогласно нижеприведенной таблице."]
[]
[]
[null,"П/п","Наименование",null,null,"ЕИ","Кол-во","Цена без НДС, руб.","Стоимость без НДС, руб."]
[null,{"$f":"IF(AND(C19<>\"\",C19<>\"x\"),1,\"x\")","v":"x"},{"$f":"IF('Потребность для загрузки'!AE4<>\"x x x x\",'Потребность для загрузки'!AE4,\"x\")","v":"x"},null,null,{"$f":"IF('Потребность для загрузки'!K4<>\"x\",'Потребность для загрузки'!K4,\"x\")","v":"x"},{"$f":"IF(AND('Потребность для загрузки'!J4>0,'Потребность для загрузки'!J4<>\"x\"),'Потребность для загрузки'!J4,\"x\")","v":"x"},{"$f":"IF('Потребность для загрузки'!AF4>0,'Потребность для загрузки'!AF4,\"x\")","v":"x"},{"$f":"IF('Потребность для загрузки'!AG4>0,'Потребность для загрузки'!AG4,\"x\")","v":"x"}]
[null,{"$f":"IF(AND(C20<>\"\",C20<>\"x\"),B19+1,\"x\")","v":"x"},{"$f":"IF('Потребность для загрузки'!AE5<>\"x x x x\",'Потребность для загрузки'!AE5,\"x\")","v":"x"},null,null,{"$f":"IF('Потребность для загрузки'!K5<>\"x\",'Потребность для загрузки'!K5,\"x\")","v":"x"},{"$f":"IF(AND('Потребность для загрузки'!J5>0,'Потребность для загрузки'!J5<>\"x\"),'Потребность для загрузки'!J5,\"x\")","v":"x"},{"$f":"IF('Потребность для загрузки'!AF5>0,'Потребность для загрузки'!AF5,\"x\")","v":"x"},{"$f":"IF('Потребность для загрузки'!AG5>0,'Потребность для загрузки'!AG5,\"x\")","v":"x"}]
[null,{"$f":"IF(AND(C21<>\"\",C21<>\"x\"),B20+1,\"x\")","v":"x"},{"$f":"IF('Потребность для загрузки'!AE6<>\"x x x x\",'Потребность для загрузки'!AE6,\"x\")","v":"x"},null,null,{"$f":"IF('Потребность для загрузки'!K6<>\"x\",'Потребность для загрузки'!K6,\"x\")","v":"x"},{"$f":"IF(AND('Потребность для загрузки'!J6>0,'Потребность для загрузки'!J6<>\"x\"),'Потребность для загрузки'!J6,\"x\")","v":"x"},{"$f":"IF('Потребность для загрузки'!AF6>0,'Потребность для загрузки'!AF6,\"x\")","v":"x"},{"$f":"IF('Потребность для загрузки'!AG6>0,'Потребность для загрузки'!AG6,\"x\")","v":"x"}]
[null,"x",{"$f":"IF('Потребность для загрузки'!AE7<>\"x x x x\",'Потребность для загрузки'!AE7,\"x\")","v":"x"},null,null,{"$f":"IF('Потребность для загрузки'!K7<>\"x\",'Потребность для загрузки'!K7,\"x\")","v":"x"},{"$f":"IF(AND('Потребность для загрузки'!J7>0,'Потребность для загрузки'!J7<>\"x\"),'Потребность для загрузки'!J7,\"x\")","v":"x"},{"$f":"IF('Потребность для загрузки'!AF7>0,'Потребность для загрузки'!AF7,\"x\")","v":"x"},{"$f":"IF('Потребность для загрузки'!AG7>0,'Потребность для загрузки'!AG7,\"x\")","v":"x"}]
[null,"x",{"$f":"IF('Потребность для загрузки'!AE8<>\"x x x x\",'Потребность для загрузки'!AE8,\"x\")","v":"x"},null,null,{"$f":"IF('Потребность для загрузки'!K8<>\"x\",'Потребность для загрузки'!K8,\"x\")","v":"x"},{"$f":"IF(AND('Потребность для загрузки'!J8>0,'Потребность для загрузки'!J8<>\"x\"),'Потребность для загрузки'!J8,\"x\")","v":"x"},{"$f":"IF('Потребность для загрузки'!AF8>0,'Потребность для загрузки'!AF8,\"x\")","v":"x"},{"$f":"IF('Потребность для загрузки'!AG8>0,'Потребность для загрузки'!AG8,\"x\")","v":"x"}]
[null,"x",{"$f":"IF('Потребность для загрузки'!AE9<>\"x x x x\",'Потребность для загрузки'!AE9,\"x\")","v":"x"},null,null,{"$f":"IF('Потребность для загрузки'!K9<>\"x\",'Потребность для загрузки'!K9,\"x\")","v":"x"},{"$f":"IF(AND('Потребность для загрузки'!J9>0,'Потребность для загрузки'!J9<>\"x\"),'Потребность для загрузки'!J9,\"x\")","v":"x"},{"$f":"IF('Потребность для загрузки'!AF9>0,'Потребность для загрузки'!AF9,\"x\")","v":"x"},{"$f":"IF('Потребность для загрузки'!AG9>0,'Потребность для загрузки'!AG9,\"x\")","v":"x"}]
[null,"x",{"$f":"IF('Потребность для загрузки'!AE10<>\"x x x x\",'Потребность для загрузки'!AE10,\"x\")","v":"x"},null,null,{"$f":"IF('Потребность для загрузки'!K10<>\"x\",'Потребность для загрузки'!K10,\"x\")","v":"x"},{"$f":"IF(AND('Потребность для загрузки'!J10>0,'Потребность для загрузки'!J10<>\"x\"),'Потребность для загрузки'!J10,\"x\")","v":"x"},{"$f":"IF('Потребность для загрузки'!AF10>0,'Потребность для загрузки'!AF10,\"x\")","v":"x"},{"$f":"IF('Потребность для загрузки'!AG10>0,'Потребность для загрузки'!AG10,\"x\")","v":"x"}]
[null,"x",{"$f":"IF('Потребность для загрузки'!AE11<>\"x x x x\",'Потребность для загрузки'!AE11,\"x\")","v":"x"},null,null,{"$f":"IF('Потребность для загрузки'!K11<>\"x\",'Потребность для загрузки'!K11,\"x\")","v":"x"},{"$f":"IF(AND('Потребность для загрузки'!J11>0,'Потребность для загрузки'!J11<>\"x\"),'Потребность для загрузки'!J11,\"x\")","v":"x"},{"$f":"IF('Потребность для загрузки'!AF11>0,'Потребность для загрузки'!AF11,\"x\")","v":"x"},{"$f":"IF('Потребность для загрузки'!AG11>0,'Потребность для загрузки'!AG11,\"x\")","v":"x"}]
[null,"x",{"$f":"IF('Потребность для загрузки'!AE12<>\"x x x x\",'Потребность для загрузки'!AE12,\"x\")","v":"x"},null,null,{"$f":"IF('Потребность для загрузки'!K12<>\"x\",'Потребность для загрузки'!K12,\"x\")","v":"x"},{"$f":"IF(AND('Потребность для загрузки'!J12>0,'Потребность для загрузки'!J12<>\"x\"),'Потребность для загрузки'!J12,\"x\")","v":"x"},{"$f":"IF('Потребность для загрузки'!AF12>0,'Потребность для загрузки'!AF12,\"x\")","v":"x"},{"$f":"IF('Потребность для загрузки'!AG12>0,'Потребность для загрузки'!AG12,\"x\")","v":"x"}]
[null,"x",{"$f":"IF('Потребность для загрузки'!AE13<>\"x x x x\",'Потребность для загрузки'!AE13,\"x\")","v":"x"},null,null,{"$f":"IF('Потребность для загрузки'!K13<>\"x\",'Потребность для загрузки'!K13,\"x\")","v":"x"},{"$f":"IF(AND('Потребность для загрузки'!J13>0,'Потребность для загрузки'!J13<>\"x\"),'Потребность для загрузки'!J13,\"x\")","v":"x"},{"$f":"IF('Потребность для загрузки'!AF13>0,'Потребность для загрузки'!AF13,\"x\")","v":"x"},{"$f":"IF('Потребность для загрузки'!AG13>0,'Потребность для загрузки'!AG13,\"x\")","v":"x"}]
[null,"x",{"$f":"IF('Потребность для загрузки'!AE14<>\"x x x x\",'Потребность для загрузки'!AE14,\"x\")","v":"x"},null,null,{"$f":"IF('Потребность для загрузки'!K14<>\"x\",'Потребность для загрузки'!K14,\"x\")","v":"x"},{"$f":"IF(AND('Потребность для загрузки'!J14>0,'Потребность для загрузки'!J14<>\"x\"),'Потребность для загрузки'!J14,\"x\")","v":"x"},{"$f":"IF('Потребность для загрузки'!AF14>0,'Потребность для загрузки'!AF14,\"x\")","v":"x"},{"$f":"IF('Потребность для загрузки'!AG14>0,'Потребность для загрузки'!AG14,\"x\")","v":"x"}]
[null,"x",{"$f":"IF('Потребность для загрузки'!AE15<>\"x x x x\",'Потребность для загрузки'!AE15,\"x\")","v":"x"},null,null,{"$f":"IF('Потребность для загрузки'!K15<>\"x\",'Потребность для загрузки'!K15,\"x\")","v":"x"},{"$f":"IF(AND('Потребность для загрузки'!J15>0,'Потребность для загрузки'!J15<>\"x\"),'Потребность для загрузки'!J15,\"x\")","v":"x"},{"$f":"IF('Потребность для загрузки'!AF15>0,'Потребность для загрузки'!AF15,\"x\")","v":"x"},{"$f":"IF('Потребность для загрузки'!AG15>0,'Потребность для загрузки'!AG15,\"x\")","v":"x"}]
[null,"x",{"$f":"IF('Потребность для загрузки'!AE16<>\"x x x x\",'Потребность для загрузки'!AE16,\"x\")","v":"x"},null,null,{"$f":"IF('Потребность для загрузки'!K16<>\"x\",'Потребность для загрузки'!K16,\"x\")","v":"x"},{"$f":"IF(AND('Потребность для загрузки'!J16>0,'Потребность для загрузки'!J16<>\"x\"),'Потребность для загрузки'!J16,\"x\")","v":"x"},{"$f":"IF('Потребность для загрузки'!AF16>0,'Потребность для загрузки'!AF16,\"x\")","v":"x"},{"$f":"IF('Потребность для загрузки'!AG16>0,'Потребность для загрузки'!AG16,\"x\")","v":"x"}]
[null,"x",{"$f":"IF('Потребность для загрузки'!AE17<>\"x x x x\",'Потребность для загрузки'!AE17,\"x\")","v":"x"},null,null,{"$f":"IF('Потребность для загрузки'!K17<>\"x\",'Потребность для загрузки'!K17,\"x\")","v":"x"},{"$f":"IF(AND('Потребность для загрузки'!J17>0,'Потребность для загрузки'!J17<>\"x\"),'Потребность для загрузки'!J17,\"x\")","v":"x"},{"$f":"IF('Потребность для загрузки'!AF17>0,'Потребность для загрузки'!AF17,\"x\")","v":"x"},{"$f":"IF('Потребность для загрузки'!AG17>0,'Потребность для загрузки'!AG17,\"x\")","v":"x"}]
[null,"x",{"$f":"IF('Потребность для загрузки'!AE18<>\"x x x x\",'Потребность для загрузки'!AE18,\"x\")","v":"x"},null,null,{"$f":"IF('Потребность для загрузки'!K18<>\"x\",'Потребность для загрузки'!K18,\"x\")","v":"x"},{"$f":"IF(AND('Потребность для загрузки'!J18>0,'Потребность для загрузки'!J18<>\"x\"),'Потребность для загрузки'!J18,\"x\")","v":"x"},{"$f":"IF('Потребность для загрузки'!AF18>0,'Потребность для загрузки'!AF18,\"x\")","v":"x"},{"$f":"IF('Потребность для загрузки'!AG18>0,'Потребность для загрузки'!AG18,\"x\")","v":"x"}]
[null,"x",{"$f":"IF('Потребность для загрузки'!AE19<>\"x x x x\",'Потребность для загрузки'!AE19,\"x\")","v":"x"},null,null,{"$f":"IF('Потребность для загрузки'!K19<>\"x\",'Потребность для загрузки'!K19,\"x\")","v":"x"},{"$f":"IF(AND('Потребность для загрузки'!J19>0,'Потребность для загрузки'!J19<>\"x\"),'Потребность для загрузки'!J19,\"x\")","v":"x"},{"$f":"IF('Потребность для загрузки'!AF19>0,'Потребность для загрузки'!AF19,\"x\")","v":"x"},{"$f":"IF('Потребность для загрузки'!AG19>0,'Потребность для загрузки'!AG19,\"x\")","v":"x"}]
[null,"x",{"$f":"IF('Потребность для загрузки'!AE20<>\"x x x x\",'Потребность для загрузки'!AE20,\"x\")","v":"x"},null,null,{"$f":"IF('Потребность для загрузки'!K20<>\"x\",'Потребность для загрузки'!K20,\"x\")","v":"x"},{"$f":"IF(AND('Потребность для загрузки'!J20>0,'Потребность для загрузки'!J20<>\"x\"),'Потребность для загрузки'!J20,\"x\")","v":"x"},{"$f":"IF('Потребность для загрузки'!AF20>0,'Потребность для загрузки'!AF20,\"x\")","v":"x"},{"$f":"IF('Потребность для загрузки'!AG20>0,'Потребность для загрузки'!AG20,\"x\")","v":"x"}]
[null,"x",{"$f":"IF('Потребность для загрузки'!AE21<>\"x x x x\",'Потребность для загрузки'!AE21,\"x\")","v":"x"},null,null,{"$f":"IF('Потребность для загрузки'!K21<>\"x\",'Потребность для загрузки'!K21,\"x\")","v":"x"},{"$f":"IF(AND('Потребность для загрузки'!J21>0,'Потребность для загрузки'!J21<>\"x\"),'Потребность для загрузки'!J21,\"x\")","v":"x"},{"$f":"IF('Потребность для загрузки'!AF21>0,'Потребность для загрузки'!AF21,\"x\")","v":"x"},{"$f":"IF('Потребность для загрузки'!AG21>0,'Потребность для загрузки'!AG21,\"x\")","v":"x"}]
[null,"x",{"$f":"IF('Потребность для загрузки'!AE22<>\"x x x x\",'Потребность для загрузки'!AE22,\"x\")","v":"x"},null,null,{"$f":"IF('Потребность для загрузки'!K22<>\"x\",'Потребность для загрузки'!K22,\"x\")","v":"x"},{"$f":"IF(AND('Потребность для загрузки'!J22>0,'Потребность для загрузки'!J22<>\"x\"),'Потребность для загрузки'!J22,\"x\")","v":"x"},{"$f":"IF('Потребность для загрузки'!AF22>0,'Потребность для загрузки'!AF22,\"x\")","v":"x"},{"$f":"IF('Потребность для загрузки'!AG22>0,'Потребность для загрузки'!AG22,\"x\")","v":"x"}]
[null,"x",{"$f":"IF('Потребность для загрузки'!AE23<>\"x x x x\",'Потребность для загрузки'!AE23,\"x\")","v":"x"},null,null,{"$f":"IF('Потребность для загрузки'!K23<>\"x\",'Потребность для загрузки'!K23,\"x\")","v":"x"},{"$f":"IF(AND('Потребность для загрузки'!J23>0,'Потребность для загрузки'!J23<>\"x\"),'Потребность для загрузки'!J23,\"x\")","v":"x"},{"$f":"IF('Потребность для загрузки'!AF23>0,'Потребность для загрузки'!AF23,\"x\")","v":"x"},{"$f":"IF('Потребность для загрузки'!AG23>0,'Потребность для загрузки'!AG23,\"x\")","v":"x"}]
[null,"x",{"$f":"IF('Потребность для загрузки'!AE24<>\"x x x x\",'Потребность для загрузки'!AE24,\"x\")","v":"x"},null,null,{"$f":"IF('Потребность для загрузки'!K24<>\"x\",'Потребность для загрузки'!K24,\"x\")","v":"x"},{"$f":"IF(AND('Потребность для загрузки'!J24>0,'Потребность для загрузки'!J24<>\"x\"),'Потребность для загрузки'!J24,\"x\")","v":"x"},{"$f":"IF('Потребность для загрузки'!AF24>0,'Потребность для загрузки'!AF24,\"x\")","v":"x"},{"$f":"IF('Потребность для загрузки'!AG24>0,'Потребность для загрузки'!AG24,\"x\")","v":"x"}]
[null,"x",{"$f":"IF('Потребность для загрузки'!AE25<>\"x x x x\",'Потребность для загрузки'!AE25,\"x\")","v":"x"},null,null,{"$f":"IF('Потребность для загрузки'!K25<>\"x\",'Потребность для загрузки'!K25,\"x\")","v":"x"},{"$f":"IF(AND('Потребность для загрузки'!J25>0,'Потребность для загрузки'!J25<>\"x\"),'Потребность для загрузки'!J25,\"x\")","v":"x"},{"$f":"IF('Потребность для загрузки'!AF25>0,'Потребность для загрузки'!AF25,\"x\")","v":"x"},{"$f":"IF('Потребность для загрузки'!AG25>0,'Потребность для загрузки'!AG25,\"x\")","v":"x"}]
[null,"x",{"$f":"IF('Потребность для загрузки'!AE26<>\"x x x x\",'Потребность для загрузки'!AE26,\"x\")","v":"x"},null,null,{"$f":"IF('Потребность для загрузки'!K26<>\"x\",'Потребность для загрузки'!K26,\"x\")","v":"x"},{"$f":"IF(AND('Потребность для загрузки'!J26>0,'Потребность для загрузки'!J26<>\"x\"),'Потребность для загрузки'!J26,\"x\")","v":"x"},{"$f":"IF('Потребность для загрузки'!AF26>0,'Потребность для загрузки'!AF26,\"x\")","v":"x"},{"$f":"IF('Потребность для загрузки'!AG26>0,'Потребность для загрузки'!AG26,\"x\")","v":"x"}]
[null,"x",{"$f":"IF('Потребность для загрузки'!AE27<>\"x x x x\",'Потребность для загрузки'!AE27,\"x\")","v":"x"},null,null,{"$f":"IF('Потребность для загрузки'!K27<>\"x\",'Потребность для загрузки'!K27,\"x\")","v":"x"},{"$f":"IF(AND('Потребность для загрузки'!J27>0,'Потребность для загрузки'!J27<>\"x\"),'Потребность для загрузки'!J27,\"x\")","v":"x"},{"$f":"IF('Потребность для загрузки'!AF27>0,'Потребность для загрузки'!AF27,\"x\")","v":"x"},{"$f":"IF('Потребность для загрузки'!AG27>0,'Потребность для загрузки'!AG27,\"x\")","v":"x"}]
[null,"x",{"$f":"IF('Потребность для загрузки'!AE28<>\"x x x x\",'Потребность для загрузки'!AE28,\"x\")","v":"x"},null,null,{"$f":"IF('Потребность для загрузки'!K28<>\"x\",'Потребность для загрузки'!K28,\"x\")","v":"x"},{"$f":"IF(AND('Потребность для загрузки'!J28>0,'Потребность для загрузки'!J28<>\"x\"),'Потребность для загрузки'!J28,\"x\")","v":"x"},{"$f":"IF('Потребность для загрузки'!AF28>0,'Потребность для загрузки'!AF28,\"x\")","v":"x"},{"$f":"IF('Потребность для загрузки'!AG28>0,'Потребность для загрузки'!AG28,\"x\")","v":"x"}]
[null,"x",{"$f":"IF('Потребность для загрузки'!AE29<>\"x x x x\",'Потребность для загрузки'!AE29,\"x\")","v":"x"},null,null,{"$f":"IF('Потребность для загрузки'!K29<>\"x\",'Потребность для загрузки'!K29,\"x\")","v":"x"},{"$f":"IF(AND('Потребность для загрузки'!J29>0,'Потребность для загрузки'!J29<>\"x\"),'Потребность для загрузки'!J29,\"x\")","v":"x"},{"$f":"IF('Потребность для загрузки'!AF29>0,'Потребность для загрузки'!AF29,\"x\")","v":"x"},{"$f":"IF('Потребность для загрузки'!AG29>0,'Потребность для загрузки'!AG29,\"x\")","v":"x"}]
[null,"x",{"$f":"IF('Потребность для загрузки'!AE30<>\"x x x x\",'Потребность для загрузки'!AE30,\"x\")","v":"x"},null,null,{"$f":"IF('Потребность для загрузки'!K30<>\"x\",'Потребность для загрузки'!K30,\"x\")","v":"x"},{"$f":"IF(AND('Потребность для загрузки'!J30>0,'Потребность для загрузки'!J30<>\"x\"),'Потребность для загрузки'!J30,\"x\")","v":"x"},{"$f":"IF('Потребность для загрузки'!AF30>0,'Потребность для загрузки'!AF30,\"x\")","v":"x"},{"$f":"IF('Потребность для загрузки'!AG30>0,'Потребность для загрузки'!AG30,\"x\")","v":"x"}]
[null,"x",{"$f":"IF('Потребность для загрузки'!AE31<>\"x x x x\",'Потребность для загрузки'!AE31,\"x\")","v":"x"},null,null,{"$f":"IF('Потребность для загрузки'!K31<>\"x\",'Потребность для загрузки'!K31,\"x\")","v":"x"},{"$f":"IF(AND('Потребность для загрузки'!J31>0,'Потребность для загрузки'!J31<>\"x\"),'Потребность для загрузки'!J31,\"x\")","v":"x"},{"$f":"IF('Потребность для загрузки'!AF31>0,'Потребность для загрузки'!AF31,\"x\")","v":"x"},{"$f":"IF('Потребность для загрузки'!AG31>0,'Потребность для загрузки'!AG31,\"x\")","v":"x"}]
[null,"x",{"$f":"IF('Потребность для загрузки'!AE32<>\"x x x x\",'Потребность для загрузки'!AE32,\"x\")","v":"x"},null,null,{"$f":"IF('Потребность для загрузки'!K32<>\"x\",'Потребность для загрузки'!K32,\"x\")","v":"x"},{"$f":"IF(AND('Потребность для загрузки'!J32>0,'Потребность для загрузки'!J32<>\"x\"),'Потребность для загрузки'!J32,\"x\")","v":"x"},{"$f":"IF('Потребность для загрузки'!AF32>0,'Потребность для загрузки'!AF32,\"x\")","v":"x"},{"$f":"IF('Потребность для загрузки'!AG32>0,'Потребность для загрузки'!AG32,\"x\")","v":"x"}]
[null,"x",{"$f":"IF('Потребность для загрузки'!AE33<>\"x x x x\",'Потребность для загрузки'!AE33,\"x\")","v":"x"},null,null,{"$f":"IF('Потребность для загрузки'!K33<>\"x\",'Потребность для загрузки'!K33,\"x\")","v":"x"},{"$f":"IF(AND('Потребность для загрузки'!J33>0,'Потребность для загрузки'!J33<>\"x\"),'Потребность для загрузки'!J33,\"x\")","v":"x"},{"$f":"IF('Потребность для загрузки'!AF33>0,'Потребность для загрузки'!AF33,\"x\")","v":"x"},{"$f":"IF('Потребность для загрузки'!AG33>0,'Потребность для загрузки'!AG33,\"x\")","v":"x"}]
[null,"x",{"$f":"IF('Потребность для загрузки'!AE34<>\"x x x x\",'Потребность для загрузки'!AE34,\"x\")","v":"x"},null,null,{"$f":"IF('Потребность для загрузки'!K34<>\"x\",'Потребность для загрузки'!K34,\"x\")","v":"x"},{"$f":"IF(AND('Потребность для загрузки'!J34>0,'Потребность для загрузки'!J34<>\"x\"),'Потребность для загрузки'!J34,\"x\")","v":"x"},{"$f":"IF('Потребность для загрузки'!AF34>0,'Потребность для загрузки'!AF34,\"x\")","v":"x"},{"$f":"IF('Потребность для загрузки'!AG34>0,'Потребность для загрузки'!AG34,\"x\")","v":"x"}]
[null,"x",{"$f":"IF('Потребность для загрузки'!AE35<>\"x x x x\",'Потребность для загрузки'!AE35,\"x\")","v":"x"},null,null,{"$f":"IF('Потребность для загрузки'!K35<>\"x\",'Потребность для загрузки'!K35,\"x\")","v":"x"},{"$f":"IF(AND('Потребность для загрузки'!J35>0,'Потребность для загрузки'!J35<>\"x\"),'Потребность для загрузки'!J35,\"x\")","v":"x"},{"$f":"IF('Потребность для загрузки'!AF35>0,'Потребность для загрузки'!AF35,\"x\")","v":"x"},{"$f":"IF('Потребность для загрузки'!AG35>0,'Потребность для загрузки'!AG35,\"x\")","v":"x"}]
[null,"x",{"$f":"IF('Потребность для загрузки'!AE36<>\"x x x x\",'Потребность для загрузки'!AE36,\"x\")","v":"x"},null,null,{"$f":"IF('Потребность для загрузки'!K36<>\"x\",'Потребность для загрузки'!K36,\"x\")","v":"x"},{"$f":"IF(AND('Потребность для загрузки'!J36>0,'Потребность для загрузки'!J36<>\"x\"),'Потребность для загрузки'!J36,\"x\")","v":"x"},{"$f":"IF('Потребность для загрузки'!AF36>0,'Потребность для загрузки'!AF36,\"x\")","v":"x"},{"$f":"IF('Потребность для загрузки'!AG36>0,'Потребность для загрузки'!AG36,\"x\")","v":"x"}]
[null,"x",{"$f":"IF('Потребность для загрузки'!AE37<>\"x x x x\",'Потребность для загрузки'!AE37,\"x\")","v":"x"},null,null,{"$f":"IF('Потребность для загрузки'!K37<>\"x\",'Потребность для загрузки'!K37,\"x\")","v":"x"},{"$f":"IF(AND('Потребность для загрузки'!J37>0,'Потребность для загрузки'!J37<>\"x\"),'Потребность для загрузки'!J37,\"x\")","v":"x"},{"$f":"IF('Потребность для загрузки'!AF37>0,'Потребность для загрузки'!AF37,\"x\")","v":"x"},{"$f":"IF('Потребность для загрузки'!AG37>0,'Потребность для загрузки'!AG37,\"x\")","v":"x"}]
[null,"x",{"$f":"IF('Потребность для загрузки'!AE38<>\"x x x x\",'Потребность для загрузки'!AE38,\"x\")","v":"x"},null,null,{"$f":"IF('Потребность для загрузки'!K38<>\"x\",'Потребность для загрузки'!K38,\"x\")","v":"x"},{"$f":"IF(AND('Потребность для загрузки'!J38>0,'Потребность для загрузки'!J38<>\"x\"),'Потребность для загрузки'!J38,\"x\")","v":"x"},{"$f":"IF('Потребность для загрузки'!AF38>0,'Потребность для загрузки'!AF38,\"x\")","v":"x"},{"$f":"IF('Потребность для загрузки'!AG38>0,'Потребность для загрузки'!AG38,\"x\")","v":"x"}]
[null,"x",{"$f":"IF('Потребность для загрузки'!AE39<>\"x x x x\",'Потребность для загрузки'!AE39,\"x\")","v":"x"},null,null,{"$f":"IF('Потребность для загрузки'!K39<>\"x\",'Потребность для загрузки'!K39,\"x\")","v":"x"},{"$f":"IF(AND('Потребность для загрузки'!J39>0,'Потребность для загрузки'!J39<>\"x\"),'Потребность для загрузки'!J39,\"x\")","v":"x"},{"$f":"IF('Потребность для загрузки'!AF39>0,'Потребность для загрузки'!AF39,\"x\")","v":"x"},{"$f":"IF('Потребность для загрузки'!AG39>0,'Потребность для загрузки'!AG39,\"x\")","v":"x"}]
[null,"x",{"$f":"IF('Потребность для загрузки'!AE40<>\"x x x x\",'Потребность для загрузки'!AE40,\"x\")","v":"x"},null,null,{"$f":"IF('Потребность для загрузки'!K40<>\"x\",'Потребность для загрузки'!K40,\"x\")","v":"x"},{"$f":"IF(AND('Потребность для загрузки'!J40>0,'Потребность для загрузки'!J40<>\"x\"),'Потребность для загрузки'!J40,\"x\")","v":"x"},{"$f":"IF('Потребность для загрузки'!AF40>0,'Потребность для загрузки'!AF40,\"x\")","v":"x"},{"$f":"IF('Потребность для загрузки'!AG40>0,'Потребность для загрузки'!AG40,\"x\")","v":"x"}]
[null,"x",{"$f":"IF('Потребность для загрузки'!AE41<>\"x x x x\",'Потребность для загрузки'!AE41,\"x\")","v":"x"},null,null,{"$f":"IF('Потребность для загрузки'!K41<>\"x\",'Потребность для загрузки'!K41,\"x\")","v":"x"},{"$f":"IF(AND('Потребность для загрузки'!J41>0,'Потребность для загрузки'!J41<>\"x\"),'Потребность для загрузки'!J41,\"x\")","v":"x"},{"$f":"IF('Потребность для загрузки'!AF41>0,'Потребность для загрузки'!AF41,\"x\")","v":"x"},{"$f":"IF('Потребность для загрузки'!AG41>0,'Потребность для загрузки'!AG41,\"x\")","v":"x"}]
[null,"x",{"$f":"IF('Потребность для загрузки'!AE42<>\"x x x x\",'Потребность для загрузки'!AE42,\"x\")","v":"x"},null,null,{"$f":"IF('Потребность для загрузки'!K42<>\"x\",'Потребность для загрузки'!K42,\"x\")","v":"x"},{"$f":"IF(AND('Потребность для загрузки'!J42>0,'Потребность для загрузки'!J42<>\"x\"),'Потребность для загрузки'!J42,\"x\")","v":"x"},{"$f":"IF('Потребность для загрузки'!AF42>0,'Потребность для загрузки'!AF42,\"x\")","v":"x"},{"$f":"IF('Потребность для загрузки'!AG42>0,'Потребность для загрузки'!AG42,\"x\")","v":"x"}]
[null,"x",{"$f":"IF('Потребность для загрузки'!AE43<>\"x x x x\",'Потребность для загрузки'!AE43,\"x\")","v":"x"},null,null,{"$f":"IF('Потребность для загрузки'!K43<>\"x\",'Потребность для загрузки'!K43,\"x\")","v":"x"},{"$f":"IF(AND('Потребность для загрузки'!J43>0,'Потребность для загрузки'!J43<>\"x\"),'Потребность для загрузки'!J43,\"x\")","v":"x"},{"$f":"IF('Потребность для загрузки'!AF43>0,'Потребность для загрузки'!AF43,\"x\")","v":"x"},{"$f":"IF('Потребность для загрузки'!AG43>0,'Потребность для загрузки'!AG43,\"x\")","v":"x"}]
[null,"x",{"$f":"IF('Потребность для загрузки'!AE44<>\"x x x x\",'Потребность для загрузки'!AE44,\"x\")","v":"x"},null,null,{"$f":"IF('Потребность для загрузки'!K44<>\"x\",'Потребность для загрузки'!K44,\"x\")","v":"x"},{"$f":"IF(AND('Потребность для загрузки'!J44>0,'Потребность для загрузки'!J44<>\"x\"),'Потребность для загрузки'!J44,\"x\")","v":"x"},{"$f":"IF('Потребность для загрузки'!AF44>0,'Потребность для загрузки'!AF44,\"x\")","v":"x"},{"$f":"IF('Потребность для загрузки'!AG44>0,'Потребность для загрузки'!AG44,\"x\")","v":"x"}]
[null,"x",{"$f":"IF('Потребность для загрузки'!AE45<>\"x x x x\",'Потребность для загрузки'!AE45,\"x\")","v":"x"},null,null,{"$f":"IF('Потребность для загрузки'!K45<>\"x\",'Потребность для загрузки'!K45,\"x\")","v":"x"},{"$f":"IF(AND('Потребность для загрузки'!J45>0,'Потребность для загрузки'!J45<>\"x\"),'Потребность для загрузки'!J45,\"x\")","v":"x"},{"$f":"IF('Потребность для загрузки'!AF45>0,'Потребность для загрузки'!AF45,\"x\")","v":"x"},{"$f":"IF('Потребность для загрузки'!AG45>0,'Потребность для загрузки'!AG45,\"x\")","v":"x"}]
[null,"x",{"$f":"IF('Потребность для загрузки'!AE46<>\"x x x x\",'Потребность для загрузки'!AE46,\"x\")","v":"x"},null,null,{"$f":"IF('Потребность для загрузки'!K46<>\"x\",'Потребность для загрузки'!K46,\"x\")","v":"x"},{"$f":"IF(AND('Потребность для загрузки'!J46>0,'Потребность для загрузки'!J46<>\"x\"),'Потребность для загрузки'!J46,\"x\")","v":"x"},{"$f":"IF('Потребность для загрузки'!AF46>0,'Потребность для загрузки'!AF46,\"x\")","v":"x"},{"$f":"IF('Потребность для загрузки'!AG46>0,'Потребность для загрузки'!AG46,\"x\")","v":"x"}]
[null,"x",{"$f":"IF('Потребность для загрузки'!AE47<>\"x x x x\",'Потребность для загрузки'!AE47,\"x\")","v":"x"},null,null,{"$f":"IF('Потребность для загрузки'!K47<>\"x\",'Потребность для загрузки'!K47,\"x\")","v":"x"},{"$f":"IF(AND('Потребность для загрузки'!J47>0,'Потребность для загрузки'!J47<>\"x\"),'Потребность для загрузки'!J47,\"x\")","v":"x"},{"$f":"IF('Потребность для загрузки'!AF47>0,'Потребность для загрузки'!AF47,\"x\")","v":"x"},{"$f":"IF('Потребность для загрузки'!AG47>0,'Потребность для загрузки'!AG47,\"x\")","v":"x"}]
[null,"x",{"$f":"IF('Потребность для загрузки'!AE48<>\"x x x x\",'Потребность для загрузки'!AE48,\"x\")","v":"x"},null,null,{"$f":"IF('Потребность для загрузки'!K48<>\"x\",'Потребность для загрузки'!K48,\"x\")","v":"x"},{"$f":"IF(AND('Потребность для загрузки'!J48>0,'Потребность для загрузки'!J48<>\"x\"),'Потребность для загрузки'!J48,\"x\")","v":"x"},{"$f":"IF('Потребность для загрузки'!AF48>0,'Потребность для загрузки'!AF48,\"x\")","v":"x"},{"$f":"IF('Потребность для загрузки'!AG48>0,'Потребность для загрузки'!AG48,\"x\")","v":"x"}]
[null,"x",{"$f":"IF('Потребность для загрузки'!AE49<>\"x x x x\",'Потребность для загрузки'!AE49,\"x\")","v":"x"},null,null,{"$f":"IF('Потребность для загрузки'!K49<>\"x\",'Потребность для загрузки'!K49,\"x\")","v":"x"},{"$f":"IF(AND('Потребность для загрузки'!J49>0,'Потребность для загрузки'!J49<>\"x\"),'Потребность для загрузки'!J49,\"x\")","v":"x"},{"$f":"IF('Потребность для загрузки'!AF49>0,'Потребность для загрузки'!AF49,\"x\")","v":"x"},{"$f":"IF('Потребность для загрузки'!AG49>0,'Потребность для загрузки'!AG49,\"x\")","v":"x"}]
[null,"x",{"$f":"IF('Потребность для загрузки'!AE50<>\"x x x x\",'Потребность для загрузки'!AE50,\"x\")","v":"x"},null,null,{"$f":"IF('Потребность для загрузки'!K50<>\"x\",'Потребность для загрузки'!K50,\"x\")","v":"x"},{"$f":"IF(AND('Потребность для загрузки'!J50>0,'Потребность для загрузки'!J50<>\"x\"),'Потребность для загрузки'!J50,\"x\")","v":"x"},{"$f":"IF('Потребность для загрузки'!AF50>0,'Потребность для загрузки'!AF50,\"x\")","v":"x"},{"$f":"IF('Потребность для загрузки'!AG50>0,'Потребность для загрузки'!AG50,\"x\")","v":"x"}]
[null,"x",{"$f":"IF('Потребность для загрузки'!AE51<>\"x x x x\",'Потребность для загрузки'!AE51,\"x\")","v":"x"},null,null,{"$f":"IF('Потребность для загрузки'!K51<>\"x\",'Потребность для загрузки'!K51,\"x\")","v":"x"},{"$f":"IF(AND('Потребность для загрузки'!J51>0,'Потребность для загрузки'!J51<>\"x\"),'Потребность для загрузки'!J51,\"x\")","v":"x"},{"$f":"IF('Потребность для загрузки'!AF51>0,'Потребность для загрузки'!AF51,\"x\")","v":"x"},{"$f":"IF('Потребность для загрузки'!AG51>0,'Потребность для загрузки'!AG51,\"x\")","v":"x"}]
[null,"x",{"$f":"IF('Потребность для загрузки'!AE52<>\"x x x x\",'Потребность для загрузки'!AE52,\"x\")","v":"x"},null,null,{"$f":"IF('Потребность для загрузки'!K52<>\"x\",'Потребность для загрузки'!K52,\"x\")","v":"x"},{"$f":"IF(AND('Потребность для загрузки'!J52>0,'Потребность для загрузки'!J52<>\"x\"),'Потребность для загрузки'!J52,\"x\")","v":"x"},{"$f":"IF('Потребность для загрузки'!AF52>0,'Потребность для загрузки'!AF52,\"x\")","v":"x"},{"$f":"IF('Потребность для загрузки'!AG52>0,'Потребность для загрузки'!AG52,\"x\")","v":"x"}]
[null,"x",{"$f":"IF('Потребность для загрузки'!AE53<>\"x x x x\",'Потребность для загрузки'!AE53,\"x\")","v":"x"},null,null,{"$f":"IF('Потребность для загрузки'!K53<>\"x\",'Потребность для загрузки'!K53,\"x\")","v":"x"},{"$f":"IF(AND('Потребность для загрузки'!J53>0,'Потребность для загрузки'!J53<>\"x\"),'Потребность для загрузки'!J53,\"x\")","v":"x"},{"$f":"IF('Потребность для загрузки'!AF53>0,'Потребность для загрузки'!AF53,\"x\")","v":"x"},{"$f":"IF('Потребность для загрузки'!AG53>0,'Потребность для загрузки'!AG53,\"x\")","v":"x"}]
[null,"x",{"$f":"IF('Потребность для загрузки'!AE54<>\"x x x x\",'Потребность для загрузки'!AE54,\"x\")","v":"x"},null,null,{"$f":"IF('Потребность для загрузки'!K54<>\"x\",'Потребность для загрузки'!K54,\"x\")","v":"x"},{"$f":"IF(AND('Потребность для загрузки'!J54>0,'Потребность для загрузки'!J54<>\"x\"),'Потребность для загрузки'!J54,\"x\")","v":"x"},{"$f":"IF('Потребность для загрузки'!AF54>0,'Потребность для загрузки'!AF54,\"x\")","v":"x"},{"$f":"IF('Потребность для загрузки'!AG54>0,'Потребность для загрузки'!AG54,\"x\")","v":"x"}]
[null,"x",{"$f":"IF('Потребность для загрузки'!AE55<>\"x x x x\",'Потребность для загрузки'!AE55,\"x\")","v":"x"},null,null,{"$f":"IF('Потребность для загрузки'!K55<>\"x\",'Потребность для загрузки'!K55,\"x\")","v":"x"},{"$f":"IF(AND('Потребность для загрузки'!J55>0,'Потребность для загрузки'!J55<>\"x\"),'Потребность для загрузки'!J55,\"x\")","v":"x"},{"$f":"IF('Потребность для загрузки'!AF55>0,'Потребность для загрузки'!AF55,\"x\")","v":"x"},{"$f":"IF('Потребность для загрузки'!AG55>0,'Потребность для загрузки'!AG55,\"x\")","v":"x"}]
[null,"x",{"$f":"IF('Потребность для загрузки'!AE56<>\"x x x x\",'Потребность для загрузки'!AE56,\"x\")","v":"x"},null,null,{"$f":"IF('Потребность для загрузки'!K56<>\"x\",'Потребность для загрузки'!K56,\"x\")","v":"x"},{"$f":"IF(AND('Потребность для загрузки'!J56>0,'Потребность для загрузки'!J56<>\"x\"),'Потребность для загрузки'!J56,\"x\")","v":"x"},{"$f":"IF('Потребность для загрузки'!AF56>0,'Потребность для загрузки'!AF56,\"x\")","v":"x"},{"$f":"IF('Потребность для загрузки'!AG56>0,'Потребность для загрузки'!AG56,\"x\")","v":"x"}]
[null,"x",{"$f":"IF('Потребность для загрузки'!AE57<>\"x x x x\",'Потребность для загрузки'!AE57,\"x\")","v":"x"},null,null,{"$f":"IF('Потребность для загрузки'!K57<>\"x\",'Потребность для загрузки'!K57,\"x\")","v":"x"},{"$f":"IF(AND('Потребность для загрузки'!J57>0,'Потребность для загрузки'!J57<>\"x\"),'Потребность для загрузки'!J57,\"x\")","v":"x"},{"$f":"IF('Потребность для загрузки'!AF57>0,'Потребность для загрузки'!AF57,\"x\")","v":"x"},{"$f":"IF('Потребность для загрузки'!AG57>0,'Потребность для загрузки'!AG57,\"x\")","v":"x"}]
[null,"x",{"$f":"IF('Потребность для загрузки'!AE58<>\"x x x x\",'Потребность для загрузки'!AE58,\"x\")","v":"x"},null,null,{"$f":"IF('Потребность для загрузки'!K58<>\"x\",'Потребность для загрузки'!K58,\"x\")","v":"x"},{"$f":"IF(AND('Потребность для загрузки'!J58>0,'Потребность для загрузки'!J58<>\"x\"),'Потребность для загрузки'!J58,\"x\")","v":"x"},{"$f":"IF('Потребность для загрузки'!AF58>0,'Потребность для загрузки'!AF58,\"x\")","v":"x"},{"$f":"IF('Потребность для загрузки'!AG58>0,'Потребность для загрузки'!AG58,\"x\")","v":"x"}]
[null,"x",{"$f":"IF('Потребность для загрузки'!AE59<>\"x x x x\",'Потребность для загрузки'!AE59,\"x\")","v":"x"},null,null,{"$f":"IF('Потребность для загрузки'!K59<>\"x\",'Потребность для загрузки'!K59,\"x\")","v":"x"},{"$f":"IF(AND('Потребность для загрузки'!J59>0,'Потребность для загрузки'!J59<>\"x\"),'Потребность для загрузки'!J59,\"x\")","v":"x"},{"$f":"IF('Потребность для загрузки'!AF59>0,'Потребность для загрузки'!AF59,\"x\")","v":"x"},{"$f":"IF('Потребность для загрузки'!AG59>0,'Потребность для загрузки'!AG59,\"x\")","v":"x"}]
[null,"x",{"$f":"IF('Потребность для загрузки'!AE60<>\"x x x x\",'Потребность для загрузки'!AE60,\"x\")","v":"x"},null,null,{"$f":"IF('Потребность для загрузки'!K60<>\"x\",'Потребность для загрузки'!K60,\"x\")","v":"x"},{"$f":"IF(AND('Потребность для загрузки'!J60>0,'Потребность для загрузки'!J60<>\"x\"),'Потребность для загрузки'!J60,\"x\")","v":"x"},{"$f":"IF('Потребность для загрузки'!AF60>0,'Потребность для загрузки'!AF60,\"x\")","v":"x"},{"$f":"IF('Потребность для загрузки'!AG60>0,'Потребность для загрузки'!AG60,\"x\")","v":"x"}]
[null,"x",{"$f":"IF('Потребность для загрузки'!AE61<>\"x x x x\",'Потребность для загрузки'!AE61,\"x\")","v":"x"},null,null,{"$f":"IF('Потребность для загрузки'!K61<>\"x\",'Потребность для загрузки'!K61,\"x\")","v":"x"},{"$f":"IF(AND('Потребность для загрузки'!J61>0,'Потребность для загрузки'!J61<>\"x\"),'Потребность для загрузки'!J61,\"x\")","v":"x"},{"$f":"IF('Потребность для загрузки'!AF61>0,'Потребность для загрузки'!AF61,\"x\")","v":"x"},{"$f":"IF('Потребность для загрузки'!AG61>0,'Потребность для загрузки'!AG61,\"x\")","v":"x"}]
[null,"x",{"$f":"IF('Потребность для загрузки'!AE62<>\"x x x x\",'Потребность для загрузки'!AE62,\"x\")","v":"x"},null,null,{"$f":"IF('Потребность для загрузки'!K62<>\"x\",'Потребность для загрузки'!K62,\"x\")","v":"x"},{"$f":"IF(AND('Потребность для загрузки'!J62>0,'Потребность для загрузки'!J62<>\"x\"),'Потребность для загрузки'!J62,\"x\")","v":"x"},{"$f":"IF('Потребность для загрузки'!AF62>0,'Потребность для загрузки'!AF62,\"x\")","v":"x"},{"$f":"IF('Потребность для загрузки'!AG62>0,'Потребность для загрузки'!AG62,\"x\")","v":"x"}]
[null,"x",{"$f":"IF('Потребность для загрузки'!AE63<>\"x x x x\",'Потребность для загрузки'!AE63,\"x\")","v":"x"},null,null,{"$f":"IF('Потребность для загрузки'!K63<>\"x\",'Потребность для загрузки'!K63,\"x\")","v":"x"},{"$f":"IF(AND('Потребность для загрузки'!J63>0,'Потребность для загрузки'!J63<>\"x\"),'Потребность для загрузки'!J63,\"x\")","v":"x"},{"$f":"IF('Потребность для загрузки'!AF63>0,'Потребность для загрузки'!AF63,\"x\")","v":"x"},{"$f":"IF('Потребность для загрузки'!AG63>0,'Потребность для загрузки'!AG63,\"x\")","v":"x"}]
[null,"x",{"$f":"IF('Потребность для загрузки'!AE64<>\"x x x x\",'Потребность для загрузки'!AE64,\"x\")","v":"x"},null,null,{"$f":"IF('Потребность для загрузки'!K64<>\"x\",'Потребность для загрузки'!K64,\"x\")","v":"x"},{"$f":"IF(AND('Потребность для загрузки'!J64>0,'Потребность для загрузки'!J64<>\"x\"),'Потребность для загрузки'!J64,\"x\")","v":"x"},{"$f":"IF('Потребность для загрузки'!AF64>0,'Потребность для загрузки'!AF64,\"x\")","v":"x"},{"$f":"IF('Потребность для загрузки'!AG64>0,'Потребность для загрузки'!AG64,\"x\")","v":"x"}]
[null,"x",{"$f":"IF('Потребность для загрузки'!AE65<>\"x x x x\",'Потребность для загрузки'!AE65,\"x\")","v":"x"},null,null,{"$f":"IF('Потребность для загрузки'!K65<>\"x\",'Потребность для загрузки'!K65,\"x\")","v":"x"},{"$f":"IF(AND('Потребность для загрузки'!J65>0,'Потребность для загрузки'!J65<>\"x\"),'Потребность для загрузки'!J65,\"x\")","v":"x"},{"$f":"IF('Потребность для загрузки'!AF65>0,'Потребность для загрузки'!AF65,\"x\")","v":"x"},{"$f":"IF('Потребность для загрузки'!AG65>0,'Потребность для загрузки'!AG65,\"x\")","v":"x"}]
[null,"x",{"$f":"IF('Потребность для загрузки'!AE66<>\"x x x x\",'Потребность для загрузки'!AE66,\"x\")","v":"x"},null,null,{"$f":"IF('Потребность для загрузки'!K66<>\"x\",'Потребность для загрузки'!K66,\"x\")","v":"x"},{"$f":"IF(AND('Потребность для загрузки'!J66>0,'Потребность для загрузки'!J66<>\"x\"),'Потребность для загрузки'!J66,\"x\")","v":"x"},{"$f":"IF('Потребность для загрузки'!AF66>0,'Потребность для загрузки'!AF66,\"x\")","v":"x"},{"$f":"IF('Потребность для загрузки'!AG66>0,'Потребность для загрузки'!AG66,\"x\")","v":"x"}]
[null,"x",{"$f":"IF('Потребность для загрузки'!AE67<>\"x x x x\",'Потребность для загрузки'!AE67,\"x\")","v":"x"},null,null,{"$f":"IF('Потребность для загрузки'!K67<>\"x\",'Потребность для загрузки'!K67,\"x\")","v":"x"},{"$f":"IF(AND('Потребность для загрузки'!J67>0,'Потребность для загрузки'!J67<>\"x\"),'Потребность для загрузки'!J67,\"x\")","v":"x"},{"$f":"IF('Потребность для загрузки'!AF67>0,'Потребность для загрузки'!AF67,\"x\")","v":"x"},{"$f":"IF('Потребность для загрузки'!AG67>0,'Потребность для загрузки'!AG67,\"x\")","v":"x"}]
[null,"x",{"$f":"IF('Потребность для загрузки'!AE68<>\"x x x x\",'Потребность для загрузки'!AE68,\"x\")","v":"x"},null,null,{"$f":"IF('Потребность для загрузки'!K68<>\"x\",'Потребность для загрузки'!K68,\"x\")","v":"x"},{"$f":"IF(AND('Потребность для загрузки'!J68>0,'Потребность для загрузки'!J68<>\"x\"),'Потребность для загрузки'!J68,\"x\")","v":"x"},{"$f":"IF('Потребность для загрузки'!AF68>0,'Потребность для загрузки'!AF68,\"x\")","v":"x"},{"$f":"IF('Потребность для загрузки'!AG68>0,'Потребность для загрузки'!AG68,\"x\")","v":"x"}]
[null,"x",{"$f":"IF('Потребность для загрузки'!AE69<>\"x x x x\",'Потребность для загрузки'!AE69,\"x\")","v":"x"},null,null,{"$f":"IF('Потребность для загрузки'!K69<>\"x\",'Потребность для загрузки'!K69,\"x\")","v":"x"},{"$f":"IF(AND('Потребность для загрузки'!J69>0,'Потребность для загрузки'!J69<>\"x\"),'Потребность для загрузки'!J69,\"x\")","v":"x"},{"$f":"IF('Потребность для загрузки'!AF69>0,'Потребность для загрузки'!AF69,\"x\")","v":"x"},{"$f":"IF('Потребность для загрузки'!AG69>0,'Потребность для загрузки'!AG69,\"x\")","v":"x"}]
[null,{"$f":"IF(AND(C85<>\"\",C85<>\"x\"),B84+1,\"x\")","v":"x"},{"$f":"IF('Потребность для загрузки'!AE70<>\"x x x x\",'Потребность для загрузки'!AE70,\"x\")","v":"x"},null,null,{"$f":"IF('Потребность для загрузки'!K70<>\"x\",'Потребность для загрузки'!K70,\"x\")","v":"x"},{"$f":"IF(AND('Потребность для загрузки'!J70>0,'Потребность для загрузки'!J70<>\"x\"),'Потребность для загрузки'!J70,\"x\")","v":"x"},{"$f":"IF('Потребность для загрузки'!AF70>0,'Потребность для загрузки'!AF70,\"x\")","v":"x"},{"$f":"IF('Потребность для загрузки'!AG70>0,'Потребность для загрузки'!AG70,\"x\")","v":"x"}]
[null,"x",{"$f":"IF('Потребность для загрузки'!AE71<>\"x x x x\",'Потребность для загрузки'!AE71,\"x\")","v":"x"},null,null,{"$f":"IF('Потребность для загрузки'!K71<>\"x\",'Потребность для загрузки'!K71,\"x\")","v":"x"},{"$f":"IF(AND('Потребность для загрузки'!J71>0,'Потребность для загрузки'!J71<>\"x\"),'Потребность для загрузки'!J71,\"x\")","v":"x"},{"$f":"IF('Потребность для загрузки'!AF71>0,'Потребность для загрузки'!AF71,\"x\")","v":"x"},{"$f":"IF('Потребность для загрузки'!AG71>0,'Потребность для загрузки'!AG71,\"x\")","v":"x"}]
[null,"x",{"$f":"IF('Потребность для загрузки'!AE72<>\"x x x x\",'Потребность для загрузки'!AE72,\"x\")","v":"x"},null,null,{"$f":"IF('Потребность для загрузки'!K72<>\"x\",'Потребность для загрузки'!K72,\"x\")","v":"x"},{"$f":"IF(AND('Потребность для загрузки'!J72>0,'Потребность для загрузки'!J72<>\"x\"),'Потребность для загрузки'!J72,\"x\")","v":"x"},{"$f":"IF('Потребность для загрузки'!AF72>0,'Потребность для загрузки'!AF72,\"x\")","v":"x"},{"$f":"IF('Потребность для загрузки'!AG72>0,'Потребность для загрузки'!AG72,\"x\")","v":"x"}]
[null,"x",{"$f":"IF('Потребность для загрузки'!AE73<>\"x x x x\",'Потребность для загрузки'!AE73,\"x\")","v":"x"},null,null,{"$f":"IF('Потребность для загрузки'!K73<>\"x\",'Потребность для загрузки'!K73,\"x\")","v":"x"},{"$f":"IF(AND('Потребность для загрузки'!J73>0,'Потребность для загрузки'!J73<>\"x\"),'Потребность для загрузки'!J73,\"x\")","v":"x"},{"$f":"IF('Потребность для загрузки'!AF73>0,'Потребность для загрузки'!AF73,\"x\")","v":"x"},{"$f":"IF('Потребность для загрузки'!AG73>0,'Потребность для загрузки'!AG73,\"x\")","v":"x"}]
[null,"x",{"$f":"IF('Потребность для загрузки'!AE74<>\"x x x x\",'Потребность для загрузки'!AE74,\"x\")","v":"x"},null,null,{"$f":"IF('Потребность для загрузки'!K74<>\"x\",'Потребность для загрузки'!K74,\"x\")","v":"x"},{"$f":"IF(AND('Потребность для загрузки'!J74>0,'Потребность для загрузки'!J74<>\"x\"),'Потребность для загрузки'!J74,\"x\")","v":"x"},{"$f":"IF('Потребность для загрузки'!AF74>0,'Потребность для загрузки'!AF74,\"x\")","v":"x"},{"$f":"IF('Потребность для загрузки'!AG74>0,'Потребность для загрузки'!AG74,\"x\")","v":"x"}]
[null,"x",{"$f":"IF('Потребность для загрузки'!AE75<>\"x x x x\",'Потребность для загрузки'!AE75,\"x\")","v":"x"},null,null,{"$f":"IF('Потребность для загрузки'!K75<>\"x\",'Потребность для загрузки'!K75,\"x\")","v":"x"},{"$f":"IF(AND('Потребность для загрузки'!J75>0,'Потребность для загрузки'!J75<>\"x\"),'Потребность для загрузки'!J75,\"x\")","v":"x"},{"$f":"IF('Потребность для загрузки'!AF75>0,'Потребность для загрузки'!AF75,\"x\")","v":"x"},{"$f":"IF('Потребность для загрузки'!AG75>0,'Потребность для загрузки'!AG75,\"x\")","v":"x"}]
[null,"x",{"$f":"IF('Потребность для загрузки'!AE76<>\"x x x x\",'Потребность для загрузки'!AE76,\"x\")","v":"x"},null,null,{"$f":"IF('Потребность для загрузки'!K76<>\"x\",'Потребность для загрузки'!K76,\"x\")","v":"x"},{"$f":"IF(AND('Потребность для загрузки'!J76>0,'Потребность для загрузки'!J76<>\"x\"),'Потребность для загрузки'!J76,\"x\")","v":"x"},{"$f":"IF('Потребность для загрузки'!AF76>0,'Потребность для загрузки'!AF76,\"x\")","v":"x"},{"$f":"IF('Потребность для загрузки'!AG76>0,'Потребность для загрузки'!AG76,\"x\")","v":"x"}]
[null,"x",{"$f":"IF('Потребность для загрузки'!AE77<>\"x x x x\",'Потребность для загрузки'!AE77,\"x\")","v":"x"},null,null,{"$f":"IF('Потребность для загрузки'!K77<>\"x\",'Потребность для загрузки'!K77,\"x\")","v":"x"},{"$f":"IF(AND('Потребность для загрузки'!J77>0,'Потребность для загрузки'!J77<>\"x\"),'Потребность для загрузки'!J77,\"x\")","v":"x"},{"$f":"IF('Потребность для загрузки'!AF77>0,'Потребность для загрузки'!AF77,\"x\")","v":"x"},{"$f":"IF('Потребность для загрузки'!AG77>0,'Потребность для загрузки'!AG77,\"x\")","v":"x"}]
[null,"x",{"$f":"IF('Потребность для загрузки'!AE78<>\"x x x x\",'Потребность для загрузки'!AE78,\"x\")","v":"x"},null,null,{"$f":"IF('Потребность для загрузки'!K78<>\"x\",'Потребность для загрузки'!K78,\"x\")","v":"x"},{"$f":"IF(AND('Потребность для загрузки'!J78>0,'Потребность для загрузки'!J78<>\"x\"),'Потребность для загрузки'!J78,\"x\")","v":"x"},{"$f":"IF('Потребность для загрузки'!AF78>0,'Потребность для загрузки'!AF78,\"x\")","v":"x"},{"$f":"IF('Потребность для загрузки'!AG78>0,'Потребность для загрузки'!AG78,\"x\")","v":"x"}]
[null,"x",{"$f":"IF('Потребность для загрузки'!AE79<>\"x x x x\",'Потребность для загрузки'!AE79,\"x\")","v":"x"},null,null,{"$f":"IF('Потребность для загрузки'!K79<>\"x\",'Потребность для загрузки'!K79,\"x\")","v":"x"},{"$f":"IF(AND('Потребность для загрузки'!J79>0,'Потребность для загрузки'!J79<>\"x\"),'Потребность для загрузки'!J79,\"x\")","v":"x"},{"$f":"IF('Потребность для загрузки'!AF79>0,'Потребность для загрузки'!AF79,\"x\")","v":"x"},{"$f":"IF('Потребность для загрузки'!AG79>0,'Потребность для загрузки'!AG79,\"x\")","v":"x"}]
[null,"x",{"$f":"IF('Потребность для загрузки'!AE80<>\"x x x x\",'Потребность для загрузки'!AE80,\"x\")","v":"x"},null,null,{"$f":"IF('Потребность для загрузки'!K80<>\"x\",'Потребность для загрузки'!K80,\"x\")","v":"x"},{"$f":"IF(AND('Потребность для загрузки'!J80>0,'Потребность для загрузки'!J80<>\"x\"),'Потребность для загрузки'!J80,\"x\")","v":"x"},{"$f":"IF('Потребность для загрузки'!AF80>0,'Потребность для загрузки'!AF80,\"x\")","v":"x"},{"$f":"IF('Потребность для загрузки'!AG80>0,'Потребность для загрузки'!AG80,\"x\")","v":"x"}]
[null,"x",{"$f":"IF('Потребность для загрузки'!AE81<>\"x x x x\",'Потребность для загрузки'!AE81,\"x\")","v":"x"},null,null,{"$f":"IF('Потребность для загрузки'!K81<>\"x\",'Потребность для загрузки'!K81,\"x\")","v":"x"},{"$f":"IF(AND('Потребность для загрузки'!J81>0,'Потребность для загрузки'!J81<>\"x\"),'Потребность для загрузки'!J81,\"x\")","v":"x"},{"$f":"IF('Потребность для загрузки'!AF81>0,'Потребность для загрузки'!AF81,\"x\")","v":"x"},{"$f":"IF('Потребность для загрузки'!AG81>0,'Потребность для загрузки'!AG81,\"x\")","v":"x"}]
[null,"x",{"$f":"IF('Потребность для загрузки'!AE82<>\"x x x x\",'Потребность для загрузки'!AE82,\"x\")","v":"x"},null,null,{"$f":"IF('Потребность для загрузки'!K82<>\"x\",'Потребность для загрузки'!K82,\"x\")","v":"x"},{"$f":"IF(AND('Потребность для загрузки'!J82>0,'Потребность для загрузки'!J82<>\"x\"),'Потребность для загрузки'!J82,\"x\")","v":"x"},{"$f":"IF('Потребность для загрузки'!AF82>0,'Потребность для загрузки'!AF82,\"x\")","v":"x"},{"$f":"IF('Потребность для загрузки'!AG82>0,'Потребность для загрузки'!AG82,\"x\")","v":"x"}]
[null,"x",{"$f":"IF('Потребность для загрузки'!AE83<>\"x x x x\",'Потребность для загрузки'!AE83,\"x\")","v":"x"},null,null,{"$f":"IF('Потребность для загрузки'!K83<>\"x\",'Потребность для загрузки'!K83,\"x\")","v":"x"},{"$f":"IF(AND('Потребность для загрузки'!J83>0,'Потребность для загрузки'!J83<>\"x\"),'Потребность для загрузки'!J83,\"x\")","v":"x"},{"$f":"IF('Потребность для загрузки'!AF83>0,'Потребность для загрузки'!AF83,\"x\")","v":"x"},{"$f":"IF('Потребность для загрузки'!AG83>0,'Потребность для загрузки'!AG83,\"x\")","v":"x"}]
[null,"x",{"$f":"IF('Потребность для загрузки'!AE84<>\"x x x x\",'Потребность для загрузки'!AE84,\"x\")","v":"x"},null,null,{"$f":"IF('Потребность для загрузки'!K84<>\"x\",'Потребность для загрузки'!K84,\"x\")","v":"x"},{"$f":"IF(AND('Потребность для загрузки'!J84>0,'Потребность для загрузки'!J84<>\"x\"),'Потребность для загрузки'!J84,\"x\")","v":"x"},{"$f":"IF('Потребность для загрузки'!AF84>0,'Потребность для загрузки'!AF84,\"x\")","v":"x"},{"$f":"IF('Потребность для загрузки'!AG84>0,'Потребность для загрузки'!AG84,\"x\")","v":"x"}]
[null,"x",{"$f":"IF('Потребность для загрузки'!AE85<>\"x x x x\",'Потребность для загрузки'!AE85,\"x\")","v":"x"},null,null,{"$f":"IF('Потребность для загрузки'!K85<>\"x\",'Потребность для загрузки'!K85,\"x\")","v":"x"},{"$f":"IF(AND('Потребность для загрузки'!J85>0,'Потребность для загрузки'!J85<>\"x\"),'Потребность для загрузки'!J85,\"x\")","v":"x"},{"$f":"IF('Потребность для загрузки'!AF85>0,'Потребность для загрузки'!AF85,\"x\")","v":"x"},{"$f":"IF('Потребность для загрузки'!AG85>0,'Потребность для загрузки'!AG85,\"x\")","v":"x"}]
[null,"x",{"$f":"IF('Потребность для загрузки'!AE86<>\"x x x x\",'Потребность для загрузки'!AE86,\"x\")","v":"x"},null,null,{"$f":"IF('Потребность для загрузки'!K86<>\"x\",'Потребность для загрузки'!K86,\"x\")","v":"x"},{"$f":"IF(AND('Потребность для загрузки'!J86>0,'Потребность для загрузки'!J86<>\"x\"),'Потребность для загрузки'!J86,\"x\")","v":"x"},{"$f":"IF('Потребность для загрузки'!AF86>0,'Потребность для загрузки'!AF86,\"x\")","v":"x"},{"$f":"IF('Потребность для загрузки'!AG86>0,'Потребность для загрузки'!AG86,\"x\")","v":"x"}]
[null,"x",{"$f":"IF('Потребность для загрузки'!AE87<>\"x x x x\",'Потребность для загрузки'!AE87,\"x\")","v":"x"},null,null,{"$f":"IF('Потребность для загрузки'!K87<>\"x\",'Потребность для загрузки'!K87,\"x\")","v":"x"},{"$f":"IF(AND('Потребность для загрузки'!J87>0,'Потребность для загрузки'!J87<>\"x\"),'Потребность для загрузки'!J87,\"x\")","v":"x"},{"$f":"IF('Потребность для загрузки'!AF87>0,'Потребность для загрузки'!AF87,\"x\")","v":"x"},{"$f":"IF('Потребность для загрузки'!AG87>0,'Потребность для загрузки'!AG87,\"x\")","v":"x"}]
[null,"x",{"$f":"IF('Потребность для загрузки'!AE88<>\"x x x x\",'Потребность для загрузки'!AE88,\"x\")","v":"x"},null,null,{"$f":"IF('Потребность для загрузки'!K88<>\"x\",'Потребность для загрузки'!K88,\"x\")","v":"x"},{"$f":"IF(AND('Потребность для загрузки'!J88>0,'Потребность для загрузки'!J88<>\"x\"),'Потребность для загрузки'!J88,\"x\")","v":"x"},{"$f":"IF('Потребность для загрузки'!AF88>0,'Потребность для загрузки'!AF88,\"x\")","v":"x"},{"$f":"IF('Потребность для загрузки'!AG88>0,'Потребность для загрузки'!AG88,\"x\")","v":"x"}]
[null,"x",{"$f":"IF('Потребность для загрузки'!AE89<>\"x x x x\",'Потребность для загрузки'!AE89,\"x\")","v":"x"},null,null,{"$f":"IF('Потребность для загрузки'!K89<>\"x\",'Потребность для загрузки'!K89,\"x\")","v":"x"},{"$f":"IF(AND('Потребность для загрузки'!J89>0,'Потребность для загрузки'!J89<>\"x\"),'Потребность для загрузки'!J89,\"x\")","v":"x"},{"$f":"IF('Потребность для загрузки'!AF89>0,'Потребность для загрузки'!AF89,\"x\")","v":"x"},{"$f":"IF('Потребность для загрузки'!AG89>0,'Потребность для загрузки'!AG89,\"x\")","v":"x"}]
[null,"x",{"$f":"IF('Потребность для загрузки'!AE90<>\"x x x x\",'Потребность для загрузки'!AE90,\"x\")","v":"x"},null,null,{"$f":"IF('Потребность для загрузки'!K90<>\"x\",'Потребность для загрузки'!K90,\"x\")","v":"x"},{"$f":"IF(AND('Потребность для загрузки'!J90>0,'Потребность для загрузки'!J90<>\"x\"),'Потребность для загрузки'!J90,\"x\")","v":"x"},{"$f":"IF('Потребность для загрузки'!AF90>0,'Потребность для загрузки'!AF90,\"x\")","v":"x"},{"$f":"IF('Потребность для загрузки'!AG90>0,'Потребность для загрузки'!AG90,\"x\")","v":"x"}]
[null,"x",{"$f":"IF('Потребность для загрузки'!AE91<>\"x x x x\",'Потребность для загрузки'!AE91,\"x\")","v":"x"},null,null,{"$f":"IF('Потребность для загрузки'!K91<>\"x\",'Потребность для загрузки'!K91,\"x\")","v":"x"},{"$f":"IF(AND('Потребность для загрузки'!J91>0,'Потребность для загрузки'!J91<>\"x\"),'Потребность для загрузки'!J91,\"x\")","v":"x"},{"$f":"IF('Потребность для загрузки'!AF91>0,'Потребность для загрузки'!AF91,\"x\")","v":"x"},{"$f":"IF('Потребность для загрузки'!AG91>0,'Потребность для загрузки'!AG91,\"x\")","v":"x"}]
[null,"x",{"$f":"IF('Потребность для загрузки'!AE92<>\"x x x x\",'Потребность для загрузки'!AE92,\"x\")","v":"x"},null,null,{"$f":"IF('Потребность для загрузки'!K92<>\"x\",'Потребность для загрузки'!K92,\"x\")","v":"x"},{"$f":"IF(AND('Потребность для загрузки'!J92>0,'Потребность для загрузки'!J92<>\"x\"),'Потребность для загрузки'!J92,\"x\")","v":"x"},{"$f":"IF('Потребность для загрузки'!AF92>0,'Потребность для загрузки'!AF92,\"x\")","v":"x"},{"$f":"IF('Потребность для загрузки'!AG92>0,'Потребность для загрузки'!AG92,\"x\")","v":"x"}]
[null,"x",{"$f":"IF('Потребность для загрузки'!AE93<>\"x x x x\",'Потребность для загрузки'!AE93,\"x\")","v":"x"},null,null,{"$f":"IF('Потребность для загрузки'!K93<>\"x\",'Потребность для загрузки'!K93,\"x\")","v":"x"},{"$f":"IF(AND('Потребность для загрузки'!J93>0,'Потребность для загрузки'!J93<>\"x\"),'Потребность для загрузки'!J93,\"x\")","v":"x"},{"$f":"IF('Потребность для загрузки'!AF93>0,'Потребность для загрузки'!AF93,\"x\")","v":"x"},{"$f":"IF('Потребность для загрузки'!AG93>0,'Потребность для загрузки'!AG93,\"x\")","v":"x"}]
[null,"x",{"$f":"IF('Потребность для загрузки'!AE94<>\"x x x x\",'Потребность для загрузки'!AE94,\"x\")","v":"x"},null,null,{"$f":"IF('Потребность для загрузки'!K94<>\"x\",'Потребность для загрузки'!K94,\"x\")","v":"x"},{"$f":"IF(AND('Потребность для загрузки'!J94>0,'Потребность для загрузки'!J94<>\"x\"),'Потребность для загрузки'!J94,\"x\")","v":"x"},{"$f":"IF('Потребность для загрузки'!AF94>0,'Потребность для загрузки'!AF94,\"x\")","v":"x"},{"$f":"IF('Потребность для загрузки'!AG94>0,'Потребность для загрузки'!AG94,\"x\")","v":"x"}]
[null,"x",{"$f":"IF('Потребность для загрузки'!AE95<>\"x x x x\",'Потребность для загрузки'!AE95,\"x\")","v":"x"},null,null,{"$f":"IF('Потребность для загрузки'!K95<>\"x\",'Потребность для загрузки'!K95,\"x\")","v":"x"},{"$f":"IF(AND('Потребность для загрузки'!J95>0,'Потребность для загрузки'!J95<>\"x\"),'Потребность для загрузки'!J95,\"x\")","v":"x"},{"$f":"IF('Потребность для загрузки'!AF95>0,'Потребность для загрузки'!AF95,\"x\")","v":"x"},{"$f":"IF('Потребность для загрузки'!AG95>0,'Потребность для загрузки'!AG95,\"x\")","v":"x"}]
[null,"x",{"$f":"IF('Потребность для загрузки'!AE96<>\"x x x x\",'Потребность для загрузки'!AE96,\"x\")","v":"x"},null,null,{"$f":"IF('Потребность для загрузки'!K96<>\"x\",'Потребность для загрузки'!K96,\"x\")","v":"x"},{"$f":"IF(AND('Потребность для загрузки'!J96>0,'Потребность для загрузки'!J96<>\"x\"),'Потребность для загрузки'!J96,\"x\")","v":"x"},{"$f":"IF('Потребность для загрузки'!AF96>0,'Потребность для загрузки'!AF96,\"x\")","v":"x"},{"$f":"IF('Потребность для загрузки'!AG96>0,'Потребность для загрузки'!AG96,\"x\")","v":"x"}]
[null,"x",{"$f":"IF('Потребность для загрузки'!AE97<>\"x x x x\",'Потребность для загрузки'!AE97,\"x\")","v":"x"},null,null,{"$f":"IF('Потребность для загрузки'!K97<>\"x\",'Потребность для загрузки'!K97,\"x\")","v":"x"},{"$f":"IF(AND('Потребность для загрузки'!J97>0,'Потребность для загрузки'!J97<>\"x\"),'Потребность для загрузки'!J97,\"x\")","v":"x"},{"$f":"IF('Потребность для загрузки'!AF97>0,'Потребность для загрузки'!AF97,\"x\")","v":"x"},{"$f":"IF('Потребность для загрузки'!AG97>0,'Потребность для загрузки'!AG97,\"x\")","v":"x"}]
[null,"x",{"$f":"IF('Потребность для загрузки'!AE98<>\"x x x x\",'Потребность для загрузки'!AE98,\"x\")","v":"x"},null,null,{"$f":"IF('Потребность для загрузки'!K98<>\"x\",'Потребность для загрузки'!K98,\"x\")","v":"x"},{"$f":"IF(AND('Потребность для загрузки'!J98>0,'Потребность для загрузки'!J98<>\"x\"),'Потребность для загрузки'!J98,\"x\")","v":"x"},{"$f":"IF('Потребность для загрузки'!AF98>0,'Потребность для загрузки'!AF98,\"x\")","v":"x"},{"$f":"IF('Потребность для загрузки'!AG98>0,'Потребность для загрузки'!AG98,\"x\")","v":"x"}]
[null,"x",{"$f":"IF('Потребность для загрузки'!AE99<>\"x x x x\",'Потребность для загрузки'!AE99,\"x\")","v":"x"},null,null,{"$f":"IF('Потребность для загрузки'!K99<>\"x\",'Потребность для загрузки'!K99,\"x\")","v":"x"},{"$f":"IF(AND('Потребность для загрузки'!J99>0,'Потребность для загрузки'!J99<>\"x\"),'Потребность для загрузки'!J99,\"x\")","v":"x"},{"$f":"IF('Потребность для загрузки'!AF99>0,'Потребность для загрузки'!AF99,\"x\")","v":"x"},{"$f":"IF('Потребность для загрузки'!AG99>0,'Потребность для загрузки'!AG99,\"x\")","v":"x"}]
[null,"x",{"$f":"IF('Потребность для загрузки'!AE100<>\"x x x x\",'Потребность для загрузки'!AE100,\"x\")","v":"x"},null,null,{"$f":"IF('Потребность для загрузки'!K100<>\"x\",'Потребность для загрузки'!K100,\"x\")","v":"x"},{"$f":"IF(AND('Потребность для загрузки'!J100>0,'Потребность для загрузки'!J100<>\"x\"),'Потребность для загрузки'!J100,\"x\")","v":"x"},{"$f":"IF('Потребность для загрузки'!AF100>0,'Потребность для загрузки'!AF100,\"x\")","v":"x"},{"$f":"IF('Потребность для загрузки'!AG100>0,'Потребность для загрузки'!AG100,\"x\")","v":"x"}]
[null,"x",{"$f":"IF('Потребность для загрузки'!AE101<>\"x x x x\",'Потребность для загрузки'!AE101,\"x\")","v":"x"},null,null,{"$f":"IF('Потребность для загрузки'!K101<>\"x\",'Потребность для загрузки'!K101,\"x\")","v":"x"},{"$f":"IF(AND('Потребность для загрузки'!J101>0,'Потребность для загрузки'!J101<>\"x\"),'Потребность для загрузки'!J101,\"x\")","v":"x"},{"$f":"IF('Потребность для загрузки'!AF101>0,'Потребность для загрузки'!AF101,\"x\")","v":"x"},{"$f":"IF('Потребность для загрузки'!AG101>0,'Потребность для загрузки'!AG101,\"x\")","v":"x"}]
[null,"x",{"$f":"IF('Потребность для загрузки'!AE102<>\"x x x x\",'Потребность для загрузки'!AE102,\"x\")","v":"x"},null,null,{"$f":"IF('Потребность для загрузки'!K102<>\"x\",'Потребность для загрузки'!K102,\"x\")","v":"x"},{"$f":"IF(AND('Потребность для загрузки'!J102>0,'Потребность для загрузки'!J102<>\"x\"),'Потребность для загрузки'!J102,\"x\")","v":"x"},{"$f":"IF('Потребность для загрузки'!AF102>0,'Потребность для загрузки'!AF102,\"x\")","v":"x"},{"$f":"IF('Потребность для загрузки'!AG102>0,'Потребность для загрузки'!AG102,\"x\")","v":"x"}]
[null,"x",{"$f":"IF('Потребность для загрузки'!AE103<>\"x x x x\",'Потребность для загрузки'!AE103,\"x\")","v":"x"},null,null,{"$f":"IF('Потребность для загрузки'!K103<>\"x\",'Потребность для загрузки'!K103,\"x\")","v":"x"},{"$f":"IF(AND('Потребность для загрузки'!J103>0,'Потребность для загрузки'!J103<>\"x\"),'Потребность для загрузки'!J103,\"x\")","v":"x"},{"$f":"IF('Потребность для загрузки'!AF103>0,'Потребность для загрузки'!AF103,\"x\")","v":"x"},{"$f":"IF('Потребность для загрузки'!AG103>0,'Потребность для загрузки'!AG103,\"x\")","v":"x"}]
[null,"Итого, руб.:",null,null,null,null,null,null,{"$f":"IF('Потребность для загрузки'!AG104>0,'Потребность для загрузки'!AG104,\"\")","v":""}]
[null,"НДС, руб.:",null,null,null,null,null,null,{"$f":"IF('Потребность для загрузки'!AG105>0,'Потребность для загрузки'!AG105,\"\")","v":""}]
[null,"Итого с НДС, руб.:",null,null,null,null,null,null,{"$f":"IF('Потребность для загрузки'!AG106>0,'Потребность для загрузки'!AG106,\"\")","v":""}]
[]
[null,"Примечание:"]
[null,{"$f":"IF('Потребность для загрузки'!AJ107<>\"\",_xlfn.CONCAT(\"1. Условия оплаты: \",'Потребность для загрузки'!AJ107,\".\"),\"1. Условия оплаты: согласно условиям договора.\")","v":"1. Условия оплаты: согласно условиям договора."}]
[null,{"$f":"IFERROR(IF('Потребность для загрузки'!AJ105>0,\"2. Стоимость доставки включена в стоимость продукции.\",\"2. Стоимость доставки не включена в стоимость продукции.\"),\"2. Стоимость доставки не включена в стоимость продукции.\")","v":"2. Стоимость доставки не включена в стоимость продукции."}]
[null,{"$f":"IF('Потребность для загрузки'!AJ108<>\"\",IF('Потребность для загрузки'!AC105<>\"\",_xlfn.CONCAT(\"3. Срок поставки до \",TEXT('Потребность для загрузки'!AC105,\"ДД.ММ.ГГ\"),\" г. на основании ЦЗ № \",'Потребность для загрузки'!B4,\" \",\"\"\"\",'Потребность для загрузки'!C4,\"\"\"\",\", с возможностью досрочной поставки.\"),_xlfn.CONCAT(\"3. Срок поставки в календарных днях: \",'Потребность для загрузки'!AJ108,\".\")),\"3. Срок поставки: согласно условиям договора.\")","v":"3. Срок поставки: согласно условиям договора."}]
[]
[]
[]
[null,"Заместитель директора",null,null,null,null,"Е. С. Гребенюк"]

{"sheet":"Легенда","index":2,"n_rows":1120,"n_cols":19,"rows_kept":1120,"cut":false,"hidden":true,"merged":[[16,15,17,15],[19,15,20,15],[21,15,22,15],[16,12,17,12],[19,12,20,12],[21,13,22,13],[21,14,22,14]]}
["Ед. изм.","Страна",null,null,null,null,"ТК",null,null,null,null,null,null,null,null,null,"Населенные пункты",null,"Коэффициент расчета маржинальности"]
["x","x",null,null,null,1,"Деловые линии",null,null,null,null,null,null,null,null,null,"x",null,0.01]
["мм","Абхазия",null,null,null,2,"ПЭК",null,null,null,null,null,null,null,null,null,"Абаза",null,0.02]
["см","Австралия",null,null,null,3,"СДЕК",null,null,null,null,null,null,null,null,null,"Абакан",null,0.03]
["дм","Австрия",null,null,null,4,"Энергия",null,null,null,null,null,null,null,null,null,"Абдулино",null,0.04]
["м","Азад-Кашмир",null,null,null,5,"КИТ",null,null,null,null,null,null,null,null,null,"Абинск",null,0.05]
["км","Азербайджан",null,null,null,6,"Байкал Сервис",null,null,null,null,null,null,null,null,null,"Агидель",null,6.0000000000000005E-2]
["мм2","Албания",null,null,null,7,null,null,null,null,null,null,null,null,null,null,"Агрыз",null,6.9999999999999993E-2]
["см2","Алжир",null,null,null,8,null,null,null,null,null,null,null,null,null,null,"Адыгейск",null,0.08]
["дм2","Ангилья",null,null,null,9,null,null,null,null,null,null,null,null,null,null,"Азнакаево",null,0.09]
["м2","Ангола",null,null,null,10,null,null,null,null,null,null,null,null,null,null,"Азов",null,9.9999999999999992E-2]
["га","Андорра",null,null,null,11,null,null,null,null,null,null,null,null,null,null,"Ак-Довурак",null,0.11]
["км2","Антигуа и Барбуда",null,null,null,12,null,null,null,null,null,null,null,null,null,null,"Аксай",null,0.12]
["мм3","Аргентина",null,null,null,13,null,null,null,null,null,null,null,null,null,null,"Алагир",null,0.13]
["см3","Армения",null,null,null,14,null,null,{"$f":"MID(CELL(\"имяфайла\"),FIND(\"[\",CELL(\"имяфайла\"))+26,FIND(\"]\",CELL(\"имяфайла\"))-FIND(\"[\",CELL(\"имяфайла\"))-43)","v":"XXXXX"},"=ПСТР(ЯЧЕЙКА(\"имяфайла\");НАЙТИ(\"[\";ЯЧЕЙКА(\"имяфайла\"))+26;НАЙТИ(\"]\";ЯЧЕЙКА(\"имяфайла\"))-НАЙТИ(\"[\";ЯЧЕЙКА(\"имяфайла\"))-43)",{"$f":"TEXT(I15,\"0\")","v":"XXXXX"},"=ТЕКСТ(I15;\"0\")",null,null,null,null,"Алапаевск",null,0.14000000000000001]
["мл","Аруба",null,null,null,15,null,null,{"$f":"VALUE($I$15)","v":{"$error":"#VALUE!"}},"=ЗНАЧЕН($I$15)",{"$f":"TEXT(I16,\"0\")","v":{"$error":"#VALUE!"}},"=ТЕКСТ(I16;\"0\")",{"$f":"IFERROR(K16,\"\")","v":""},null,null,null,"Алатырь",null,0.15000000000000002]
["дм3","Афганистан",null,null,null,16,null,null,{"$f":"VLOOKUP($I$16,[2]Лахта.СПБ!$A$1:$O$400,7,FALSE)","v":{"$error":"#VALUE!"}},"=ВПР($I$16;[ЭТП_сводная.xlsm]Лахта.СПБ!$A$1:$O$400;7;ЛОЖЬ)",{"$f":"TEXT(I17,\"# ##0 ₽;[Красный]-# ##0 ₽\")","v":{"$error":"#VALUE!"}},"=ТЕКСТ(I17;\"# ##0 ₽;[Красный]-# ##0 ₽\")",{"$f":"IFERROR(IFERROR(K17,K18),\"\")","v":""},null,null,null,"Алдан",null,0.16]
["л","Багамские Острова",null,null,null,17,null,null,{"$f":"VLOOKUP($I$16,'[2]ЭТП ГПБ'!$A$1:$N$400,7,FALSE)","v":{"$error":"#VALUE!"}},"=ВПР($I$16;'[ЭТП_сводная.xlsm]ЭТП ГПБ'!$A$1:$N$400;7;ЛОЖЬ)",{"$f":"TEXT(I18,\"# ##0 ₽;[Красный]-# ##0 ₽\")","v":{"$error":"#VALUE!"}},"=ТЕКСТ(I18;\"# ##0 ₽;[Красный]-# ##0 ₽\")",null,null,null,null,"Алейск",null,0.17]
["м3","Бангладеш",null,null,null,18,null,null,{"$f":"IF(VLOOKUP($I$16,'[2]ЭТП ГПБ'!$A$1:$N$400,12,FALSE)<>\"\",VLOOKUP($I$16,'[2]ЭТП ГПБ'!$A$1:$N$400,12,FALSE),\"\")","v":{"$error":"#VALUE!"}},"=ЕСЛИ(ВПР($I$16;'[ЭТП_сводная.xlsm]ЭТП ГПБ'!$A$1:$N$400;12;ЛОЖЬ)<>\"\";ВПР($I$16;'[ЭТП_сводная.xlsm]ЭТП ГПБ'!$A$1:$N$400;12;ЛОЖЬ);\"\")",{"$f":"TEXT(I19,\"ДД.ММ.ГГ\")","v":{"$error":"#VALUE!"}},"=ТЕКСТ(I19;\"ДД.ММ.ГГ\")",{"$f":"IFERROR(TEXT(I19,\"ДД.ММ.ГГ\"),\"\")","v":""},{"$f":"IF(M19<>\"\",_xlfn.DAYS(M19,TODAY()),\"\")","v":""},null,null,"Александров",null,0.18000000000000002]
["мг","Барбадос",null,null,null,19,null,null,{"$f":"VLOOKUP($I$16,[2]Лахта.СПБ!$A$1:$O$400,13,FALSE)","v":{"$error":"#VALUE!"}},"=ВПР($I$16;[ЭТП_сводная.xlsm]Лахта.СПБ!$A$1:$O$400;13;ЛОЖЬ)",{"$f":"TEXT(I20,\"# ##0 ₽;[Красный]-# ##0 ₽\")","v":{"$error":"#VALUE!"}},"=ТЕКСТ(I20;\"# ##0 ₽;[Красный]-# ##0 ₽\")",{"$f":"IFERROR(IFERROR(K20,K21),\"\")","v":""},null,null,null,"Александровск",null,0.19]
["г","Бахрейн",null,null,null,20,null,null,{"$f":"VLOOKUP($I$16,'[2]ЭТП ГПБ'!$A$1:$N$400,10,FALSE)","v":{"$error":"#VALUE!"}},"=ВПР($I$16;'[ЭТП_сводная.xlsm]ЭТП ГПБ'!$A$1:$N$400;10;ЛОЖЬ)",{"$f":"TEXT(I21,\"# ##0 ₽;[Красный]-# ##0 ₽\")","v":{"$error":"#VALUE!"}},"=ТЕКСТ(I21;\"# ##0 ₽;[Красный]-# ##0 ₽\")",null,null,null,null,"Александровск-Сахалинский",null,0.2]
["кг","Белиз",null,null,null,null,null,null,null,null,null,null,{"$f":"IF(K20<>\"\",\"аванс 100%\")","v":{"$error":"#VALUE!"}},{"$f":"IFERROR(M22,M23)","v":{"$error":"#VALUE!"}},{"$f":"IFERROR(N22,\"\")","v":""},null,"Алексеевка",null,0.21000000000000002]
["ц","Белоруссия",null,null,null,null,null,null,null,null,null,null,{"$f":"IF(K21<>\"\",\"согласно условиям договора\")","v":{"$error":"#VALUE!"}},null,null,null,"Алексин",null,0.22]
["т","Бельгия",null,null,null,null,null,null,null,null,null,null,null,{"$f":"IF(M20<>\"Самовывоз\",_xlfn.CEILING.MATH(SUMPRODUCT(L26:L125,M26:M125)),)","v":0},{"$f":"IFERROR(N24,\"\")","v":0},null,"Алзамай",null,0.23]
["рул","Бенин",null,null,null,null,null,null,null,null,null,null,null,{"$f":"IF(K19<>\"\",_xlfn.DAYS(M19,TODAY()),\"\")","v":{"$error":"#VALUE!"}},{"$f":"IFERROR(N25,\"\")","v":""},null,"Алупка",null,0.24000000000000002]
["упак","Болгария",null,null,null,null,null,null,null,null,null,{"$f":"'Потребность для загрузки'!J4","v":"x"},{"$f":"'Потребность для загрузки'!T4","v":"x"},null,null,null,"Алушта",null,0.25]
["шт","Боливия",null,null,null,null,null,null,null,null,null,{"$f":"'Потребность для загрузки'!J5","v":"x"},{"$f":"'Потребность для загрузки'!T5","v":"x"},null,null,null,"Альметьевск",null,0.26]
["лист","Босния и Герцеговина",null,null,null,null,null,null,null,null,null,{"$f":"'Потребность для загрузки'!J6","v":"x"},{"$f":"'Потребность для загрузки'!T6","v":"x"},null,null,null,"Амурск",null,0.27]
["пог м","Ботсвана",null,null,null,null,null,null,null,null,null,{"$f":"'Потребность для загрузки'!J7","v":"x"},{"$f":"'Потребность для загрузки'!T7","v":"x"},null,null,null,"Анадырь",null,0.28000000000000003]
["компл","Бразилия",null,null,null,null,null,null,null,null,null,{"$f":"'Потребность для загрузки'!J8","v":"x"},{"$f":"'Потребность для загрузки'!T8","v":"x"},null,null,null,"Анапа",null,0.29000000000000004]
["бут","Бруней",null,null,null,null,null,null,null,null,null,{"$f":"'Потребность для загрузки'!J9","v":"x"},{"$f":"'Потребность для загрузки'!T9","v":"x"},null,null,null,"Ангарск",null,0.3]
[null,"Буркина-Фасо",null,null,null,null,null,null,null,null,null,{"$f":"'Потребность для загрузки'!J10","v":"x"},{"$f":"'Потребность для загрузки'!T10","v":"x"},null,null,null,"Андреаполь",null,0.31]
[null,"Бурунди",null,null,null,null,null,null,null,null,null,{"$f":"'Потребность для загрузки'!J11","v":"x"},{"$f":"'Потребность для загрузки'!T11","v":"x"},null,null,null,"Анжеро-Судженск",null,0.32]
[null,"Бутан",null,null,null,null,null,null,null,null,null,{"$f":"'Потребность для загрузки'!J12","v":"x"},{"$f":"'Потребность для загрузки'!T12","v":"x"},null,null,null,"Анива",null,0.33]
[null,"Вануату",null,null,null,null,null,null,null,null,null,{"$f":"'Потребность для загрузки'!J13","v":"x"},{"$f":"'Потребность для загрузки'!T13","v":"x"},null,null,null,"Апатиты",null,0.34]
[null,"Ватикан",null,null,null,null,null,null,null,null,null,{"$f":"'Потребность для загрузки'!J14","v":"x"},{"$f":"'Потребность для загрузки'!T14","v":"x"},null,null,null,"Апрелевка",null,0.35000000000000003]
[null,"Великобритания",null,null,null,null,null,null,null,null,null,{"$f":"'Потребность для загрузки'!J15","v":"x"},{"$f":"'Потребность для загрузки'!T15","v":"x"},null,null,null,"Апшеронск",null,0.36000000000000004]
[null,"Венгрия",null,null,null,null,null,null,null,null,null,{"$f":"'Потребность для загрузки'!J16","v":"x"},{"$f":"'Потребность для загрузки'!T16","v":"x"},null,null,null,"Арамиль",null,0.37]
[null,"Венесуэла",null,null,null,null,null,null,null,null,null,{"$f":"'Потребность для загрузки'!J17","v":"x"},{"$f":"'Потребность для загрузки'!T17","v":"x"},null,null,null,"Аргун",null,0.38]
[null,"Восточный Тимор",null,null,null,null,null,null,null,null,null,{"$f":"'Потребность для загрузки'!J18","v":"x"},{"$f":"'Потребность для загрузки'!T18","v":"x"},null,null,null,"Ардатов",null,0.39]
[null,"Вьетнам",null,null,null,null,null,null,null,null,null,{"$f":"'Потребность для загрузки'!J19","v":"x"},{"$f":"'Потребность для загрузки'!T19","v":"x"},null,null,null,"Ардон",null,0.4]
[null,"Габон",null,null,null,null,null,null,null,null,null,{"$f":"'Потребность для загрузки'!J20","v":"x"},{"$f":"'Потребность для загрузки'!T20","v":"x"},null,null,null,"Арзамас",null,0.41000000000000003]
[null,"Гаити",null,null,null,null,null,null,null,null,null,{"$f":"'Потребность для загрузки'!J21","v":"x"},{"$f":"'Потребность для загрузки'!T21","v":"x"},null,null,null,"Аркадак",null,0.42000000000000004]
[null,"Гайана",null,null,null,null,null,null,null,null,null,{"$f":"'Потребность для загрузки'!J22","v":"x"},{"$f":"'Потребность для загрузки'!T22","v":"x"},null,null,null,"Армавир",null,0.43]
[null,"Гамбия",null,null,null,null,null,null,null,null,null,{"$f":"'Потребность для загрузки'!J23","v":"x"},{"$f":"'Потребность для загрузки'!T23","v":"x"},null,null,null,"Армянск",null,0.44]
[null,"Гана",null,null,null,null,null,null,null,null,null,{"$f":"'Потребность для загрузки'!J24","v":"x"},{"$f":"'Потребность для загрузки'!T24","v":"x"},null,null,null,"Арсеньев",null,0.45]
[null,"Гватемала",null,null,null,null,null,null,null,null,null,{"$f":"'Потребность для загрузки'!J25","v":"x"},{"$f":"'Потребность для загрузки'!T25","v":"x"},null,null,null,"Арск",null,0.46]
[null,"Гвинея",null,null,null,null,null,null,null,null,null,{"$f":"'Потребность для загрузки'!J26","v":"x"},{"$f":"'Потребность для загрузки'!T26","v":"x"},null,null,null,"Артём",null,0.47000000000000003]
[null,"Гвинея-Бисау",null,null,null,null,null,null,null,null,null,{"$f":"'Потребность для загрузки'!J27","v":"x"},{"$f":"'Потребность для загрузки'!T27","v":"x"},null,null,null,"Артёмовск",null,0.48000000000000004]
[null,"Германия",null,null,null,null,null,null,null,null,null,{"$f":"'Потребность для загрузки'!J28","v":"x"},{"$f":"'Потребность для загрузки'!T28","v":"x"},null,null,null,"Артёмовский",null,0.49]
[null,"Гондурас",null,null,null,null,null,null,null,null,null,{"$f":"'Потребность для загрузки'!J29","v":"x"},{"$f":"'Потребность для загрузки'!T29","v":"x"},null,null,null,"Архангельск",null,0.5]
[null,"Гонконг",null,null,null,null,null,null,null,null,null,{"$f":"'Потребность для загрузки'!J30","v":"x"},{"$f":"'Потребность для загрузки'!T30","v":"x"},null,null,null,"Асбест",null,0.51]
[null,"Государство Палестина",null,null,null,null,null,null,null,null,null,{"$f":"'Потребность для загрузки'!J31","v":"x"},{"$f":"'Потребность для загрузки'!T31","v":"x"},null,null,null,"Асино",null,0.52]
[null,"Гренада",null,null,null,null,null,null,null,null,null,{"$f":"'Потребность для загрузки'!J32","v":"x"},{"$f":"'Потребность для загрузки'!T32","v":"x"},null,null,null,"Астрахань",null,0.53]
[null,"Гренландия",null,null,null,null,null,null,null,null,null,{"$f":"'Потребность для загрузки'!J33","v":"x"},{"$f":"'Потребность для загрузки'!T33","v":"x"},null,null,null,"Аткарск",null,0.54]
[null,"Греция",null,null,null,null,null,null,null,null,null,{"$f":"'Потребность для загрузки'!J34","v":"x"},{"$f":"'Потребность для загрузки'!T34","v":"x"},null,null,null,"Ахтубинск",null,0.55000000000000004]
[null,"Грузия",null,null,null,null,null,null,null,null,null,{"$f":"'Потребность для загрузки'!J35","v":"x"},{"$f":"'Потребность для загрузки'!T35","v":"x"},null,null,null,"Ачинск",null,0.56000000000000005]
[null,"Дания",null,null,null,null,null,null,null,null,null,{"$f":"'Потребность для загрузки'!J36","v":"x"},{"$f":"'Потребность для загрузки'!T36","v":"x"},null,null,null,"Аша",null,0.57000000000000006]
[null,"Демократическая Республика Конго",null,null,null,null,null,null,null,null,null,{"$f":"'Потребность для загрузки'!J37","v":"x"},{"$f":"'Потребность для загрузки'!T37","v":"x"},null,null,null,"Бабаево",null,0.58000000000000007]
[null,"Джибути",null,null,null,null,null,null,null,null,null,{"$f":"'Потребность для загрузки'!J38","v":"x"},{"$f":"'Потребность для загрузки'!T38","v":"x"},null,null,null,"Бабушкин",null,0.59]
[null,"Доминика",null,null,null,null,null,null,null,null,null,{"$f":"'Потребность для загрузки'!J39","v":"x"},{"$f":"'Потребность для загрузки'!T39","v":"x"},null,null,null,"Бавлы",null,0.6]
[null,"Доминиканская Республика",null,null,null,null,null,null,null,null,null,{"$f":"'Потребность для загрузки'!J40","v":"x"},{"$f":"'Потребность для загрузки'!T40","v":"x"},null,null,null,"Багратионовск",null,0.61]
[null,"Египет",null,null,null,null,null,null,null,null,null,{"$f":"'Потребность для загрузки'!J41","v":"x"},{"$f":"'Потребность для загрузки'!T41","v":"x"},null,null,null,"Байкальск",null,0.62]
[null,"Замбия",null,null,null,null,null,null,null,null,null,{"$f":"'Потребность для загрузки'!J42","v":"x"},{"$f":"'Потребность для загрузки'!T42","v":"x"},null,null,null,"Баймак",null,0.63]
[null,"Зимбабве",null,null,null,null,null,null,null,null,null,{"$f":"'Потребность для загрузки'!J43","v":"x"},{"$f":"'Потребность для загрузки'!T43","v":"x"},null,null,null,"Бакал",null,0.64]
[null,"Израиль",null,null,null,null,null,null,null,null,null,{"$f":"'Потребность для загрузки'!J44","v":"x"},{"$f":"'Потребность для загрузки'!T44","v":"x"},null,null,null,"Баксан",null,0.65]
[null,"Индия",null,null,null,null,null,null,null,null,null,{"$f":"'Потребность для загрузки'!J45","v":"x"},{"$f":"'Потребность для загрузки'!T45","v":"x"},null,null,null,"Балабаново",null,0.66]
[null,"Индонезия",null,null,null,null,null,null,null,null,null,{"$f":"'Потребность для загрузки'!J46","v":"x"},{"$f":"'Потребность для загрузки'!T46","v":"x"},null,null,null,"Балаково",null,0.67]
[null,"Иордания",null,null,null,null,null,null,null,null,null,{"$f":"'Потребность для загрузки'!J47","v":"x"},{"$f":"'Потребность для загрузки'!T47","v":"x"},null,null,null,"Балахна",null,0.68]
[null,"Ирак",null,null,null,null,null,null,null,null,null,{"$f":"'Потребность для загрузки'!J48","v":"x"},{"$f":"'Потребность для загрузки'!T48","v":"x"},null,null,null,"Балашиха",null,0.69000000000000006]
[null,"Иран",null,null,null,null,null,null,null,null,null,{"$f":"'Потребность для загрузки'!J49","v":"x"},{"$f":"'Потребность для загрузки'!T49","v":"x"},null,null,null,"Балашов",null,0.70000000000000007]
[null,"Ирландия",null,null,null,null,null,null,null,null,null,{"$f":"'Потребность для загрузки'!J50","v":"x"},{"$f":"'Потребность для загрузки'!T50","v":"x"},null,null,null,"Балей",null,0.71000000000000008]
[null,"Исландия",null,null,null,null,null,null,null,null,null,{"$f":"'Потребность для загрузки'!J51","v":"x"},{"$f":"'Потребность для загрузки'!T51","v":"x"},null,null,null,"Балтийск",null,0.72]
[null,"Испания",null,null,null,null,null,null,null,null,null,{"$f":"'Потребность для загрузки'!J52","v":"x"},{"$f":"'Потребность для загрузки'!T52","v":"x"},null,null,null,"Барабинск",null,0.73]
[null,"Италия",null,null,null,null,null,null,null,null,null,{"$f":"'Потребность для загрузки'!J53","v":"x"},{"$f":"'Потребность для загрузки'!T53","v":"x"},null,null,null,"Барнаул",null,0.74]
[null,"Йемен",null,null,null,null,null,null,null,null,null,{"$f":"'Потребность для загрузки'!J54","v":"x"},{"$f":"'Потребность для загрузки'!T54","v":"x"},null,null,null,"Барыш",null,0.75]
[null,"Кабо-Верде",null,null,null,null,null,null,null,null,null,{"$f":"'Потребность для загрузки'!J55","v":"x"},{"$f":"'Потребность для загрузки'!T55","v":"x"},null,null,null,"Батайск",null,0.76]
[null,"Казахстан",null,null,null,null,null,null,null,null,null,{"$f":"'Потребность для загрузки'!J56","v":"x"},{"$f":"'Потребность для загрузки'!T56","v":"x"},null,null,null,"Бахчисарай",null,0.77]
[null,"Камбоджа",null,null,null,null,null,null,null,null,null,{"$f":"'Потребность для загрузки'!J57","v":"x"},{"$f":"'Потребность для загрузки'!T57","v":"x"},null,null,null,"Бежецк",null,0.78]
[null,"Камерун",null,null,null,null,null,null,null,null,null,{"$f":"'Потребность для загрузки'!J58","v":"x"},{"$f":"'Потребность для загрузки'!T58","v":"x"},null,null,null,"Белая Калитва",null,0.79]
[null,"Канада",null,null,null,null,null,null,null,null,null,{"$f":"'Потребность для загрузки'!J59","v":"x"},{"$f":"'Потребность для загрузки'!T59","v":"x"},null,null,null,"Белая Холуница",null,0.8]
[null,"Катар",null,null,null,null,null,null,null,null,null,{"$f":"'Потребность для загрузки'!J60","v":"x"},{"$f":"'Потребность для загрузки'!T60","v":"x"},null,null,null,"Белгород",null,0.81]
[null,"Кения",null,null,null,null,null,null,null,null,null,{"$f":"'Потребность для загрузки'!J61","v":"x"},{"$f":"'Потребность для загрузки'!T61","v":"x"},null,null,null,"Белебей",null,0.82000000000000006]
[null,"Кипр",null,null,null,null,null,null,null,null,null,{"$f":"'Потребность для загрузки'!J62","v":"x"},{"$f":"'Потребность для загрузки'!T62","v":"x"},null,null,null,"Белёв",null,0.83000000000000007]
[null,"Киргизия",null,null,null,null,null,null,null,null,null,{"$f":"'Потребность для загрузки'!J63","v":"x"},{"$f":"'Потребность для загрузки'!T63","v":"x"},null,null,null,"Белинский",null,0.84000000000000008]
[null,"Кирибати",null,null,null,null,null,null,null,null,null,{"$f":"'Потребность для загрузки'!J64","v":"x"},{"$f":"'Потребность для загрузки'!T64","v":"x"},null,null,null,"Белово",null,0.85]
[null,"Китай",null,null,null,null,null,null,null,null,null,{"$f":"'Потребность для загрузки'!J65","v":"x"},{"$f":"'Потребность для загрузки'!T65","v":"x"},null,null,null,"Белогорск",null,0.86]
[null,"КНДР (Северная Корея)",null,null,null,null,null,null,null,null,null,{"$f":"'Потребность для загрузки'!J66","v":"x"},{"$f":"'Потребность для загрузки'!T66","v":"x"},null,null,null,"Белогорск",null,0.87]
[null,"Колумбия",null,null,null,null,null,null,null,null,null,{"$f":"'Потребность для загрузки'!J67","v":"x"},{"$f":"'Потребность для загрузки'!T67","v":"x"},null,null,null,"Белозерск",null,0.88]
[null,"Коморские Острова",null,null,null,null,null,null,null,null,null,{"$f":"'Потребность для загрузки'!J68","v":"x"},{"$f":"'Потребность для загрузки'!T68","v":"x"},null,null,null,"Белокуриха",null,0.89]
[null,"Косово",null,null,null,null,null,null,null,null,null,{"$f":"'Потребность для загрузки'!J69","v":"x"},{"$f":"'Потребность для загрузки'!T69","v":"x"},null,null,null,"Беломорск",null,0.9]
[null,"Коста-Рика",null,null,null,null,null,null,null,null,null,{"$f":"'Потребность для загрузки'!J70","v":"x"},{"$f":"'Потребность для загрузки'!T70","v":"x"},null,null,null,"Белоозёрский",null,0.91]
[null,"Кот-д’Ивуар",null,null,null,null,null,null,null,null,null,{"$f":"'Потребность для загрузки'!J71","v":"x"},{"$f":"'Потребность для загрузки'!T71","v":"x"},null,null,null,"Белорецк",null,0.92]
[null,"Куба",null,null,null,null,null,null,null,null,null,{"$f":"'Потребность для загрузки'!J72","v":"x"},{"$f":"'Потребность для загрузки'!T72","v":"x"},null,null,null,"Белореченск",null,0.93]
[null,"Кувейт",null,null,null,null,null,null,null,null,null,{"$f":"'Потребность для загрузки'!J73","v":"x"},{"$f":"'Потребность для загрузки'!T73","v":"x"},null,null,null,"Белоусово",null,0.94000000000000006]
[null,"Кюрасао",null,null,null,null,null,null,null,null,null,{"$f":"'Потребность для загрузки'!J74","v":"x"},{"$f":"'Потребность для загрузки'!T74","v":"x"},null,null,null,"Белоярский",null,0.95000000000000007]
[null,"Лаос",null,null,null,null,null,null,null,null,null,{"$f":"'Потребность для загрузки'!J75","v":"x"},{"$f":"'Потребность для загрузки'!T75","v":"x"},null,null,null,"Белый",null,0.96000000000000008]
[null,"Латвия",null,null,null,null,null,null,null,null,null,{"$f":"'Потребность для загрузки'!J76","v":"x"},{"$f":"'Потребность для загрузки'!T76","v":"x"},null,null,null,"Бердск",null,0.97]
[null,"Лесото",null,null,null,null,null,null,null,null,null,{"$f":"'Потребность для загрузки'!J77","v":"x"},{"$f":"'Потребность для загрузки'!T77","v":"x"},null,null,null,"Березники",null,0.98]
[null,"Либерия",null,null,null,null,null,null,null,null,null,{"$f":"'Потребность для загрузки'!J78","v":"x"},{"$f":"'Потребность для загрузки'!T78","v":"x"},null,null,null,"Берёзовский",null,0.99]
[null,"Ливан",null,null,null,null,null,null,null,null,null,{"$f":"'Потребность для загрузки'!J79","v":"x"},{"$f":"'Потребность для загрузки'!T79","v":"x"},null,null,null,"Берёзовский"]
[null,"Ливия",null,null,null,null,null,null,null,null,null,{"$f":"'Потребность для загрузки'!J80","v":"x"},{"$f":"'Потребность для загрузки'!T80","v":"x"},null,null,null,"Беслан"]
[null,"Литва",null,null,null,null,null,null,null,null,null,{"$f":"'Потребность для загрузки'!J81","v":"x"},{"$f":"'Потребность для загрузки'!T81","v":"x"},null,null,null,"Бийск"]
[null,"Лихтенштейн",null,null,null,null,null,null,null,null,null,{"$f":"'Потребность для загрузки'!J82","v":"x"},{"$f":"'Потребность для загрузки'!T82","v":"x"},null,null,null,"Бикин"]
[null,"Люксембург",null,null,null,null,null,null,null,null,null,{"$f":"'Потребность для загрузки'!J83","v":"x"},{"$f":"'Потребность для загрузки'!T83","v":"x"},null,null,null,"Билибино"]
[null,"Маврикий",null,null,null,null,null,null,null,null,null,{"$f":"'Потребность для загрузки'!J84","v":"x"},{"$f":"'Потребность для загрузки'!T84","v":"x"},null,null,null,"Биробиджан"]
[null,"Мавритания",null,null,null,null,null,null,null,null,null,{"$f":"'Потребность для загрузки'!J85","v":"x"},{"$f":"'Потребность для загрузки'!T85","v":"x"},null,null,null,"Бирск"]
[null,"Мадагаскар",null,null,null,null,null,null,null,null,null,{"$f":"'Потребность для загрузки'!J86","v":"x"},{"$f":"'Потребность для загрузки'!T86","v":"x"},null,null,null,"Бирюсинск"]
[null,"Македония",null,null,null,null,null,null,null,null,null,{"$f":"'Потребность для загрузки'!J87","v":"x"},{"$f":"'Потребность для загрузки'!T87","v":"x"},null,null,null,"Бирюч"]
[null,"Малави",null,null,null,null,null,null,null,null,null,{"$f":"'Потребность для загрузки'!J88","v":"x"},{"$f":"'Потребность для загрузки'!T88","v":"x"},null,null,null,"Благовещенск"]
[null,"Малайзия",null,null,null,null,null,null,null,null,null,{"$f":"'Потребность для загрузки'!J89","v":"x"},{"$f":"'Потребность для загрузки'!T89","v":"x"},null,null,null,"Благовещенск"]
[null,"Мали",null,null,null,null,null,null,null,null,null,{"$f":"'Потребность для загрузки'!J90","v":"x"},{"$f":"'Потребность для загрузки'!T90","v":"x"},null,null,null,"Благодарный"]
[null,"Мальдивы",null,null,null,null,null,null,null,null,null,{"$f":"'Потребность для загрузки'!J91","v":"x"},{"$f":"'Потребность для загрузки'!T91","v":"x"},null,null,null,"Бобров"]
[null,"Мальта",null,null,null,null,null,null,null,null,null,{"$f":"'Потребность для загрузки'!J92","v":"x"},{"$f":"'Потребность для загрузки'!T92","v":"x"},null,null,null,"Богданович"]
[null,"Марокко",null,null,null,null,null,null,null,null,null,{"$f":"'Потребность для загрузки'!J93","v":"x"},{"$f":"'Потребность для загрузки'!T93","v":"x"},null,null,null,"Богородицк"]
[null,"Маршалловы Острова",null,null,null,null,null,null,null,null,null,{"$f":"'Потребность для загрузки'!J94","v":"x"},{"$f":"'Потребность для загрузки'!T94","v":"x"},null,null,null,"Богородск"]
[null,"Мексика",null,null,null,null,null,null,null,null,null,{"$f":"'Потребность для загрузки'!J95","v":"x"},{"$f":"'Потребность для загрузки'!T95","v":"x"},null,null,null,"Боготол"]
[null,"Микронезия",null,null,null,null,null,null,null,null,null,{"$f":"'Потребность для загрузки'!J96","v":"x"},{"$f":"'Потребность для загрузки'!T96","v":"x"},null,null,null,"Богучар"]
[null,"Мозамбик",null,null,null,null,null,null,null,null,null,{"$f":"'Потребность для загрузки'!J97","v":"x"},{"$f":"'Потребность для загрузки'!T97","v":"x"},null,null,null,"Бодайбо"]
[null,"Молдавия",null,null,null,null,null,null,null,null,null,{"$f":"'Потребность для загрузки'!J98","v":"x"},{"$f":"'Потребность для загрузки'!T98","v":"x"},null,null,null,"Бокситогорск"]
[null,"Монако",null,null,null,null,null,null,null,null,null,{"$f":"'Потребность для загрузки'!J99","v":"x"},{"$f":"'Потребность для загрузки'!T99","v":"x"},null,null,null,"Болгар"]
[null,"Монголия",null,null,null,null,null,null,null,null,null,{"$f":"'Потребность для загрузки'!J100","v":"x"},{"$f":"'Потребность для загрузки'!T100","v":"x"},null,null,null,"Бологое"]
[null,"Мьянма",null,null,null,null,null,null,null,null,null,{"$f":"'Потребность для загрузки'!J101","v":"x"},{"$f":"'Потребность для загрузки'!T101","v":"x"},null,null,null,"Болотное"]
[null,"Нагорно-Карабахская Республика",null,null,null,null,null,null,null,null,null,{"$f":"'Потребность для загрузки'!J102","v":"x"},{"$f":"'Потребность для загрузки'!T102","v":"x"},null,null,null,"Болохово"]
[null,"Намибия",null,null,null,null,null,null,null,null,null,{"$f":"'Потребность для загрузки'!J103","v":"x"},{"$f":"'Потребность для загрузки'!T103","v":"x"},null,null,null,"Болхов"]
[null,"Науру",null,null,null,null,null,null,null,null,null,null,null,null,null,null,"Большой Камень"]
[null,"Непал",null,null,null,null,null,null,null,null,null,null,null,null,null,null,"Бор"]
[null,"Нигер",null,null,null,null,null,null,null,null,null,null,null,null,null,null,"Борзя"]
[null,"Нигерия",null,null,null,null,null,null,null,null,null,null,null,null,null,null,"Борисоглебск"]
[null,"Нидерланды",null,null,null,null,null,null,null,null,null,null,null,null,null,null,"Боровичи"]
[null,"Никарагуа",null,null,null,null,null,null,null,null,null,null,null,null,null,null,"Боровск"]
[null,"Ниуэ",null,null,null,null,null,null,null,null,null,null,null,null,null,null,"Бородино"]
[null,"Новая Зеландия",null,null,null,null,null,null,null,null,null,null,null,null,null,null,"Братск"]
[null,"Норвегия",null,null,null,null,null,null,null,null,null,null,null,null,null,null,"Бронницы"]
[null,"Объединённые Арабские Эмираты",null,null,null,null,null,null,null,null,null,null,null,null,null,null,"Брянск"]
[null,"Оман",null,null,null,null,null,null,null,null,null,null,null,null,null,null,"Бугульма"]
[null,"Острова Кука",null,null,null,null,null,null,null,null,null,null,null,null,null,null,"Бугуруслан"]
[null,"Пакистан",null,null,null,null,null,null,null,null,null,null,null,null,null,null,"Будённовск"]
[null,"Палау",null,null,null,null,null,null,null,null,null,null,null,null,null,null,"Бузулук"]
[null,"Панама",null,null,null,null,null,null,null,null,null,null,null,null,null,null,"Буинск"]
[null,"Папуа – Новая Гвинея",null,null,null,null,null,null,null,null,null,null,null,null,null,null,"Буй"]
[null,"Парагвай",null,null,null,null,null,null,null,null,null,null,null,null,null,null,"Буйнакск"]
[null,"Перу",null,null,null,null,null,null,null,null,null,null,null,null,null,null,"Бутурлиновка"]
[null,"Польша",null,null,null,null,null,null,null,null,null,null,null,null,null,null,"Валдай"]
[null,"Португалия",null,null,null,null,null,null,null,null,null,null,null,null,null,null,"Валуйки"]
[null,"Пуэрто-Рико",null,null,null,null,null,null,null,null,null,null,null,null,null,null,"Велиж"]
[null,"Республика Конго",null,null,null,null,null,null,null,null,null,null,null,null,null,null,"Великие Луки"]
[null,"Россия",null,null,null,null,null,null,null,null,null,null,null,null,null,null,"Великий Новгород"]
[null,"Руанда",null,null,null,null,null,null,null,null,null,null,null,null,null,null,"Великий Устюг"]
[null,"Румыния",null,null,null,null,null,null,null,null,null,null,null,null,null,null,"Вельск"]
[null,"Сальвадор",null,null,null,null,null,null,null,null,null,null,null,null,null,null,"Венёв"]
[null,"Самоа",null,null,null,null,null,null,null,null,null,null,null,null,null,null,"Верещагино"]
[null,"Сан-Марино",null,null,null,null,null,null,null,null,null,null,null,null,null,null,"Верея"]
[null,"Сан-Томе и Принсипи",null,null,null,null,null,null,null,null,null,null,null,null,null,null,"Верхнеуральск"]
[null,"Саудовская Аравия",null,null,null,null,null,null,null,null,null,null,null,null,null,null,"Верхний Тагил"]
[null,"Сахарская Арабская Демократическая Республика",null,null,null,null,null,null,null,null,null,null,null,null,null,null,"Верхний Уфалей"]
[null,"Свазиленд",null,null,null,null,null,null,null,null,null,null,null,null,null,null,"Верхняя Пышма"]
[null,"Северный Кипр",null,null,null,null,null,null,null,null,null,null,null,null,null,null,"Верхняя Салда"]
[null,"Сейшельские Острова",null,null,null,null,null,null,null,null,null,null,null,null,null,null,"Верхняя Тура"]
[null,"Сенегал",null,null,null,null,null,null,null,null,null,null,null,null,null,null,"Верхотурье"]
[null,"Сент-Винсент и Гренадины",null,null,null,null,null,null,null,null,null,null,null,null,null,null,"Верхоянск"]
[null,"Сент-Китс и Невис",null,null,null,null,null,null,null,null,null,null,null,null,null,null,"Весьегонск"]
[null,"Сент-Люсия",null,null,null,null,null,null,null,null,null,null,null,null,null,null,"Ветлуга"]
[null,"Сербия",null,null,null,null,null,null,null,null,null,null,null,null,null,null,"Видное"]
[null,"Сингапур",null,null,null,null,null,null,null,null,null,null,null,null,null,null,"Вилюйск"]
[null,"Синт-Мартен",null,null,null,null,null,null,null,null,null,null,null,null,null,null,"Вилючинск"]
[null,"Сирия",null,null,null,null,null,null,null,null,null,null,null,null,null,null,"Вихоревка"]
[null,"Словакия",null,null,null,null,null,null,null,null,null,null,null,null,null,null,"Вичуга"]
[null,"Словения",null,null,null,null,null,null,null,null,null,null,null,null,null,null,"Владивосток"]
[null,"Соединённые Штаты Америки",null,null,null,null,null,null,null,null,null,null,null,null,null,null,"Владикавказ"]
[null,"Соломоновы Острова",null,null,null,null,null,null,null,null,null,null,null,null,null,null,"Владимир"]
[null,"Сомали",null,null,null,null,null,null,null,null,null,null,null,null,null,null,"Волгоград"]
[null,"Судан",null,null,null,null,null,null,null,null,null,null,null,null,null,null,"Волгодонск"]
[null,"Суринам",null,null,null,null,null,null,null,null,null,null,null,null,null,null,"Волгореченск"]
[null,"Сьерра-Леоне",null,null,null,null,null,null,null,null,null,null,null,null,null,null,"Волжск"]
[null,"Таджикистан",null,null,null,null,null,null,null,null,null,null,null,null,null,null,"Волжский"]
[null,"Таиланд",null,null,null,null,null,null,null,null,null,null,null,null,null,null,"Вологда"]
[null,"Танзания",null,null,null,null,null,null,null,null,null,null,null,null,null,null,"Володарск"]
[null,"Того",null,null,null,null,null,null,null,null,null,null,null,null,null,null,"Волоколамск"]
[null,"Тонга",null,null,null,null,null,null,null,null,null,null,null,null,null,null,"Волосово"]
[null,"Тринидад и Тобаго",null,null,null,null,null,null,null,null,null,null,null,null,null,null,"Волхов"]
[null,"Тувалу",null,null,null,null,null,null,null,null,null,null,null,null,null,null,"Волчанск"]
[null,"Тунис",null,null,null,null,null,null,null,null,null,null,null,null,null,null,"Вольск"]
[null,"Туркмения",null,null,null,null,null,null,null,null,null,null,null,null,null,null,"Воркута"]
[null,"Турция",null,null,null,null,null,null,null,null,null,null,null,null,null,null,"Воронеж"]
[null,"Уганда",null,null,null,null,null,null,null,null,null,null,null,null,null,null,"Ворсма"]
[null,"Узбекистан",null,null,null,null,null,null,null,null,null,null,null,null,null,null,"Воскресенск"]
[null,"Украина",null,null,null,null,null,null,null,null,null,null,null,null,null,null,"Воткинск"]
[null,"Уругвай",null,null,null,null,null,null,null,null,null,null,null,null,null,null,"Всеволожск"]
[null,"Фареры",null,null,null,null,null,null,null,null,null,null,null,null,null,null,"Вуктыл"]
[null,"Фиджи",null,null,null,null,null,null,null,null,null,null,null,null,null,null,"Выборг"]
[null,"Филиппины",null,null,null,null,null,null,null,null,null,null,null,null,null,null,"Выкса"]
[null,"Финляндия",null,null,null,null,null,null,null,null,null,null,null,null,null,null,"Высоковск"]
[null,"Франция",null,null,null,null,null,null,null,null,null,null,null,null,null,null,"Высоцк"]
[null,"Хорватия",null,null,null,null,null,null,null,null,null,null,null,null,null,null,"Вытегра"]
[null,"Центральноафриканская Республика",null,null,null,null,null,null,null,null,null,null,null,null,null,null,"Вышний Волочёк"]
[null,"Чад",null,null,null,null,null,null,null,null,null,null,null,null,null,null,"Вяземский"]
[null,"Черногория",null,null,null,null,null,null,null,null,null,null,null,null,null,null,"Вязники"]
[null,"Чехия",null,null,null,null,null,null,null,null,null,null,null,null,null,null,"Вязьма"]
[null,"Чили",null,null,null,null,null,null,null,null,null,null,null,null,null,null,"Вятские Поляны"]
[null,"Швейцария",null,null,null,null,null,null,null,null,null,null,null,null,null,null,"Гаврилов Посад"]
[null,"Швеция",null,null,null,null,null,null,null,null,null,null,null,null,null,null,"Гаврилов-Ям"]
[null,"Шри-Ланка",null,null,null,null,null,null,null,null,null,null,null,null,null,null,"Гагарин"]
[null,"Эквадор",null,null,null,null,null,null,null,null,null,null,null,null,null,null,"Гаджиево"]
[null,"Экваториальная Гвинея",null,null,null,null,null,null,null,null,null,null,null,null,null,null,"Гай"]
[null,"Эритрея",null,null,null,null,null,null,null,null,null,null,null,null,null,null,"Галич"]
[null,"Эстония",null,null,null,null,null,null,null,null,null,null,null,null,null,null,"Гатчина"]
[null,"Эфиопия",null,null,null,null,null,null,null,null,null,null,null,null,null,null,"Гвардейск"]
[null,"Южная Корея",null,null,null,null,null,null,null,null,null,null,null,null,null,null,"Гдов"]
[null,"Южная Осетия",null,null,null,null,null,null,null,null,null,null,null,null,null,null,"Геленджик"]
[null,"Южно-Африканская Республика",null,null,null,null,null,null,null,null,null,null,null,null,null,null,"Георгиевск"]
[null,"Южный Судан",null,null,null,null,null,null,null,null,null,null,null,null,null,null,"Глазов"]
[null,"Ямайка",null,null,null,null,null,null,null,null,null,null,null,null,null,null,"Голицыно"]
[null,"Япония",null,null,null,null,null,null,null,null,null,null,null,null,null,null,"Горбатов"]
[null,null,null,null,null,null,null,null,null,null,null,null,null,null,null,null,"Горно-Алтайск"]
[null,null,null,null,null,null,null,null,null,null,null,null,null,null,null,null,"Горнозаводск"]
[null,null,null,null,null,null,null,null,null,null,null,null,null,null,null,null,"Горняк"]
[null,null,null,null,null,null,null,null,null,null,null,null,null,null,null,null,"Городец"]
[null,null,null,null,null,null,null,null,null,null,null,null,null,null,null,null,"Городище"]
[null,null,null,null,null,null,null,null,null,null,null,null,null,null,null,null,"Городовиковск"]
[null,null,null,null,null,null,null,null,null,null,null,null,null,null,null,null,"Гороховец"]
[null,null,null,null,null,null,null,null,null,null,null,null,null,null,null,null,"Горячий Ключ"]
[null,null,null,null,null,null,null,null,null,null,null,null,null,null,null,null,"Грайворон"]
[null,null,null,null,null,null,null,null,null,null,null,null,null,null,null,null,"Гремячинск"]
[null,null,null,null,null,null,null,null,null,null,null,null,null,null,null,null,"Грозный"]
[null,null,null,null,null,null,null,null,null,null,null,null,null,null,null,null,"Грязи"]
[null,null,null,null,null,null,null,null,null,null,null,null,null,null,null,null,"Грязовец"]
[null,null,null,null,null,null,null,null,null,null,null,null,null,null,null,null,"Губаха"]
[null,null,null,null,null,null,null,null,null,null,null,null,null,null,null,null,"Губкин"]
[null,null,null,null,null,null,null,null,null,null,null,null,null,null,null,null,"Губкинский"]
[null,null,null,null,null,null,null,null,null,null,null,null,null,null,null,null,"Гудермес"]
[null,null,null,null,null,null,null,null,null,null,null,null,null,null,null,null,"Гуково"]
[null,null,null,null,null,null,null,null,null,null,null,null,null,null,null,null,"Гулькевичи"]
[null,null,null,null,null,null,null,null,null,null,null,null,null,null,null,null,"Гурьевск"]
[null,null,null,null,null,null,null,null,null,null,null,null,null,null,null,null,"Гурьевск"]
[null,null,null,null,null,null,null,null,null,null,null,null,null,null,null,null,"Гусев"]
[null,null,null,null,null,null,null,null,null,null,null,null,null,null,null,null,"Гусиноозёрск"]
[null,null,null,null,null,null,null,null,null,null,null,null,null,null,null,null,"Гусь-Хрустальный"]
[null,null,null,null,null,null,null,null,null,null,null,null,null,null,null,null,"Давлеканово"]
[null,null,null,null,null,null,null,null,null,null,null,null,null,null,null,null,"Дагестанские Огни"]
[null,null,null,null,null,null,null,null,null,null,null,null,null,null,null,null,"Далматово"]
[null,null,null,null,null,null,null,null,null,null,null,null,null,null,null,null,"Дальнегорск"]
[null,null,null,null,null,null,null,null,null,null,null,null,null,null,null,null,"Дальнереченск"]
[null,null,null,null,null,null,null,null,null,null,null,null,null,null,null,null,"Данилов"]
[null,null,null,null,null,null,null,null,null,null,null,null,null,null,null,null,"Данков"]
[null,null,null,null,null,null,null,null,null,null,null,null,null,null,null,null,"Дегтярск"]
[null,null,null,null,null,null,null,null,null,null,null,null,null,null,null,null,"Дедовск"]
[null,null,null,null,null,null,null,null,null,null,null,null,null,null,null,null,"Демидов"]
[null,null,null,null,null,null,null,null,null,null,null,null,null,null,null,null,"Дербент"]
[null,null,null,null,null,null,null,null,null,null,null,null,null,null,null,null,"Десногорск"]
[null,null,null,null,null,null,null,null,null,null,null,null,null,null,null,null,"Джанкой"]
[null,null,null,null,null,null,null,null,null,null,null,null,null,null,null,null,"Дзержинск"]
[null,null,null,null,null,null,null,null,null,null,null,null,null,null,null,null,"Дзержинский"]
[null,null,null,null,null,null,null,null,null,null,null,null,null,null,null,null,"Дивногорск"]
[null,null,null,null,null,null,null,null,null,null,null,null,null,null,null,null,"Дигора"]
[null,null,null,null,null,null,null,null,null,null,null,null,null,null,null,null,"Димитровград"]
[null,null,null,null,null,null,null,null,null,null,null,null,null,null,null,null,"Дмитриев"]
[null,null,null,null,null,null,null,null,null,null,null,null,null,null,null,null,"Дмитров"]
[null,null,null,null,null,null,null,null,null,null,null,null,null,null,null,null,"Дмитровск"]
[null,null,null,null,null,null,null,null,null,null,null,null,null,null,null,null,"Дно"]
[null,null,null,null,null,null,null,null,null,null,null,null,null,null,null,null,"Добрянка"]
[null,null,null,null,null,null,null,null,null,null,null,null,null,null,null,null,"Долгопрудный"]
[null,null,null,null,null,null,null,null,null,null,null,null,null,null,null,null,"Долинск"]
[null,null,null,null,null,null,null,null,null,null,null,null,null,null,null,null,"Домодедово"]
[null,null,null,null,null,null,null,null,null,null,null,null,null,null,null,null,"Донецк"]
[null,null,null,null,null,null,null,null,null,null,null,null,null,null,null,null,"Донской"]
[null,null,null,null,null,null,null,null,null,null,null,null,null,null,null,null,"Дорогобуж"]
[null,null,null,null,null,null,null,null,null,null,null,null,null,null,null,null,"Дрезна"]
[null,null,null,null,null,null,null,null,null,null,null,null,null,null,null,null,"Дубна"]
[null,null,null,null,null,null,null,null,null,null,null,null,null,null,null,null,"Дубовка"]
[null,null,null,null,null,null,null,null,null,null,null,null,null,null,null,null,"Дудинка"]
[null,null,null,null,null,null,null,null,null,null,null,null,null,null,null,null,"Духовщина"]
[null,null,null,null,null,null,null,null,null,null,null,null,null,null,null,null,"Дюртюли"]
[null,null,null,null,null,null,null,null,null,null,null,null,null,null,null,null,"Дятьково"]
[null,null,null,null,null,null,null,null,null,null,null,null,null,null,null,null,"Евпатория"]
[null,null,null,null,null,null,null,null,null,null,null,null,null,null,null,null,"Егорьевск"]
[null,null,null,null,null,null,null,null,null,null,null,null,null,null,null,null,"Ейск"]
[null,null,null,null,null,null,null,null,null,null,null,null,null,null,null,null,"Екатеринбург"]
[null,null,null,null,null,null,null,null,null,null,null,null,null,null,null,null,"Елабуга"]
[null,null,null,null,null,null,null,null,null,null,null,null,null,null,null,null,"Елец"]
[null,null,null,null,null,null,null,null,null,null,null,null,null,null,null,null,"Елизово"]
[null,null,null,null,null,null,null,null,null,null,null,null,null,null,null,null,"Ельня"]
[null,null,null,null,null,null,null,null,null,null,null,null,null,null,null,null,"Еманжелинск"]
[null,null,null,null,null,null,null,null,null,null,null,null,null,null,null,null,"Емва"]
[null,null,null,null,null,null,null,null,null,null,null,null,null,null,null,null,"Енисейск"]
[null,null,null,null,null,null,null,null,null,null,null,null,null,null,null,null,"Ермолино"]
[null,null,null,null,null,null,null,null,null,null,null,null,null,null,null,null,"Ершов"]
[null,null,null,null,null,null,null,null,null,null,null,null,null,null,null,null,"Ессентуки"]
[null,null,null,null,null,null,null,null,null,null,null,null,null,null,null,null,"Ефремов"]
[null,null,null,null,null,null,null,null,null,null,null,null,null,null,null,null,"Железноводск"]
[null,null,null,null,null,null,null,null,null,null,null,null,null,null,null,null,"Железногорск"]
[null,null,null,null,null,null,null,null,null,null,null,null,null,null,null,null,"Железногорск"]
[null,null,null,null,null,null,null,null,null,null,null,null,null,null,null,null,"Железногорск-Илимский"]
[null,null,null,null,null,null,null,null,null,null,null,null,null,null,null,null,"Жердевка"]
[null,null,null,null,null,null,null,null,null,null,null,null,null,null,null,null,"Жигулёвск"]
[null,null,null,null,null,null,null,null,null,null,null,null,null,null,null,null,"Жиздра"]
[null,null,null,null,null,null,null,null,null,null,null,null,null,null,null,null,"Жирновск"]
[null,null,null,null,null,null,null,null,null,null,null,null,null,null,null,null,"Жуков"]
[null,null,null,null,null,null,null,null,null,null,null,null,null,null,null,null,"Жуковка"]
[null,null,null,null,null,null,null,null,null,null,null,null,null,null,null,null,"Жуковский"]
[null,null,null,null,null,null,null,null,null,null,null,null,null,null,null,null,"Завитинск"]
[null,null,null,null,null,null,null,null,null,null,null,null,null,null,null,null,"Заводоуковск"]
[null,null,null,null,null,null,null,null,null,null,null,null,null,null,null,null,"Заволжск"]
[null,null,null,null,null,null,null,null,null,null,null,null,null,null,null,null,"Заволжье"]
[null,null,null,null,null,null,null,null,null,null,null,null,null,null,null,null,"Задонск"]
[null,null,null,null,null,null,null,null,null,null,null,null,null,null,null,null,"Заинск"]
[null,null,null,null,null,null,null,null,null,null,null,null,null,null,null,null,"Закаменск"]
[null,null,null,null,null,null,null,null,null,null,null,null,null,null,null,null,"Заозёрный"]
[null,null,null,null,null,null,null,null,null,null,null,null,null,null,null,null,"Заозёрск"]
[null,null,null,null,null,null,null,null,null,null,null,null,null,null,null,null,"Западная Двина"]
[null,null,null,null,null,null,null,null,null,null,null,null,null,null,null,null,"Заполярный"]
[null,null,null,null,null,null,null,null,null,null,null,null,null,null,null,null,"Зарайск"]
[null,null,null,null,null,null,null,null,null,null,null,null,null,null,null,null,"Заречный"]
[null,null,null,null,null,null,null,null,null,null,null,null,null,null,null,null,"Заречный"]
[null,null,null,null,null,null,null,null,null,null,null,null,null,null,null,null,"Заринск"]
[null,null,null,null,null,null,null,null,null,null,null,null,null,null,null,null,"Звенигово"]
[null,null,null,null,null,null,null,null,null,null,null,null,null,null,null,null,"Звенигород"]
[null,null,null,null,null,null,null,null,null,null,null,null,null,null,null,null,"Зверево"]
[null,null,null,null,null,null,null,null,null,null,null,null,null,null,null,null,"Зеленогорск"]
[null,null,null,null,null,null,null,null,null,null,null,null,null,null,null,null,"Зеленоград"]
[null,null,null,null,null,null,null,null,null,null,null,null,null,null,null,null,"Зеленоградск"]
[null,null,null,null,null,null,null,null,null,null,null,null,null,null,null,null,"Зеленодольск"]
[null,null,null,null,null,null,null,null,null,null,null,null,null,null,null,null,"Зеленокумск"]
[null,null,null,null,null,null,null,null,null,null,null,null,null,null,null,null,"Зерноград"]
[null,null,null,null,null,null,null,null,null,null,null,null,null,null,null,null,"Зея"]
[null,null,null,null,null,null,null,null,null,null,null,null,null,null,null,null,"Зима"]
[null,null,null,null,null,null,null,null,null,null,null,null,null,null,null,null,"Златоуст"]
[null,null,null,null,null,null,null,null,null,null,null,null,null,null,null,null,"Злынка"]
[null,null,null,null,null,null,null,null,null,null,null,null,null,null,null,null,"Змеиногорск"]
[null,null,null,null,null,null,null,null,null,null,null,null,null,null,null,null,"Знаменск"]
[null,null,null,null,null,null,null,null,null,null,null,null,null,null,null,null,"Зубцов"]
[null,null,null,null,null,null,null,null,null,null,null,null,null,null,null,null,"Зуевка"]
[null,null,null,null,null,null,null,null,null,null,null,null,null,null,null,null,"Ивангород"]
[null,null,null,null,null,null,null,null,null,null,null,null,null,null,null,null,"Иваново"]
[null,null,null,null,null,null,null,null,null,null,null,null,null,null,null,null,"Ивантеевка"]
[null,null,null,null,null,null,null,null,null,null,null,null,null,null,null,null,"Ивдель"]
[null,null,null,null,null,null,null,null,null,null,null,null,null,null,null,null,"Игарка"]
[null,null,null,null,null,null,null,null,null,null,null,null,null,null,null,null,"Ижевск"]
[null,null,null,null,null,null,null,null,null,null,null,null,null,null,null,null,"Избербаш"]
[null,null,null,null,null,null,null,null,null,null,null,null,null,null,null,null,"Изобильный"]
[null,null,null,null,null,null,null,null,null,null,null,null,null,null,null,null,"Иланский"]
[null,null,null,null,null,null,null,null,null,null,null,null,null,null,null,null,"Инза"]
[null,null,null,null,null,null,null,null,null,null,null,null,null,null,null,null,"Иннополис"]
[null,null,null,null,null,null,null,null,null,null,null,null,null,null,null,null,"Инсар"]
[null,null,null,null,null,null,null,null,null,null,null,null,null,null,null,null,"Инта"]
[null,null,null,null,null,null,null,null,null,null,null,null,null,null,null,null,"Ипатово"]
[null,null,null,null,null,null,null,null,null,null,null,null,null,null,null,null,"Ирбит"]
[null,null,null,null,null,null,null,null,null,null,null,null,null,null,null,null,"Иркутск"]
[null,null,null,null,null,null,null,null,null,null,null,null,null,null,null,null,"Исилькуль"]
[null,null,null,null,null,null,null,null,null,null,null,null,null,null,null,null,"Искитим"]
[null,null,null,null,null,null,null,null,null,null,null,null,null,null,null,null,"Истра"]
[null,null,null,null,null,null,null,null,null,null,null,null,null,null,null,null,"Ишим"]
[null,null,null,null,null,null,null,null,null,null,null,null,null,null,null,null,"Ишимбай"]
[null,null,null,null,null,null,null,null,null,null,null,null,null,null,null,null,"Йошкар-Ола"]
[null,null,null,null,null,null,null,null,null,null,null,null,null,null,null,null,"Кадников"]
[null,null,null,null,null,null,null,null,null,null,null,null,null,null,null,null,"Казань"]
[null,null,null,null,null,null,null,null,null,null,null,null,null,null,null,null,"Калач"]
[null,null,null,null,null,null,null,null,null,null,null,null,null,null,null,null,"Калач-на-Дону"]
[null,null,null,null,null,null,null,null,null,null,null,null,null,null,null,null,"Калачинск"]
[null,null,null,null,null,null,null,null,null,null,null,null,null,null,null,null,"Калининград"]
[null,null,null,null,null,null,null,null,null,null,null,null,null,null,null,null,"Калининск"]
[null,null,null,null,null,null,null,null,null,null,null,null,null,null,null,null,"Калтан"]
[null,null,null,null,null,null,null,null,null,null,null,null,null,null,null,null,"Калуга"]
[null,null,null,null,null,null,null,null,null,null,null,null,null,null,null,null,"Калязин"]
[null,null,null,null,null,null,null,null,null,null,null,null,null,null,null,null,"Камбарка"]
[null,null,null,null,null,null,null,null,null,null,null,null,null,null,null,null,"Каменка"]
[null,null,null,null,null,null,null,null,null,null,null,null,null,null,null,null,"Каменногорск"]
[null,null,null,null,null,null,null,null,null,null,null,null,null,null,null,null,"Каменск-Уральский"]
[null,null,null,null,null,null,null,null,null,null,null,null,null,null,null,null,"Каменск-Шахтинский"]
[null,null,null,null,null,null,null,null,null,null,null,null,null,null,null,null,"Камень-на-Оби"]
[null,null,null,null,null,null,null,null,null,null,null,null,null,null,null,null,"Камешково"]
[null,null,null,null,null,null,null,null,null,null,null,null,null,null,null,null,"Камызяк"]
[null,null,null,null,null,null,null,null,null,null,null,null,null,null,null,null,"Камышин"]
[null,null,null,null,null,null,null,null,null,null,null,null,null,null,null,null,"Камышлов"]
[null,null,null,null,null,null,null,null,null,null,null,null,null,null,null,null,"Канаш"]
[null,null,null,null,null,null,null,null,null,null,null,null,null,null,null,null,"Кандалакша"]
[null,null,null,null,null,null,null,null,null,null,null,null,null,null,null,null,"Канск"]
[null,null,null,null,null,null,null,null,null,null,null,null,null,null,null,null,"Карабаново"]
[null,null,null,null,null,null,null,null,null,null,null,null,null,null,null,null,"Карабаш"]
[null,null,null,null,null,null,null,null,null,null,null,null,null,null,null,null,"Карабулак"]
[null,null,null,null,null,null,null,null,null,null,null,null,null,null,null,null,"Карасук"]
[null,null,null,null,null,null,null,null,null,null,null,null,null,null,null,null,"Карачаевск"]
[null,null,null,null,null,null,null,null,null,null,null,null,null,null,null,null,"Карачев"]
[null,null,null,null,null,null,null,null,null,null,null,null,null,null,null,null,"Каргат"]
[null,null,null,null,null,null,null,null,null,null,null,null,null,null,null,null,"Каргополь"]
[null,null,null,null,null,null,null,null,null,null,null,null,null,null,null,null,"Карпинск"]
[null,null,null,null,null,null,null,null,null,null,null,null,null,null,null,null,"Карталы"]
[null,null,null,null,null,null,null,null,null,null,null,null,null,null,null,null,"Касимов"]
[null,null,null,null,null,null,null,null,null,null,null,null,null,null,null,null,"Касли"]
[null,null,null,null,null,null,null,null,null,null,null,null,null,null,null,null,"Каспийск"]
[null,null,null,null,null,null,null,null,null,null,null,null,null,null,null,null,"Катав-Ивановск"]
[null,null,null,null,null,null,null,null,null,null,null,null,null,null,null,null,"Катайск"]
[null,null,null,null,null,null,null,null,null,null,null,null,null,null,null,null,"Качканар"]
[null,null,null,null,null,null,null,null,null,null,null,null,null,null,null,null,"Кашин"]
[null,null,null,null,null,null,null,null,null,null,null,null,null,null,null,null,"Кашира"]
[null,null,null,null,null,null,null,null,null,null,null,null,null,null,null,null,"Кедровый"]
[null,null,null,null,null,null,null,null,null,null,null,null,null,null,null,null,"Кемерово"]
[null,null,null,null,null,null,null,null,null,null,null,null,null,null,null,null,"Кемь"]
[null,null,null,null,null,null,null,null,null,null,null,null,null,null,null,null,"Керчь"]
[null,null,null,null,null,null,null,null,null,null,null,null,null,null,null,null,"Кизел"]
[null,null,null,null,null,null,null,null,null,null,null,null,null,null,null,null,"Кизилюрт"]
[null,null,null,null,null,null,null,null,null,null,null,null,null,null,null,null,"Кизляр"]
[null,null,null,null,null,null,null,null,null,null,null,null,null,null,null,null,"Кимовск"]
[null,null,null,null,null,null,null,null,null,null,null,null,null,null,null,null,"Кимры"]
[null,null,null,null,null,null,null,null,null,null,null,null,null,null,null,null,"Кингисепп"]
[null,null,null,null,null,null,null,null,null,null,null,null,null,null,null,null,"Кинель"]
[null,null,null,null,null,null,null,null,null,null,null,null,null,null,null,null,"Кинешма"]
[null,null,null,null,null,null,null,null,null,null,null,null,null,null,null,null,"Киреевск"]
[null,null,null,null,null,null,null,null,null,null,null,null,null,null,null,null,"Киренск"]
[null,null,null,null,null,null,null,null,null,null,null,null,null,null,null,null,"Киржач"]
[null,null,null,null,null,null,null,null,null,null,null,null,null,null,null,null,"Кириллов"]
[null,null,null,null,null,null,null,null,null,null,null,null,null,null,null,null,"Кириши"]
[null,null,null,null,null,null,null,null,null,null,null,null,null,null,null,null,"Киров"]
[null,null,null,null,null,null,null,null,null,null,null,null,null,null,null,null,"Киров"]
[null,null,null,null,null,null,null,null,null,null,null,null,null,null,null,null,"Кировград"]
[null,null,null,null,null,null,null,null,null,null,null,null,null,null,null,null,"Кирово-Чепецк"]
[null,null,null,null,null,null,null,null,null,null,null,null,null,null,null,null,"Кировск"]
[null,null,null,null,null,null,null,null,null,null,null,null,null,null,null,null,"Кировск"]
[null,null,null,null,null,null,null,null,null,null,null,null,null,null,null,null,"Кирс"]
[null,null,null,null,null,null,null,null,null,null,null,null,null,null,null,null,"Кирсанов"]
[null,null,null,null,null,null,null,null,null,null,null,null,null,null,null,null,"Киселёвск"]
[null,null,null,null,null,null,null,null,null,null,null,null,null,null,null,null,"Кисловодск"]
[null,null,null,null,null,null,null,null,null,null,null,null,null,null,null,null,"Клин"]
[null,null,null,null,null,null,null,null,null,null,null,null,null,null,null,null,"Клинцы"]
[null,null,null,null,null,null,null,null,null,null,null,null,null,null,null,null,"Княгинино"]
[null,null,null,null,null,null,null,null,null,null,null,null,null,null,null,null,"Ковдор"]
[null,null,null,null,null,null,null,null,null,null,null,null,null,null,null,null,"Ковров"]
[null,null,null,null,null,null,null,null,null,null,null,null,null,null,null,null,"Ковылкино"]
[null,null,null,null,null,null,null,null,null,null,null,null,null,null,null,null,"Когалым"]
[null,null,null,null,null,null,null,null,null,null,null,null,null,null,null,null,"Кодинск"]
[null,null,null,null,null,null,null,null,null,null,null,null,null,null,null,null,"Козельск"]
[null,null,null,null,null,null,null,null,null,null,null,null,null,null,null,null,"Козловка"]
[null,null,null,null,null,null,null,null,null,null,null,null,null,null,null,null,"Козьмодемьянск"]
[null,null,null,null,null,null,null,null,null,null,null,null,null,null,null,null,"Кола"]
[null,null,null,null,null,null,null,null,null,null,null,null,null,null,null,null,"Кологрив"]
[null,null,null,null,null,null,null,null,null,null,null,null,null,null,null,null,"Коломна"]
[null,null,null,null,null,null,null,null,null,null,null,null,null,null,null,null,"Колпашево"]
[null,null,null,null,null,null,null,null,null,null,null,null,null,null,null,null,"Кольчугино"]
[null,null,null,null,null,null,null,null,null,null,null,null,null,null,null,null,"Коммунар"]
[null,null,null,null,null,null,null,null,null,null,null,null,null,null,null,null,"Комсомольск"]
[null,null,null,null,null,null,null,null,null,null,null,null,null,null,null,null,"Комсомольск-на-Амуре"]
[null,null,null,null,null,null,null,null,null,null,null,null,null,null,null,null,"Конаково"]
[null,null,null,null,null,null,null,null,null,null,null,null,null,null,null,null,"Кондопога"]
[null,null,null,null,null,null,null,null,null,null,null,null,null,null,null,null,"Кондрово"]
[null,null,null,null,null,null,null,null,null,null,null,null,null,null,null,null,"Константиновск"]
[null,null,null,null,null,null,null,null,null,null,null,null,null,null,null,null,"Копейск"]
[null,null,null,null,null,null,null,null,null,null,null,null,null,null,null,null,"Кораблино"]
[null,null,null,null,null,null,null,null,null,null,null,null,null,null,null,null,"Кореновск"]
[null,null,null,null,null,null,null,null,null,null,null,null,null,null,null,null,"Коркино"]
[null,null,null,null,null,null,null,null,null,null,null,null,null,null,null,null,"Королёв"]
[null,null,null,null,null,null,null,null,null,null,null,null,null,null,null,null,"Короча"]
[null,null,null,null,null,null,null,null,null,null,null,null,null,null,null,null,"Корсаков"]
[null,null,null,null,null,null,null,null,null,null,null,null,null,null,null,null,"Коряжма"]
[null,null,null,null,null,null,null,null,null,null,null,null,null,null,null,null,"Костерёво"]
[null,null,null,null,null,null,null,null,null,null,null,null,null,null,null,null,"Костомукша"]
[null,null,null,null,null,null,null,null,null,null,null,null,null,null,null,null,"Кострома"]
[null,null,null,null,null,null,null,null,null,null,null,null,null,null,null,null,"Котельники"]
[null,null,null,null,null,null,null,null,null,null,null,null,null,null,null,null,"Котельниково"]
[null,null,null,null,null,null,null,null,null,null,null,null,null,null,null,null,"Котельнич"]
[null,null,null,null,null,null,null,null,null,null,null,null,null,null,null,null,"Котлас"]
[null,null,null,null,null,null,null,null,null,null,null,null,null,null,null,null,"Котово"]
[null,null,null,null,null,null,null,null,null,null,null,null,null,null,null,null,"Котовск"]
[null,null,null,null,null,null,null,null,null,null,null,null,null,null,null,null,"Кохма"]
[null,null,null,null,null,null,null,null,null,null,null,null,null,null,null,null,"Красавино"]
[null,null,null,null,null,null,null,null,null,null,null,null,null,null,null,null,"Красноармейск"]
[null,null,null,null,null,null,null,null,null,null,null,null,null,null,null,null,"Красноармейск"]
[null,null,null,null,null,null,null,null,null,null,null,null,null,null,null,null,"Красновишерск"]
[null,null,null,null,null,null,null,null,null,null,null,null,null,null,null,null,"Красногорск"]
[null,null,null,null,null,null,null,null,null,null,null,null,null,null,null,null,"Краснодар"]
[null,null,null,null,null,null,null,null,null,null,null,null,null,null,null,null,"Краснозаводск"]
[null,null,null,null,null,null,null,null,null,null,null,null,null,null,null,null,"Краснознаменск"]
[null,null,null,null,null,null,null,null,null,null,null,null,null,null,null,null,"Краснознаменск"]
[null,null,null,null,null,null,null,null,null,null,null,null,null,null,null,null,"Краснокаменск"]
[null,null,null,null,null,null,null,null,null,null,null,null,null,null,null,null,"Краснокамск"]
[null,null,null,null,null,null,null,null,null,null,null,null,null,null,null,null,"Красноперекопск"]
[null,null,null,null,null,null,null,null,null,null,null,null,null,null,null,null,"Краснослободск"]
[null,null,null,null,null,null,null,null,null,null,null,null,null,null,null,null,"Краснослободск"]
[null,null,null,null,null,null,null,null,null,null,null,null,null,null,null,null,"Краснотурьинск"]
[null,null,null,null,null,null,null,null,null,null,null,null,null,null,null,null,"Красноуральск"]
[null,null,null,null,null,null,null,null,null,null,null,null,null,null,null,null,"Красноуфимск"]
[null,null,null,null,null,null,null,null,null,null,null,null,null,null,null,null,"Красноярск"]
[null,null,null,null,null,null,null,null,null,null,null,null,null,null,null,null,"Красный Кут"]
[null,null,null,null,null,null,null,null,null,null,null,null,null,null,null,null,"Красный Сулин"]
[null,null,null,null,null,null,null,null,null,null,null,null,null,null,null,null,"Красный Холм"]
[null,null,null,null,null,null,null,null,null,null,null,null,null,null,null,null,"Кремёнки"]
[null,null,null,null,null,null,null,null,null,null,null,null,null,null,null,null,"Кропоткин"]
[null,null,null,null,null,null,null,null,null,null,null,null,null,null,null,null,"Крымск"]
[null,null,null,null,null,null,null,null,null,null,null,null,null,null,null,null,"Кстово"]
[null,null,null,null,null,null,null,null,null,null,null,null,null,null,null,null,"Кубинка"]
[null,null,null,null,null,null,null,null,null,null,null,null,null,null,null,null,"Кувандык"]
[null,null,null,null,null,null,null,null,null,null,null,null,null,null,null,null,"Кувшиново"]
[null,null,null,null,null,null,null,null,null,null,null,null,null,null,null,null,"Кудрово"]
[null,null,null,null,null,null,null,null,null,null,null,null,null,null,null,null,"Кудымкар"]
[null,null,null,null,null,null,null,null,null,null,null,null,null,null,null,null,"Кузнецк"]
[null,null,null,null,null,null,null,null,null,null,null,null,null,null,null,null,"Куйбышев"]
[null,null,null,null,null,null,null,null,null,null,null,null,null,null,null,null,"Кукмор"]
[null,null,null,null,null,null,null,null,null,null,null,null,null,null,null,null,"Кулебаки"]
[null,null,null,null,null,null,null,null,null,null,null,null,null,null,null,null,"Кумертау"]
[null,null,null,null,null,null,null,null,null,null,null,null,null,null,null,null,"Кунгур"]
[null,null,null,null,null,null,null,null,null,null,null,null,null,null,null,null,"Купино"]
[null,null,null,null,null,null,null,null,null,null,null,null,null,null,null,null,"Курган"]
[null,null,null,null,null,null,null,null,null,null,null,null,null,null,null,null,"Курганинск"]
[null,null,null,null,null,null,null,null,null,null,null,null,null,null,null,null,"Курильск"]
[null,null,null,null,null,null,null,null,null,null,null,null,null,null,null,null,"Курлово"]
[null,null,null,null,null,null,null,null,null,null,null,null,null,null,null,null,"Куровское"]
[null,null,null,null,null,null,null,null,null,null,null,null,null,null,null,null,"Курск"]
[null,null,null,null,null,null,null,null,null,null,null,null,null,null,null,null,"Куртамыш"]
[null,null,null,null,null,null,null,null,null,null,null,null,null,null,null,null,"Курчалой"]
[null,null,null,null,null,null,null,null,null,null,null,null,null,null,null,null,"Курчатов"]
[null,null,null,null,null,null,null,null,null,null,null,null,null,null,null,null,"Куса"]
[null,null,null,null,null,null,null,null,null,null,null,null,null,null,null,null,"Кушва"]
[null,null,null,null,null,null,null,null,null,null,null,null,null,null,null,null,"Кызыл"]
[null,null,null,null,null,null,null,null,null,null,null,null,null,null,null,null,"Кыштым"]
[null,null,null,null,null,null,null,null,null,null,null,null,null,null,null,null,"Кяхта"]
[null,null,null,null,null,null,null,null,null,null,null,null,null,null,null,null,"Лабинск"]
[null,null,null,null,null,null,null,null,null,null,null,null,null,null,null,null,"Лабытнанги"]
[null,null,null,null,null,null,null,null,null,null,null,null,null,null,null,null,"Лагань"]
[null,null,null,null,null,null,null,null,null,null,null,null,null,null,null,null,"Ладушкин"]
[null,null,null,null,null,null,null,null,null,null,null,null,null,null,null,null,"Лаишево"]
[null,null,null,null,null,null,null,null,null,null,null,null,null,null,null,null,"Лакинск"]
[null,null,null,null,null,null,null,null,null,null,null,null,null,null,null,null,"Лангепас"]
[null,null,null,null,null,null,null,null,null,null,null,null,null,null,null,null,"Лахденпохья"]
[null,null,null,null,null,null,null,null,null,null,null,null,null,null,null,null,"Лебедянь"]
[null,null,null,null,null,null,null,null,null,null,null,null,null,null,null,null,"Лениногорск"]
[null,null,null,null,null,null,null,null,null,null,null,null,null,null,null,null,"Ленинск"]
[null,null,null,null,null,null,null,null,null,null,null,null,null,null,null,null,"Ленинск-Кузнецкий"]
[null,null,null,null,null,null,null,null,null,null,null,null,null,null,null,null,"Ленск"]
[null,null,null,null,null,null,null,null,null,null,null,null,null,null,null,null,"Лермонтов"]
[null,null,null,null,null,null,null,null,null,null,null,null,null,null,null,null,"Лесной"]
[null,null,null,null,null,null,null,null,null,null,null,null,null,null,null,null,"Лесозаводск"]
[null,null,null,null,null,null,null,null,null,null,null,null,null,null,null,null,"Лесосибирск"]
[null,null,null,null,null,null,null,null,null,null,null,null,null,null,null,null,"Ливны"]
[null,null,null,null,null,null,null,null,null,null,null,null,null,null,null,null,"Ликино-Дулёво"]
[null,null,null,null,null,null,null,null,null,null,null,null,null,null,null,null,"Липецк"]
[null,null,null,null,null,null,null,null,null,null,null,null,null,null,null,null,"Липки"]
[null,null,null,null,null,null,null,null,null,null,null,null,null,null,null,null,"Лиски"]
[null,null,null,null,null,null,null,null,null,null,null,null,null,null,null,null,"Лихославль"]
[null,null,null,null,null,null,null,null,null,null,null,null,null,null,null,null,"Лобня"]
[null,null,null,null,null,null,null,null,null,null,null,null,null,null,null,null,"Лодейное Поле"]
[null,null,null,null,null,null,null,null,null,null,null,null,null,null,null,null,"Лосино-Петровский"]
[null,null,null,null,null,null,null,null,null,null,null,null,null,null,null,null,"Луга"]
[null,null,null,null,null,null,null,null,null,null,null,null,null,null,null,null,"Луза"]
[null,null,null,null,null,null,null,null,null,null,null,null,null,null,null,null,"Лукоянов"]
[null,null,null,null,null,null,null,null,null,null,null,null,null,null,null,null,"Луховицы"]
[null,null,null,null,null,null,null,null,null,null,null,null,null,null,null,null,"Лысково"]
[null,null,null,null,null,null,null,null,null,null,null,null,null,null,null,null,"Лысьва"]
[null,null,null,null,null,null,null,null,null,null,null,null,null,null,null,null,"Лыткарино"]
[null,null,null,null,null,null,null,null,null,null,null,null,null,null,null,null,"Льгов"]
[null,null,null,null,null,null,null,null,null,null,null,null,null,null,null,null,"Любань"]
[null,null,null,null,null,null,null,null,null,null,null,null,null,null,null,null,"Люберцы"]
[null,null,null,null,null,null,null,null,null,null,null,null,null,null,null,null,"Любим"]
[null,null,null,null,null,null,null,null,null,null,null,null,null,null,null,null,"Людиново"]
[null,null,null,null,null,null,null,null,null,null,null,null,null,null,null,null,"Лянтор"]
[null,null,null,null,null,null,null,null,null,null,null,null,null,null,null,null,"Магадан"]
[null,null,null,null,null,null,null,null,null,null,null,null,null,null,null,null,"Магас"]
[null,null,null,null,null,null,null,null,null,null,null,null,null,null,null,null,"Магнитогорск"]
[null,null,null,null,null,null,null,null,null,null,null,null,null,null,null,null,"Майкоп"]
[null,null,null,null,null,null,null,null,null,null,null,null,null,null,null,null,"Майский"]
[null,null,null,null,null,null,null,null,null,null,null,null,null,null,null,null,"Макаров"]
[null,null,null,null,null,null,null,null,null,null,null,null,null,null,null,null,"Макарьев"]
[null,null,null,null,null,null,null,null,null,null,null,null,null,null,null,null,"Макушино"]
[null,null,null,null,null,null,null,null,null,null,null,null,null,null,null,null,"Малая Вишера"]
[null,null,null,null,null,null,null,null,null,null,null,null,null,null,null,null,"Малгобек"]
[null,null,null,null,null,null,null,null,null,null,null,null,null,null,null,null,"Малмыж"]
[null,null,null,null,null,null,null,null,null,null,null,null,null,null,null,null,"Малоархангельск"]
[null,null,null,null,null,null,null,null,null,null,null,null,null,null,null,null,"Малоярославец"]
[null,null,null,null,null,null,null,null,null,null,null,null,null,null,null,null,"Мамадыш"]
[null,null,null,null,null,null,null,null,null,null,null,null,null,null,null,null,"Мамоново"]
[null,null,null,null,null,null,null,null,null,null,null,null,null,null,null,null,"Мантурово"]
[null,null,null,null,null,null,null,null,null,null,null,null,null,null,null,null,"Мариинск"]
[null,null,null,null,null,null,null,null,null,null,null,null,null,null,null,null,"Мариинский Посад"]
[null,null,null,null,null,null,null,null,null,null,null,null,null,null,null,null,"Маркс"]
[null,null,null,null,null,null,null,null,null,null,null,null,null,null,null,null,"Махачкала"]
[null,null,null,null,null,null,null,null,null,null,null,null,null,null,null,null,"Мглин"]
[null,null,null,null,null,null,null,null,null,null,null,null,null,null,null,null,"Мегион"]
[null,null,null,null,null,null,null,null,null,null,null,null,null,null,null,null,"Медвежьегорск"]
[null,null,null,null,null,null,null,null,null,null,null,null,null,null,null,null,"Медногорск"]
[null,null,null,null,null,null,null,null,null,null,null,null,null,null,null,null,"Медынь"]
[null,null,null,null,null,null,null,null,null,null,null,null,null,null,null,null,"Межгорье"]
[null,null,null,null,null,null,null,null,null,null,null,null,null,null,null,null,"Междуреченск"]
[null,null,null,null,null,null,null,null,null,null,null,null,null,null,null,null,"Мезень"]
[null,null,null,null,null,null,null,null,null,null,null,null,null,null,null,null,"Меленки"]
[null,null,null,null,null,null,null,null,null,null,null,null,null,null,null,null,"Мелеуз"]
[null,null,null,null,null,null,null,null,null,null,null,null,null,null,null,null,"Менделеевск"]
[null,null,null,null,null,null,null,null,null,null,null,null,null,null,null,null,"Мензелинск"]
[null,null,null,null,null,null,null,null,null,null,null,null,null,null,null,null,"Мещовск"]
[null,null,null,null,null,null,null,null,null,null,null,null,null,null,null,null,"Миасс"]
[null,null,null,null,null,null,null,null,null,null,null,null,null,null,null,null,"Микунь"]
[null,null,null,null,null,null,null,null,null,null,null,null,null,null,null,null,"Миллерово"]
[null,null,null,null,null,null,null,null,null,null,null,null,null,null,null,null,"Минеральные Воды"]
[null,null,null,null,null,null,null,null,null,null,null,null,null,null,null,null,"Минусинск"]
[null,null,null,null,null,null,null,null,null,null,null,null,null,null,null,null,"Миньяр"]
[null,null,null,null,null,null,null,null,null,null,null,null,null,null,null,null,"Мирный"]
[null,null,null,null,null,null,null,null,null,null,null,null,null,null,null,null,"Мирный"]
[null,null,null,null,null,null,null,null,null,null,null,null,null,null,null,null,"Михайлов"]
[null,null,null,null,null,null,null,null,null,null,null,null,null,null,null,null,"Михайловка"]
[null,null,null,null,null,null,null,null,null,null,null,null,null,null,null,null,"Михайловск"]
[null,null,null,null,null,null,null,null,null,null,null,null,null,null,null,null,"Михайловск"]
[null,null,null,null,null,null,null,null,null,null,null,null,null,null,null,null,"Мичуринск"]
[null,null,null,null,null,null,null,null,null,null,null,null,null,null,null,null,"Могоча"]
[null,null,null,null,null,null,null,null,null,null,null,null,null,null,null,null,"Можайск"]
[null,null,null,null,null,null,null,null,null,null,null,null,null,null,null,null,"Можга"]
[null,null,null,null,null,null,null,null,null,null,null,null,null,null,null,null,"Моздок"]
[null,null,null,null,null,null,null,null,null,null,null,null,null,null,null,null,"Мончегорск"]
[null,null,null,null,null,null,null,null,null,null,null,null,null,null,null,null,"Морозовск"]
[null,null,null,null,null,null,null,null,null,null,null,null,null,null,null,null,"Моршанск"]
[null,null,null,null,null,null,null,null,null,null,null,null,null,null,null,null,"Мосальск"]
[null,null,null,null,null,null,null,null,null,null,null,null,null,null,null,null,"Москва"]
[null,null,null,null,null,null,null,null,null,null,null,null,null,null,null,null,"Муравленко"]
[null,null,null,null,null,null,null,null,null,null,null,null,null,null,null,null,"Мураши"]
[null,null,null,null,null,null,null,null,null,null,null,null,null,null,null,null,"Мурино"]
[null,null,null,null,null,null,null,null,null,null,null,null,null,null,null,null,"Мурманск"]
[null,null,null,null,null,null,null,null,null,null,null,null,null,null,null,null,"Муром"]
[null,null,null,null,null,null,null,null,null,null,null,null,null,null,null,null,"Мценск"]
[null,null,null,null,null,null,null,null,null,null,null,null,null,null,null,null,"Мыски"]
[null,null,null,null,null,null,null,null,null,null,null,null,null,null,null,null,"Мытищи"]
[null,null,null,null,null,null,null,null,null,null,null,null,null,null,null,null,"Мышкин"]
[null,null,null,null,null,null,null,null,null,null,null,null,null,null,null,null,"Набережные Челны"]
[null,null,null,null,null,null,null,null,null,null,null,null,null,null,null,null,"Навашино"]
[null,null,null,null,null,null,null,null,null,null,null,null,null,null,null,null,"Наволоки"]
[null,null,null,null,null,null,null,null,null,null,null,null,null,null,null,null,"Надым"]
[null,null,null,null,null,null,null,null,null,null,null,null,null,null,null,null,"Назарово"]
[null,null,null,null,null,null,null,null,null,null,null,null,null,null,null,null,"Назрань"]
[null,null,null,null,null,null,null,null,null,null,null,null,null,null,null,null,"Называевск"]
[null,null,null,null,null,null,null,null,null,null,null,null,null,null,null,null,"Нальчик"]
[null,null,null,null,null,null,null,null,null,null,null,null,null,null,null,null,"Нариманов"]
[null,null,null,null,null,null,null,null,null,null,null,null,null,null,null,null,"Наро-Фоминск"]
[null,null,null,null,null,null,null,null,null,null,null,null,null,null,null,null,"Нарткала"]
[null,null,null,null,null,null,null,null,null,null,null,null,null,null,null,null,"Нарьян-Мар"]
[null,null,null,null,null,null,null,null,null,null,null,null,null,null,null,null,"Находка"]
[null,null,null,null,null,null,null,null,null,null,null,null,null,null,null,null,"Невель"]
[null,null,null,null,null,null,null,null,null,null,null,null,null,null,null,null,"Невельск"]
[null,null,null,null,null,null,null,null,null,null,null,null,null,null,null,null,"Невинномысск"]
[null,null,null,null,null,null,null,null,null,null,null,null,null,null,null,null,"Невьянск"]
[null,null,null,null,null,null,null,null,null,null,null,null,null,null,null,null,"Нелидово"]
[null,null,null,null,null,null,null,null,null,null,null,null,null,null,null,null,"Неман"]
[null,null,null,null,null,null,null,null,null,null,null,null,null,null,null,null,"Нерехта"]
[null,null,null,null,null,null,null,null,null,null,null,null,null,null,null,null,"Нерчинск"]
[null,null,null,null,null,null,null,null,null,null,null,null,null,null,null,null,"Нерюнгри"]
[null,null,null,null,null,null,null,null,null,null,null,null,null,null,null,null,"Нестеров"]
[null,null,null,null,null,null,null,null,null,null,null,null,null,null,null,null,"Нефтегорск"]
[null,null,null,null,null,null,null,null,null,null,null,null,null,null,null,null,"Нефтекамск"]
[null,null,null,null,null,null,null,null,null,null,null,null,null,null,null,null,"Нефтекумск"]
[null,null,null,null,null,null,null,null,null,null,null,null,null,null,null,null,"Нефтеюганск"]
[null,null,null,null,null,null,null,null,null,null,null,null,null,null,null,null,"Нея"]
[null,null,null,null,null,null,null,null,null,null,null,null,null,null,null,null,"Нижневартовск"]
[null,null,null,null,null,null,null,null,null,null,null,null,null,null,null,null,"Нижнекамск"]
[null,null,null,null,null,null,null,null,null,null,null,null,null,null,null,null,"Нижнеудинск"]
[null,null,null,null,null,null,null,null,null,null,null,null,null,null,null,null,"Нижние Серги"]
[null,null,null,null,null,null,null,null,null,null,null,null,null,null,null,null,"Нижний Ломов"]
[null,null,null,null,null,null,null,null,null,null,null,null,null,null,null,null,"Нижний Новгород"]
[null,null,null,null,null,null,null,null,null,null,null,null,null,null,null,null,"Нижний Тагил"]
[null,null,null,null,null,null,null,null,null,null,null,null,null,null,null,null,"Нижняя Салда"]
[null,null,null,null,null,null,null,null,null,null,null,null,null,null,null,null,"Нижняя Тура"]
[null,null,null,null,null,null,null,null,null,null,null,null,null,null,null,null,"Николаевск"]
[null,null,null,null,null,null,null,null,null,null,null,null,null,null,null,null,"Николаевск-на-Амуре"]
[null,null,null,null,null,null,null,null,null,null,null,null,null,null,null,null,"Никольск"]
[null,null,null,null,null,null,null,null,null,null,null,null,null,null,null,null,"Никольск"]
[null,null,null,null,null,null,null,null,null,null,null,null,null,null,null,null,"Никольское"]
[null,null,null,null,null,null,null,null,null,null,null,null,null,null,null,null,"Новая Ладога"]
[null,null,null,null,null,null,null,null,null,null,null,null,null,null,null,null,"Новая Ляля"]
[null,null,null,null,null,null,null,null,null,null,null,null,null,null,null,null,"Новоалександровск"]
[null,null,null,null,null,null,null,null,null,null,null,null,null,null,null,null,"Новоалтайск"]
[null,null,null,null,null,null,null,null,null,null,null,null,null,null,null,null,"Новоаннинский"]
[null,null,null,null,null,null,null,null,null,null,null,null,null,null,null,null,"Нововоронеж"]
[null,null,null,null,null,null,null,null,null,null,null,null,null,null,null,null,"Новодвинск"]
[null,null,null,null,null,null,null,null,null,null,null,null,null,null,null,null,"Новозыбков"]
[null,null,null,null,null,null,null,null,null,null,null,null,null,null,null,null,"Новокубанск"]
[null,null,null,null,null,null,null,null,null,null,null,null,null,null,null,null,"Новокузнецк"]
[null,null,null,null,null,null,null,null,null,null,null,null,null,null,null,null,"Новокуйбышевск"]
[null,null,null,null,null,null,null,null,null,null,null,null,null,null,null,null,"Новомичуринск"]
[null,null,null,null,null,null,null,null,null,null,null,null,null,null,null,null,"Новомосковск"]
[null,null,null,null,null,null,null,null,null,null,null,null,null,null,null,null,"Новопавловск"]
[null,null,null,null,null,null,null,null,null,null,null,null,null,null,null,null,"Новоржев"]
[null,null,null,null,null,null,null,null,null,null,null,null,null,null,null,null,"Новороссийск"]
[null,null,null,null,null,null,null,null,null,null,null,null,null,null,null,null,"Новосибирск"]
[null,null,null,null,null,null,null,null,null,null,null,null,null,null,null,null,"Новосиль"]
[null,null,null,null,null,null,null,null,null,null,null,null,null,null,null,null,"Новосокольники"]
[null,null,null,null,null,null,null,null,null,null,null,null,null,null,null,null,"Новотроицк"]
[null,null,null,null,null,null,null,null,null,null,null,null,null,null,null,null,"Новоузенск"]
[null,null,null,null,null,null,null,null,null,null,null,null,null,null,null,null,"Новоульяновск"]
[null,null,null,null,null,null,null,null,null,null,null,null,null,null,null,null,"Новоуральск"]
[null,null,null,null,null,null,null,null,null,null,null,null,null,null,null,null,"Новохопёрск"]
[null,null,null,null,null,null,null,null,null,null,null,null,null,null,null,null,"Новочебоксарск"]
[null,null,null,null,null,null,null,null,null,null,null,null,null,null,null,null,"Новочеркасск"]
[null,null,null,null,null,null,null,null,null,null,null,null,null,null,null,null,"Новошахтинск"]
[null,null,null,null,null,null,null,null,null,null,null,null,null,null,null,null,"Новый Оскол"]
[null,null,null,null,null,null,null,null,null,null,null,null,null,null,null,null,"Новый Уренгой"]
[null,null,null,null,null,null,null,null,null,null,null,null,null,null,null,null,"Ногинск"]
[null,null,null,null,null,null,null,null,null,null,null,null,null,null,null,null,"Нолинск"]
[null,null,null,null,null,null,null,null,null,null,null,null,null,null,null,null,"Норильск"]
[null,null,null,null,null,null,null,null,null,null,null,null,null,null,null,null,"Ноябрьск"]
[null,null,null,null,null,null,null,null,null,null,null,null,null,null,null,null,"Нурлат"]
[null,null,null,null,null,null,null,null,null,null,null,null,null,null,null,null,"Нытва"]
[null,null,null,null,null,null,null,null,null,null,null,null,null,null,null,null,"Нюрба"]
[null,null,null,null,null,null,null,null,null,null,null,null,null,null,null,null,"Нягань"]
[null,null,null,null,null,null,null,null,null,null,null,null,null,null,null,null,"Нязепетровск"]
[null,null,null,null,null,null,null,null,null,null,null,null,null,null,null,null,"Няндома"]
[null,null,null,null,null,null,null,null,null,null,null,null,null,null,null,null,"Облучье"]
[null,null,null,null,null,null,null,null,null,null,null,null,null,null,null,null,"Обнинск"]
[null,null,null,null,null,null,null,null,null,null,null,null,null,null,null,null,"Обоянь"]
[null,null,null,null,null,null,null,null,null,null,null,null,null,null,null,null,"Обь"]
[null,null,null,null,null,null,null,null,null,null,null,null,null,null,null,null,"Одинцово"]
[null,null,null,null,null,null,null,null,null,null,null,null,null,null,null,null,"Озёрск"]
[null,null,null,null,null,null,null,null,null,null,null,null,null,null,null,null,"Озёрск"]
[null,null,null,null,null,null,null,null,null,null,null,null,null,null,null,null,"Озёры"]
[null,null,null,null,null,null,null,null,null,null,null,null,null,null,null,null,"Октябрьск"]
[null,null,null,null,null,null,null,null,null,null,null,null,null,null,null,null,"Октябрьский"]
[null,null,null,null,null,null,null,null,null,null,null,null,null,null,null,null,"Окуловка"]
[null,null,null,null,null,null,null,null,null,null,null,null,null,null,null,null,"Олёкминск"]
[null,null,null,null,null,null,null,null,null,null,null,null,null,null,null,null,"Оленегорск"]
[null,null,null,null,null,null,null,null,null,null,null,null,null,null,null,null,"Олонец"]
[null,null,null,null,null,null,null,null,null,null,null,null,null,null,null,null,"Омск"]
[null,null,null,null,null,null,null,null,null,null,null,null,null,null,null,null,"Омутнинск"]
[null,null,null,null,null,null,null,null,null,null,null,null,null,null,null,null,"Онега"]
[null,null,null,null,null,null,null,null,null,null,null,null,null,null,null,null,"Опочка"]
[null,null,null,null,null,null,null,null,null,null,null,null,null,null,null,null,"Орёл"]
[null,null,null,null,null,null,null,null,null,null,null,null,null,null,null,null,"Оренбург"]
[null,null,null,null,null,null,null,null,null,null,null,null,null,null,null,null,"Орехово-Зуево"]
[null,null,null,null,null,null,null,null,null,null,null,null,null,null,null,null,"Орлов"]
[null,null,null,null,null,null,null,null,null,null,null,null,null,null,null,null,"Орск"]
[null,null,null,null,null,null,null,null,null,null,null,null,null,null,null,null,"Оса"]
[null,null,null,null,null,null,null,null,null,null,null,null,null,null,null,null,"Осинники"]
[null,null,null,null,null,null,null,null,null,null,null,null,null,null,null,null,"Осташков"]
[null,null,null,null,null,null,null,null,null,null,null,null,null,null,null,null,"Остров"]
[null,null,null,null,null,null,null,null,null,null,null,null,null,null,null,null,"Островной"]
[null,null,null,null,null,null,null,null,null,null,null,null,null,null,null,null,"Острогожск"]
[null,null,null,null,null,null,null,null,null,null,null,null,null,null,null,null,"Отрадное"]
[null,null,null,null,null,null,null,null,null,null,null,null,null,null,null,null,"Отрадный"]
[null,null,null,null,null,null,null,null,null,null,null,null,null,null,null,null,"Оха"]
[null,null,null,null,null,null,null,null,null,null,null,null,null,null,null,null,"Оханск"]
[null,null,null,null,null,null,null,null,null,null,null,null,null,null,null,null,"Очёр"]
[null,null,null,null,null,null,null,null,null,null,null,null,null,null,null,null,"Павлово"]
[null,null,null,null,null,null,null,null,null,null,null,null,null,null,null,null,"Павловск"]
[null,null,null,null,null,null,null,null,null,null,null,null,null,null,null,null,"Павловский Посад"]
[null,null,null,null,null,null,null,null,null,null,null,null,null,null,null,null,"Палласовка"]
[null,null,null,null,null,null,null,null,null,null,null,null,null,null,null,null,"Партизанск"]
[null,null,null,null,null,null,null,null,null,null,null,null,null,null,null,null,"Певек"]
[null,null,null,null,null,null,null,null,null,null,null,null,null,null,null,null,"Пенза"]
[null,null,null,null,null,null,null,null,null,null,null,null,null,null,null,null,"Первомайск"]
[null,null,null,null,null,null,null,null,null,null,null,null,null,null,null,null,"Первоуральск"]
[null,null,null,null,null,null,null,null,null,null,null,null,null,null,null,null,"Перевоз"]
[null,null,null,null,null,null,null,null,null,null,null,null,null,null,null,null,"Пересвет"]
[null,null,null,null,null,null,null,null,null,null,null,null,null,null,null,null,"Переславль-Залесский"]
[null,null,null,null,null,null,null,null,null,null,null,null,null,null,null,null,"Пермь"]
[null,null,null,null,null,null,null,null,null,null,null,null,null,null,null,null,"Пестово"]
[null,null,null,null,null,null,null,null,null,null,null,null,null,null,null,null,"Петров Вал"]
[null,null,null,null,null,null,null,null,null,null,null,null,null,null,null,null,"Петровск"]
[null,null,null,null,null,null,null,null,null,null,null,null,null,null,null,null,"Петровск-Забайкальский"]
[null,null,null,null,null,null,null,null,null,null,null,null,null,null,null,null,"Петрозаводск"]
[null,null,null,null,null,null,null,null,null,null,null,null,null,null,null,null,"Петропавловск-Камчатский"]
[null,null,null,null,null,null,null,null,null,null,null,null,null,null,null,null,"Петухово"]
[null,null,null,null,null,null,null,null,null,null,null,null,null,null,null,null,"Петушки"]
[null,null,null,null,null,null,null,null,null,null,null,null,null,null,null,null,"Печора"]
[null,null,null,null,null,null,null,null,null,null,null,null,null,null,null,null,"Печоры"]
[null,null,null,null,null,null,null,null,null,null,null,null,null,null,null,null,"Пикалёво"]
[null,null,null,null,null,null,null,null,null,null,null,null,null,null,null,null,"Пионерский"]
[null,null,null,null,null,null,null,null,null,null,null,null,null,null,null,null,"Питкяранта"]
[null,null,null,null,null,null,null,null,null,null,null,null,null,null,null,null,"Плавск"]
[null,null,null,null,null,null,null,null,null,null,null,null,null,null,null,null,"Пласт"]
[null,null,null,null,null,null,null,null,null,null,null,null,null,null,null,null,"Плёс"]
[null,null,null,null,null,null,null,null,null,null,null,null,null,null,null,null,"Поворино"]
[null,null,null,null,null,null,null,null,null,null,null,null,null,null,null,null,"Подольск"]
[null,null,null,null,null,null,null,null,null,null,null,null,null,null,null,null,"Подпорожье"]
[null,null,null,null,null,null,null,null,null,null,null,null,null,null,null,null,"Покачи"]
[null,null,null,null,null,null,null,null,null,null,null,null,null,null,null,null,"Покров"]
[null,null,null,null,null,null,null,null,null,null,null,null,null,null,null,null,"Покровск"]
[null,null,null,null,null,null,null,null,null,null,null,null,null,null,null,null,"Полевской"]
[null,null,null,null,null,null,null,null,null,null,null,null,null,null,null,null,"Полесск"]
[null,null,null,null,null,null,null,null,null,null,null,null,null,null,null,null,"Полысаево"]
[null,null,null,null,null,null,null,null,null,null,null,null,null,null,null,null,"Полярные Зори"]
[null,null,null,null,null,null,null,null,null,null,null,null,null,null,null,null,"Полярный"]
[null,null,null,null,null,null,null,null,null,null,null,null,null,null,null,null,"Поронайск"]
[null,null,null,null,null,null,null,null,null,null,null,null,null,null,null,null,"Порхов"]
[null,null,null,null,null,null,null,null,null,null,null,null,null,null,null,null,"Похвистнево"]
[null,null,null,null,null,null,null,null,null,null,null,null,null,null,null,null,"Почеп"]
[null,null,null,null,null,null,null,null,null,null,null,null,null,null,null,null,"Починок"]
[null,null,null,null,null,null,null,null,null,null,null,null,null,null,null,null,"Пошехонье"]
[null,null,null,null,null,null,null,null,null,null,null,null,null,null,null,null,"Правдинск"]
[null,null,null,null,null,null,null,null,null,null,null,null,null,null,null,null,"Приволжск"]
[null,null,null,null,null,null,null,null,null,null,null,null,null,null,null,null,"Приморск"]
[null,null,null,null,null,null,null,null,null,null,null,null,null,null,null,null,"Приморск"]
[null,null,null,null,null,null,null,null,null,null,null,null,null,null,null,null,"Приморско-Ахтарск"]
[null,null,null,null,null,null,null,null,null,null,null,null,null,null,null,null,"Приозерск"]
[null,null,null,null,null,null,null,null,null,null,null,null,null,null,null,null,"Прокопьевск"]
[null,null,null,null,null,null,null,null,null,null,null,null,null,null,null,null,"Пролетарск"]
[null,null,null,null,null,null,null,null,null,null,null,null,null,null,null,null,"Протвино"]
[null,null,null,null,null,null,null,null,null,null,null,null,null,null,null,null,"Прохладный"]
[null,null,null,null,null,null,null,null,null,null,null,null,null,null,null,null,"Псков"]
[null,null,null,null,null,null,null,null,null,null,null,null,null,null,null,null,"Пугачёв"]
[null,null,null,null,null,null,null,null,null,null,null,null,null,null,null,null,"Пудож"]
[null,null,null,null,null,null,null,null,null,null,null,null,null,null,null,null,"Пустошка"]
[null,null,null,null,null,null,null,null,null,null,null,null,null,null,null,null,"Пучеж"]
[null,null,null,null,null,null,null,null,null,null,null,null,null,null,null,null,"Пушкино"]
[null,null,null,null,null,null,null,null,null,null,null,null,null,null,null,null,"Пущино"]
[null,null,null,null,null,null,null,null,null,null,null,null,null,null,null,null,"Пыталово"]
[null,null,null,null,null,null,null,null,null,null,null,null,null,null,null,null,"Пыть-Ях"]
[null,null,null,null,null,null,null,null,null,null,null,null,null,null,null,null,"Пятигорск"]
[null,null,null,null,null,null,null,null,null,null,null,null,null,null,null,null,"Радужный"]
[null,null,null,null,null,null,null,null,null,null,null,null,null,null,null,null,"Радужный"]
[null,null,null,null,null,null,null,null,null,null,null,null,null,null,null,null,"Райчихинск"]
[null,null,null,null,null,null,null,null,null,null,null,null,null,null,null,null,"Раменское"]
[null,null,null,null,null,null,null,null,null,null,null,null,null,null,null,null,"Рассказово"]
[null,null,null,null,null,null,null,null,null,null,null,null,null,null,null,null,"Ревда"]
[null,null,null,null,null,null,null,null,null,null,null,null,null,null,null,null,"Реж"]
[null,null,null,null,null,null,null,null,null,null,null,null,null,null,null,null,"Реутов"]
[null,null,null,null,null,null,null,null,null,null,null,null,null,null,null,null,"Ржев"]
[null,null,null,null,null,null,null,null,null,null,null,null,null,null,null,null,"Родники"]
[null,null,null,null,null,null,null,null,null,null,null,null,null,null,null,null,"Рославль"]
[null,null,null,null,null,null,null,null,null,null,null,null,null,null,null,null,"Россошь"]
[null,null,null,null,null,null,null,null,null,null,null,null,null,null,null,null,"Ростов"]
[null,null,null,null,null,null,null,null,null,null,null,null,null,null,null,null,"Ростов-на-Дону"]
[null,null,null,null,null,null,null,null,null,null,null,null,null,null,null,null,"Рошаль"]
[null,null,null,null,null,null,null,null,null,null,null,null,null,null,null,null,"Ртищево"]
[null,null,null,null,null,null,null,null,null,null,null,null,null,null,null,null,"Рубцовск"]
[null,null,null,null,null,null,null,null,null,null,null,null,null,null,null,null,"Рудня"]
[null,null,null,null,null,null,null,null,null,null,null,null,null,null,null,null,"Руза"]
[null,null,null,null,null,null,null,null,null,null,null,null,null,null,null,null,"Рузаевка"]
[null,null,null,null,null,null,null,null,null,null,null,null,null,null,null,null,"Рыбинск"]
[null,null,null,null,null,null,null,null,null,null,null,null,null,null,null,null,"Рыбное"]
[null,null,null,null,null,null,null,null,null,null,null,null,null,null,null,null,"Рыльск"]
[null,null,null,null,null,null,null,null,null,null,null,null,null,null,null,null,"Ряжск"]
[null,null,null,null,null,null,null,null,null,null,null,null,null,null,null,null,"Рязань"]
[null,null,null,null,null,null,null,null,null,null,null,null,null,null,null,null,"Саки"]
[null,null,null,null,null,null,null,null,null,null,null,null,null,null,null,null,"Салават"]
[null,null,null,null,null,null,null,null,null,null,null,null,null,null,null,null,"Салаир"]
[null,null,null,null,null,null,null,null,null,null,null,null,null,null,null,null,"Салехард"]
[null,null,null,null,null,null,null,null,null,null,null,null,null,null,null,null,"Сальск"]
[null,null,null,null,null,null,null,null,null,null,null,null,null,null,null,null,"Самара"]
[null,null,null,null,null,null,null,null,null,null,null,null,null,null,null,null,"Санкт-Петербург"]
[null,null,null,null,null,null,null,null,null,null,null,null,null,null,null,null,"Саранск"]
[null,null,null,null,null,null,null,null,null,null,null,null,null,null,null,null,"Сарапул"]
[null,null,null,null,null,null,null,null,null,null,null,null,null,null,null,null,"Саратов"]
[null,null,null,null,null,null,null,null,null,null,null,null,null,null,null,null,"Саров"]
[null,null,null,null,null,null,null,null,null,null,null,null,null,null,null,null,"Сасово"]
[null,null,null,null,null,null,null,null,null,null,null,null,null,null,null,null,"Сатка"]
[null,null,null,null,null,null,null,null,null,null,null,null,null,null,null,null,"Сафоново"]
[null,null,null,null,null,null,null,null,null,null,null,null,null,null,null,null,"Саяногорск"]
[null,null,null,null,null,null,null,null,null,null,null,null,null,null,null,null,"Саянск"]
[null,null,null,null,null,null,null,null,null,null,null,null,null,null,null,null,"Светлогорск"]
[null,null,null,null,null,null,null,null,null,null,null,null,null,null,null,null,"Светлоград"]
[null,null,null,null,null,null,null,null,null,null,null,null,null,null,null,null,"Светлый"]
[null,null,null,null,null,null,null,null,null,null,null,null,null,null,null,null,"Светогорск"]
[null,null,null,null,null,null,null,null,null,null,null,null,null,null,null,null,"Свирск"]
[null,null,null,null,null,null,null,null,null,null,null,null,null,null,null,null,"Свободный"]
[null,null,null,null,null,null,null,null,null,null,null,null,null,null,null,null,"Себеж"]
[null,null,null,null,null,null,null,null,null,null,null,null,null,null,null,null,"Севастополь"]
[null,null,null,null,null,null,null,null,null,null,null,null,null,null,null,null,"Северо-Курильск"]
[null,null,null,null,null,null,null,null,null,null,null,null,null,null,null,null,"Северобайкальск"]
[null,null,null,null,null,null,null,null,null,null,null,null,null,null,null,null,"Северодвинск"]
[null,null,null,null,null,null,null,null,null,null,null,null,null,null,null,null,"Североморск"]
[null,null,null,null,null,null,null,null,null,null,null,null,null,null,null,null,"Североуральск"]
[null,null,null,null,null,null,null,null,null,null,null,null,null,null,null,null,"Северск"]
[null,null,null,null,null,null,null,null,null,null,null,null,null,null,null,null,"Севск"]
[null,null,null,null,null,null,null,null,null,null,null,null,null,null,null,null,"Сегежа"]
[null,null,null,null,null,null,null,null,null,null,null,null,null,null,null,null,"Сельцо"]
[null,null,null,null,null,null,null,null,null,null,null,null,null,null,null,null,"Семёнов"]
[null,null,null,null,null,null,null,null,null,null,null,null,null,null,null,null,"Семикаракорск"]
[null,null,null,null,null,null,null,null,null,null,null,null,null,null,null,null,"Семилуки"]
[null,null,null,null,null,null,null,null,null,null,null,null,null,null,null,null,"Сенгилей"]
[null,null,null,null,null,null,null,null,null,null,null,null,null,null,null,null,"Серафимович"]
[null,null,null,null,null,null,null,null,null,null,null,null,null,null,null,null,"Сергач"]
[null,null,null,null,null,null,null,null,null,null,null,null,null,null,null,null,"Сергиев Посад"]
[null,null,null,null,null,null,null,null,null,null,null,null,null,null,null,null,"Сердобск"]
[null,null,null,null,null,null,null,null,null,null,null,null,null,null,null,null,"Серов"]
[null,null,null,null,null,null,null,null,null,null,null,null,null,null,null,null,"Серпухов"]
[null,null,null,null,null,null,null,null,null,null,null,null,null,null,null,null,"Сертолово"]
[null,null,null,null,null,null,null,null,null,null,null,null,null,null,null,null,"Сибай"]
[null,null,null,null,null,null,null,null,null,null,null,null,null,null,null,null,"Сим"]
[null,null,null,null,null,null,null,null,null,null,null,null,null,null,null,null,"Симферополь"]
[null,null,null,null,null,null,null,null,null,null,null,null,null,null,null,null,"Сковородино"]
[null,null,null,null,null,null,null,null,null,null,null,null,null,null,null,null,"Скопин"]
[null,null,null,null,null,null,null,null,null,null,null,null,null,null,null,null,"Славгород"]
[null,null,null,null,null,null,null,null,null,null,null,null,null,null,null,null,"Славск"]
[null,null,null,null,null,null,null,null,null,null,null,null,null,null,null,null,"Славянск-на-Кубани"]
[null,null,null,null,null,null,null,null,null,null,null,null,null,null,null,null,"Сланцы"]
[null,null,null,null,null,null,null,null,null,null,null,null,null,null,null,null,"Слободской"]
[null,null,null,null,null,null,null,null,null,null,null,null,null,null,null,null,"Слюдянка"]
[null,null,null,null,null,null,null,null,null,null,null,null,null,null,null,null,"Смоленск"]
[null,null,null,null,null,null,null,null,null,null,null,null,null,null,null,null,"Снежинск"]
[null,null,null,null,null,null,null,null,null,null,null,null,null,null,null,null,"Снежногорск"]
[null,null,null,null,null,null,null,null,null,null,null,null,null,null,null,null,"Собинка"]
[null,null,null,null,null,null,null,null,null,null,null,null,null,null,null,null,"Советск"]
[null,null,null,null,null,null,null,null,null,null,null,null,null,null,null,null,"Советск"]
[null,null,null,null,null,null,null,null,null,null,null,null,null,null,null,null,"Советск"]
[null,null,null,null,null,null,null,null,null,null,null,null,null,null,null,null,"Советская Гавань"]
[null,null,null,null,null,null,null,null,null,null,null,null,null,null,null,null,"Советский"]
[null,null,null,null,null,null,null,null,null,null,null,null,null,null,null,null,"Сокол"]
[null,null,null,null,null,null,null,null,null,null,null,null,null,null,null,null,"Солигалич"]
[null,null,null,null,null,null,null,null,null,null,null,null,null,null,null,null,"Соликамск"]
[null,null,null,null,null,null,null,null,null,null,null,null,null,null,null,null,"Солнечногорск"]
[null,null,null,null,null,null,null,null,null,null,null,null,null,null,null,null,"Соль-Илецк"]
[null,null,null,null,null,null,null,null,null,null,null,null,null,null,null,null,"Сольвычегодск"]
[null,null,null,null,null,null,null,null,null,null,null,null,null,null,null,null,"Сольцы"]
[null,null,null,null,null,null,null,null,null,null,null,null,null,null,null,null,"Сорочинск"]
[null,null,null,null,null,null,null,null,null,null,null,null,null,null,null,null,"Сорск"]
[null,null,null,null,null,null,null,null,null,null,null,null,null,null,null,null,"Сортавала"]
[null,null,null,null,null,null,null,null,null,null,null,null,null,null,null,null,"Сосенский"]
[null,null,null,null,null,null,null,null,null,null,null,null,null,null,null,null,"Сосновка"]
[null,null,null,null,null,null,null,null,null,null,null,null,null,null,null,null,"Сосновоборск"]
[null,null,null,null,null,null,null,null,null,null,null,null,null,null,null,null,"Сосновый Бор"]
[null,null,null,null,null,null,null,null,null,null,null,null,null,null,null,null,"Сосногорск"]
[null,null,null,null,null,null,null,null,null,null,null,null,null,null,null,null,"Сочи"]
[null,null,null,null,null,null,null,null,null,null,null,null,null,null,null,null,"Спас-Деменск"]
[null,null,null,null,null,null,null,null,null,null,null,null,null,null,null,null,"Спас-Клепики"]
[null,null,null,null,null,null,null,null,null,null,null,null,null,null,null,null,"Спасск"]
[null,null,null,null,null,null,null,null,null,null,null,null,null,null,null,null,"Спасск-Дальний"]
[null,null,null,null,null,null,null,null,null,null,null,null,null,null,null,null,"Спасск-Рязанский"]
[null,null,null,null,null,null,null,null,null,null,null,null,null,null,null,null,"Среднеколымск"]
[null,null,null,null,null,null,null,null,null,null,null,null,null,null,null,null,"Среднеуральск"]
[null,null,null,null,null,null,null,null,null,null,null,null,null,null,null,null,"Сретенск"]
[null,null,null,null,null,null,null,null,null,null,null,null,null,null,null,null,"Ставрополь"]
[null,null,null,null,null,null,null,null,null,null,null,null,null,null,null,null,"Старая Купавна"]
[null,null,null,null,null,null,null,null,null,null,null,null,null,null,null,null,"Старая Русса"]
[null,null,null,null,null,null,null,null,null,null,null,null,null,null,null,null,"Старица"]
[null,null,null,null,null,null,null,null,null,null,null,null,null,null,null,null,"Стародуб"]
[null,null,null,null,null,null,null,null,null,null,null,null,null,null,null,null,"Старый Крым"]
[null,null,null,null,null,null,null,null,null,null,null,null,null,null,null,null,"Старый Оскол"]
[null,null,null,null,null,null,null,null,null,null,null,null,null,null,null,null,"Стерлитамак"]
[null,null,null,null,null,null,null,null,null,null,null,null,null,null,null,null,"Стрежевой"]
[null,null,null,null,null,null,null,null,null,null,null,null,null,null,null,null,"Строитель"]
[null,null,null,null,null,null,null,null,null,null,null,null,null,null,null,null,"Струнино"]
[null,null,null,null,null,null,null,null,null,null,null,null,null,null,null,null,"Ступино"]
[null,null,null,null,null,null,null,null,null,null,null,null,null,null,null,null,"Суворов"]
[null,null,null,null,null,null,null,null,null,null,null,null,null,null,null,null,"Судак"]
[null,null,null,null,null,null,null,null,null,null,null,null,null,null,null,null,"Суджа"]
[null,null,null,null,null,null,null,null,null,null,null,null,null,null,null,null,"Судогда"]
[null,null,null,null,null,null,null,null,null,null,null,null,null,null,null,null,"Суздаль"]
[null,null,null,null,null,null,null,null,null,null,null,null,null,null,null,null,"Сунжа"]
[null,null,null,null,null,null,null,null,null,null,null,null,null,null,null,null,"Суоярви"]
[null,null,null,null,null,null,null,null,null,null,null,null,null,null,null,null,"Сураж"]
[null,null,null,null,null,null,null,null,null,null,null,null,null,null,null,null,"Сургут"]
[null,null,null,null,null,null,null,null,null,null,null,null,null,null,null,null,"Суровикино"]
[null,null,null,null,null,null,null,null,null,null,null,null,null,null,null,null,"Сурск"]
[null,null,null,null,null,null,null,null,null,null,null,null,null,null,null,null,"Сусуман"]
[null,null,null,null,null,null,null,null,null,null,null,null,null,null,null,null,"Сухиничи"]
[null,null,null,null,null,null,null,null,null,null,null,null,null,null,null,null,"Сухой Лог"]
[null,null,null,null,null,null,null,null,null,null,null,null,null,null,null,null,"Сызрань"]
[null,null,null,null,null,null,null,null,null,null,null,null,null,null,null,null,"Сыктывкар"]
[null,null,null,null,null,null,null,null,null,null,null,null,null,null,null,null,"Сысерть"]
[null,null,null,null,null,null,null,null,null,null,null,null,null,null,null,null,"Сычёвка"]
[null,null,null,null,null,null,null,null,null,null,null,null,null,null,null,null,"Сясьстрой"]
[null,null,null,null,null,null,null,null,null,null,null,null,null,null,null,null,"Тавда"]
[null,null,null,null,null,null,null,null,null,null,null,null,null,null,null,null,"Таганрог"]
[null,null,null,null,null,null,null,null,null,null,null,null,null,null,null,null,"Тайга"]
[null,null,null,null,null,null,null,null,null,null,null,null,null,null,null,null,"Тайшет"]
[null,null,null,null,null,null,null,null,null,null,null,null,null,null,null,null,"Талдом"]
[null,null,null,null,null,null,null,null,null,null,null,null,null,null,null,null,"Талица"]
[null,null,null,null,null,null,null,null,null,null,null,null,null,null,null,null,"Тамбов"]
[null,null,null,null,null,null,null,null,null,null,null,null,null,null,null,null,"Тара"]
[null,null,null,null,null,null,null,null,null,null,null,null,null,null,null,null,"Тарко-Сале"]
[null,null,null,null,null,null,null,null,null,null,null,null,null,null,null,null,"Таруса"]
[null,null,null,null,null,null,null,null,null,null,null,null,null,null,null,null,"Татарск"]
[null,null,null,null,null,null,null,null,null,null,null,null,null,null,null,null,"Таштагол"]
[null,null,null,null,null,null,null,null,null,null,null,null,null,null,null,null,"Тверь"]
[null,null,null,null,null,null,null,null,null,null,null,null,null,null,null,null,"Теберда"]
[null,null,null,null,null,null,null,null,null,null,null,null,null,null,null,null,"Тейково"]
[null,null,null,null,null,null,null,null,null,null,null,null,null,null,null,null,"Темников"]
[null,null,null,null,null,null,null,null,null,null,null,null,null,null,null,null,"Темрюк"]
[null,null,null,null,null,null,null,null,null,null,null,null,null,null,null,null,"Терек"]
[null,null,null,null,null,null,null,null,null,null,null,null,null,null,null,null,"Тетюши"]
[null,null,null,null,null,null,null,null,null,null,null,null,null,null,null,null,"Тимашёвск"]
[null,null,null,null,null,null,null,null,null,null,null,null,null,null,null,null,"Тихвин"]
[null,null,null,null,null,null,null,null,null,null,null,null,null,null,null,null,"Тихорецк"]
[null,null,null,null,null,null,null,null,null,null,null,null,null,null,null,null,"Тобольск"]
[null,null,null,null,null,null,null,null,null,null,null,null,null,null,null,null,"Тогучин"]
[null,null,null,null,null,null,null,null,null,null,null,null,null,null,null,null,"Тольятти"]
[null,null,null,null,null,null,null,null,null,null,null,null,null,null,null,null,"Томари"]
[null,null,null,null,null,null,null,null,null,null,null,null,null,null,null,null,"Томмот"]
[null,null,null,null,null,null,null,null,null,null,null,null,null,null,null,null,"Томск"]
[null,null,null,null,null,null,null,null,null,null,null,null,null,null,null,null,"Топки"]
[null,null,null,null,null,null,null,null,null,null,null,null,null,null,null,null,"Торжок"]
[null,null,null,null,null,null,null,null,null,null,null,null,null,null,null,null,"Торопец"]
[null,null,null,null,null,null,null,null,null,null,null,null,null,null,null,null,"Тосно"]
[null,null,null,null,null,null,null,null,null,null,null,null,null,null,null,null,"Тотьма"]
[null,null,null,null,null,null,null,null,null,null,null,null,null,null,null,null,"Трёхгорный"]
[null,null,null,null,null,null,null,null,null,null,null,null,null,null,null,null,"Троицк"]
[null,null,null,null,null,null,null,null,null,null,null,null,null,null,null,null,"Трубчевск"]
[null,null,null,null,null,null,null,null,null,null,null,null,null,null,null,null,"Туапсе"]
[null,null,null,null,null,null,null,null,null,null,null,null,null,null,null,null,"Туймазы"]
[null,null,null,null,null,null,null,null,null,null,null,null,null,null,null,null,"Тула"]
[null,null,null,null,null,null,null,null,null,null,null,null,null,null,null,null,"Тулун"]
[null,null,null,null,null,null,null,null,null,null,null,null,null,null,null,null,"Туран"]
[null,null,null,null,null,null,null,null,null,null,null,null,null,null,null,null,"Туринск"]
[null,null,null,null,null,null,null,null,null,null,null,null,null,null,null,null,"Тутаев"]
[null,null,null,null,null,null,null,null,null,null,null,null,null,null,null,null,"Тында"]
[null,null,null,null,null,null,null,null,null,null,null,null,null,null,null,null,"Тырныауз"]
[null,null,null,null,null,null,null,null,null,null,null,null,null,null,null,null,"Тюкалинск"]
[null,null,null,null,null,null,null,null,null,null,null,null,null,null,null,null,"Тюмень"]
[null,null,null,null,null,null,null,null,null,null,null,null,null,null,null,null,"Уварово"]
[null,null,null,null,null,null,null,null,null,null,null,null,null,null,null,null,"Углегорск"]
[null,null,null,null,null,null,null,null,null,null,null,null,null,null,null,null,"Углич"]
[null,null,null,null,null,null,null,null,null,null,null,null,null,null,null,null,"Удачный"]
[null,null,null,null,null,null,null,null,null,null,null,null,null,null,null,null,"Удомля"]
[null,null,null,null,null,null,null,null,null,null,null,null,null,null,null,null,"Ужур"]
[null,null,null,null,null,null,null,null,null,null,null,null,null,null,null,null,"Узловая"]
[null,null,null,null,null,null,null,null,null,null,null,null,null,null,null,null,"Улан-Удэ"]
[null,null,null,null,null,null,null,null,null,null,null,null,null,null,null,null,"Ульяновск"]
[null,null,null,null,null,null,null,null,null,null,null,null,null,null,null,null,"Унеча"]
[null,null,null,null,null,null,null,null,null,null,null,null,null,null,null,null,"Урай"]
[null,null,null,null,null,null,null,null,null,null,null,null,null,null,null,null,"Урень"]
[null,null,null,null,null,null,null,null,null,null,null,null,null,null,null,null,"Уржум"]
[null,null,null,null,null,null,null,null,null,null,null,null,null,null,null,null,"Урус-Мартан"]
[null,null,null,null,null,null,null,null,null,null,null,null,null,null,null,null,"Урюпинск"]
[null,null,null,null,null,null,null,null,null,null,null,null,null,null,null,null,"Усинск"]
[null,null,null,null,null,null,null,null,null,null,null,null,null,null,null,null,"Усмань"]
[null,null,null,null,null,null,null,null,null,null,null,null,null,null,null,null,"Усолье"]
[null,null,null,null,null,null,null,null,null,null,null,null,null,null,null,null,"Усолье-Сибирское"]
[null,null,null,null,null,null,null,null,null,null,null,null,null,null,null,null,"Уссурийск"]
[null,null,null,null,null,null,null,null,null,null,null,null,null,null,null,null,"Усть-Джегута"]
[null,null,null,null,null,null,null,null,null,null,null,null,null,null,null,null,"Усть-Илимск"]
[null,null,null,null,null,null,null,null,null,null,null,null,null,null,null,null,"Усть-Катав"]
[null,null,null,null,null,null,null,null,null,null,null,null,null,null,null,null,"Усть-Кут"]
[null,null,null,null,null,null,null,null,null,null,null,null,null,null,null,null,"Усть-Лабинск"]
[null,null,null,null,null,null,null,null,null,null,null,null,null,null,null,null,"Устюжна"]
[null,null,null,null,null,null,null,null,null,null,null,null,null,null,null,null,"Уфа"]
[null,null,null,null,null,null,null,null,null,null,null,null,null,null,null,null,"Ухта"]
[null,null,null,null,null,null,null,null,null,null,null,null,null,null,null,null,"Учалы"]
[null,null,null,null,null,null,null,null,null,null,null,null,null,null,null,null,"Уяр"]
[null,null,null,null,null,null,null,null,null,null,null,null,null,null,null,null,"Фатеж"]
[null,null,null,null,null,null,null,null,null,null,null,null,null,null,null,null,"Феодосия"]
[null,null,null,null,null,null,null,null,null,null,null,null,null,null,null,null,"Фокино"]
[null,null,null,null,null,null,null,null,null,null,null,null,null,null,null,null,"Фокино"]
[null,null,null,null,null,null,null,null,null,null,null,null,null,null,null,null,"Фролово"]
[null,null,null,null,null,null,null,null,null,null,null,null,null,null,null,null,"Фрязино"]
[null,null,null,null,null,null,null,null,null,null,null,null,null,null,null,null,"Фурманов"]
[null,null,null,null,null,null,null,null,null,null,null,null,null,null,null,null,"Хабаровск"]
[null,null,null,null,null,null,null,null,null,null,null,null,null,null,null,null,"Хадыженск"]
[null,null,null,null,null,null,null,null,null,null,null,null,null,null,null,null,"Ханты-Мансийск"]
[null,null,null,null,null,null,null,null,null,null,null,null,null,null,null,null,"Харабали"]
[null,null,null,null,null,null,null,null,null,null,null,null,null,null,null,null,"Харовск"]
[null,null,null,null,null,null,null,null,null,null,null,null,null,null,null,null,"Хасавюрт"]
[null,null,null,null,null,null,null,null,null,null,null,null,null,null,null,null,"Хвалынск"]
[null,null,null,null,null,null,null,null,null,null,null,null,null,null,null,null,"Хилок"]
[null,null,null,null,null,null,null,null,null,null,null,null,null,null,null,null,"Химки"]
[null,null,null,null,null,null,null,null,null,null,null,null,null,null,null,null,"Холм"]
[null,null,null,null,null,null,null,null,null,null,null,null,null,null,null,null,"Холмск"]
[null,null,null,null,null,null,null,null,null,null,null,null,null,null,null,null,"Хотьково"]
[null,null,null,null,null,null,null,null,null,null,null,null,null,null,null,null,"Цивильск"]
[null,null,null,null,null,null,null,null,null,null,null,null,null,null,null,null,"Цимлянск"]
[null,null,null,null,null,null,null,null,null,null,null,null,null,null,null,null,"Циолковский"]
[null,null,null,null,null,null,null,null,null,null,null,null,null,null,null,null,"Чадан"]
[null,null,null,null,null,null,null,null,null,null,null,null,null,null,null,null,"Чайковский"]
[null,null,null,null,null,null,null,null,null,null,null,null,null,null,null,null,"Чапаевск"]
[null,null,null,null,null,null,null,null,null,null,null,null,null,null,null,null,"Чаплыгин"]
[null,null,null,null,null,null,null,null,null,null,null,null,null,null,null,null,"Чебаркуль"]
[null,null,null,null,null,null,null,null,null,null,null,null,null,null,null,null,"Чебоксары"]
[null,null,null,null,null,null,null,null,null,null,null,null,null,null,null,null,"Чегем"]
[null,null,null,null,null,null,null,null,null,null,null,null,null,null,null,null,"Чекалин"]
[null,null,null,null,null,null,null,null,null,null,null,null,null,null,null,null,"Челябинск"]
[null,null,null,null,null,null,null,null,null,null,null,null,null,null,null,null,"Чердынь"]
[null,null,null,null,null,null,null,null,null,null,null,null,null,null,null,null,"Черемхово"]
[null,null,null,null,null,null,null,null,null,null,null,null,null,null,null,null,"Черепаново"]
[null,null,null,null,null,null,null,null,null,null,null,null,null,null,null,null,"Череповец"]
[null,null,null,null,null,null,null,null,null,null,null,null,null,null,null,null,"Черкесск"]
[null,null,null,null,null,null,null,null,null,null,null,null,null,null,null,null,"Чёрмоз"]
[null,null,null,null,null,null,null,null,null,null,null,null,null,null,null,null,"Черноголовка"]
[null,null,null,null,null,null,null,null,null,null,null,null,null,null,null,null,"Черногорск"]
[null,null,null,null,null,null,null,null,null,null,null,null,null,null,null,null,"Чернушка"]
[null,null,null,null,null,null,null,null,null,null,null,null,null,null,null,null,"Черняховск"]
[null,null,null,null,null,null,null,null,null,null,null,null,null,null,null,null,"Чехов"]
[null,null,null,null,null,null,null,null,null,null,null,null,null,null,null,null,"Чистополь"]
[null,null,null,null,null,null,null,null,null,null,null,null,null,null,null,null,"Чита"]
[null,null,null,null,null,null,null,null,null,null,null,null,null,null,null,null,"Чкаловск"]
[null,null,null,null,null,null,null,null,null,null,null,null,null,null,null,null,"Чудово"]
[null,null,null,null,null,null,null,null,null,null,null,null,null,null,null,null,"Чулым"]
[null,null,null,null,null,null,null,null,null,null,null,null,null,null,null,null,"Чусовой"]
[null,null,null,null,null,null,null,null,null,null,null,null,null,null,null,null,"Чухлома"]
[null,null,null,null,null,null,null,null,null,null,null,null,null,null,null,null,"Шагонар"]
[null,null,null,null,null,null,null,null,null,null,null,null,null,null,null,null,"Шадринск"]
[null,null,null,null,null,null,null,null,null,null,null,null,null,null,null,null,"Шали"]
[null,null,null,null,null,null,null,null,null,null,null,null,null,null,null,null,"Шарыпово"]
[null,null,null,null,null,null,null,null,null,null,null,null,null,null,null,null,"Шарья"]
[null,null,null,null,null,null,null,null,null,null,null,null,null,null,null,null,"Шатура"]
[null,null,null,null,null,null,null,null,null,null,null,null,null,null,null,null,"Шахты"]
[null,null,null,null,null,null,null,null,null,null,null,null,null,null,null,null,"Шахунья"]
[null,null,null,null,null,null,null,null,null,null,null,null,null,null,null,null,"Шацк"]
[null,null,null,null,null,null,null,null,null,null,null,null,null,null,null,null,"Шебекино"]
[null,null,null,null,null,null,null,null,null,null,null,null,null,null,null,null,"Шелехов"]
[null,null,null,null,null,null,null,null,null,null,null,null,null,null,null,null,"Шенкурск"]
[null,null,null,null,null,null,null,null,null,null,null,null,null,null,null,null,"Шилка"]
[null,null,null,null,null,null,null,null,null,null,null,null,null,null,null,null,"Шимановск"]
[null,null,null,null,null,null,null,null,null,null,null,null,null,null,null,null,"Шиханы"]
[null,null,null,null,null,null,null,null,null,null,null,null,null,null,null,null,"Шлиссельбург"]
[null,null,null,null,null,null,null,null,null,null,null,null,null,null,null,null,"Шумерля"]
[null,null,null,null,null,null,null,null,null,null,null,null,null,null,null,null,"Шумиха"]
[null,null,null,null,null,null,null,null,null,null,null,null,null,null,null,null,"Шуя"]
[null,null,null,null,null,null,null,null,null,null,null,null,null,null,null,null,"Щёкино"]
[null,null,null,null,null,null,null,null,null,null,null,null,null,null,null,null,"Щёлкино"]
[null,null,null,null,null,null,null,null,null,null,null,null,null,null,null,null,"Щёлково"]
[null,null,null,null,null,null,null,null,null,null,null,null,null,null,null,null,"Щигры"]
[null,null,null,null,null,null,null,null,null,null,null,null,null,null,null,null,"Щучье"]
[null,null,null,null,null,null,null,null,null,null,null,null,null,null,null,null,"Электрогорск"]
[null,null,null,null,null,null,null,null,null,null,null,null,null,null,null,null,"Электросталь"]
[null,null,null,null,null,null,null,null,null,null,null,null,null,null,null,null,"Электроугли"]
[null,null,null,null,null,null,null,null,null,null,null,null,null,null,null,null,"Элиста"]
[null,null,null,null,null,null,null,null,null,null,null,null,null,null,null,null,"Энгельс"]
[null,null,null,null,null,null,null,null,null,null,null,null,null,null,null,null,"Эртиль"]
[null,null,null,null,null,null,null,null,null,null,null,null,null,null,null,null,"Югорск"]
[null,null,null,null,null,null,null,null,null,null,null,null,null,null,null,null,"Южа"]
[null,null,null,null,null,null,null,null,null,null,null,null,null,null,null,null,"Южно-Сахалинск"]
[null,null,null,null,null,null,null,null,null,null,null,null,null,null,null,null,"Южно-Сухокумск"]
[null,null,null,null,null,null,null,null,null,null,null,null,null,null,null,null,"Южноуральск"]
[null,null,null,null,null,null,null,null,null,null,null,null,null,null,null,null,"Юрга"]
[null,null,null,null,null,null,null,null,null,null,null,null,null,null,null,null,"Юрьев-Польский"]
[null,null,null,null,null,null,null,null,null,null,null,null,null,null,null,null,"Юрьевец"]
[null,null,null,null,null,null,null,null,null,null,null,null,null,null,null,null,"Юрюзань"]
[null,null,null,null,null,null,null,null,null,null,null,null,null,null,null,null,"Юхнов"]
[null,null,null,null,null,null,null,null,null,null,null,null,null,null,null,null,"Ядрин"]
[null,null,null,null,null,null,null,null,null,null,null,null,null,null,null,null,"Якутск"]
[null,null,null,null,null,null,null,null,null,null,null,null,null,null,null,null,"Ялта"]
[null,null,null,null,null,null,null,null,null,null,null,null,null,null,null,null,"Ялуторовск"]
[null,null,null,null,null,null,null,null,null,null,null,null,null,null,null,null,"Янаул"]
[null,null,null,null,null,null,null,null,null,null,null,null,null,null,null,null,"Яранск"]
[null,null,null,null,null,null,null,null,null,null,null,null,null,null,null,null,"Яровое"]
[null,null,null,null,null,null,null,null,null,null,null,null,null,null,null,null,"Ярославль"]
[null,null,null,null,null,null,null,null,null,null,null,null,null,null,null,null,"Ярцево"]
[null,null,null,null,null,null,null,null,null,null,null,null,null,null,null,null,"Ясногорск"]
[null,null,null,null,null,null,null,null,null,null,null,null,null,null,null,null,"Ясный"]
[null,null,null,null,null,null,null,null,null,null,null,null,null,null,null,null,"Яхрома"]

{"sheet":"Курсы валют","index":3,"n_rows":44,"n_cols":7,"rows_kept":44,"cut":false,"hidden":true,"merged":[]}
["Цифр. код","Букв. код","Единиц","Валюта","Курс",null,"https://www.cbr.ru/currency_base/daily/"]
[36,"AUD",1,"Австралийский доллар",61.469099999999997]
[944,"AZN",1,"Азербайджанский манат",57.239699999999999]
[51,"AMD",100,"Армянских драмов",24.193200000000001]
[933,"BYN",1,"Белорусский рубль",29.528300000000002]
[975,"BGN",1,"Болгарский лев",52.832799999999999]
[986,"BRL",1,"Бразильский реал",19.2715]
[348,"HUF",100,"Венгерских форинтов",26.5288]
[410,"KRW",1000,"Вон Республики Корея",72.079599999999999]
[704,"VND",10000,"Вьетнамских донгов",40.415100000000002]
[344,"HKD",1,"Гонконгский доллар",12.457800000000001]
[981,"GEL",1,"Грузинский лари",36.066499999999998]
[208,"DKK",1,"Датская крона",13.8583]
[784,"AED",1,"Дирхам ОАЭ",26.492599999999999]
[840,"USD",1,"Доллар США",97.307500000000005]
[978,"EUR",1,"Евро",102.5523]
[818,"EGP",10,"Египетских фунтов",31.496700000000001]
[356,"INR",10,"Индийских рупий",11.690200000000001]
[360,"IDR",10000,"Индонезийских рупий",61.971400000000003]
[398,"KZT",100,"Казахстанских тенге",20.452200000000001]
[124,"CAD",1,"Канадский доллар",71.251000000000005]
[634,"QAR",1,"Катарский риал",26.732800000000001]
[417,"KGS",10,"Киргизских сомов",10.912599999999999]
[156,"CNY",1,"Китайский юань",13.3026]
[498,"MDL",10,"Молдавских леев",53.6706]
[554,"NZD",1,"Новозеландский доллар",57.674199999999999]
[934,"TMT",1,"Новый туркменский манат",27.802099999999999]
[578,"NOK",10,"Норвежских крон",88.934299999999993]
[985,"PLN",1,"Польский злотый",22.566700000000001]
[946,"RON",1,"Румынский лей",20.639600000000002]
[960,"XDR",1,"СДР (специальные права заимствования)",127.99339999999999]
[941,"RSD",100,"Сербских динаров",87.623699999999999]
[702,"SGD",1,"Сингапурский доллар",71.068899999999999]
[972,"TJS",10,"Таджикских сомони",88.781000000000006]
[764,"THB",10,"Таиландских батов",26.8887]
[949,"TRY",10,"Турецких лир",35.087600000000002]
[860,"UZS",10000,"Узбекских сумов",79.570999999999998]
[980,"UAH",10,"Украинских гривен",26.754899999999999]
[826,"GBP",1,"Фунт стерлингов Соединенного королевства",118.8514]
[203,"CZK",10,"Чешских крон",42.073500000000003]
[752,"SEK",10,"Шведских крон",88.864500000000007]
[756,"CHF",1,"Швейцарский франк",107.3323]
[710,"ZAR",10,"Южноафриканских рэндов",51.311199999999999]
[392,"JPY",100,"Японских иен",64.945300000000003]

{"sheet":"ЭТП ГПБ","index":4,"n_rows":2,"n_cols":11,"rows_kept":2,"cut":false,"hidden":true,"merged":[]}
[]
[null,null,null,null,null,null,null,null,null,null,"2023-10-14T00:17:48"]